 Batch Number,Vendor Name,Invoice Number, Line,Line Amount,Account Description,Issue Date ,Total Amount Paid,Department,Title
260315H,VCG KESTREL LIMITED===========,559,1,"1,020.00",DAY TO DAY MINOR IMPS,02/04/2015,"1,020.00",Property PFI,Facilities & Management S
300315H,VCG KESTREL LIMITED===========,560,1,420,FIXTURES & FITTINGS,02/04/2015,420,Technical And Service Support,Facilities & Management S
230315G,GREENSPACE INFO.FOR GT. LONDON,1791,1,"2,000.00",SUBSCRIPTIONS,02/04/2015,"2,000.00",Procurement,Financial Services
300315H,GOVNET COMMUNICATIONS=========,82085,1,385,PROFESSIONAL DEVELOPMENT,02/04/2015,385,Corporate Projects,Human Resources
300315H,OGILVIE FLEET LTD=============,326812,1,674.96,MILEAGE CHARGES,02/04/2015,674.96,Procurement,Vehicle Management
141007,THAMES WATER UTILITIES LTD====,0592996051E,1,387.41,WATER & SEWERAGE RATES,02/04/2015,387.41,Technical And Service Support,Utilities
270315H,BRIGLY FIRE LTD,64,1,"2,820.00",CONSULTANTS,02/04/2015,"2,820.00",Fire Safety Regulation,Fire & Rescue
141007,THAMES WATER UTILITIES LTD====,08336-60263C,1,666.08,WATER & SEWERAGE RATES,02/04/2015,666.08,Technical And Service Support,Utilities
250315C,AIRWAVE SOLUTIONS LTD=========,0941000028-008,1,983,MAINTENANCE & SUPPORT,02/04/2015,983,Information and Communication Technology,ICT
240315H,AIRWAVE SOLUTIONS LTD=========,0941000028-009,1,"9,817.50",ACQUISITIONS,02/04/2015,"27,733.29",Information and Communication Technology,ICT
240315H,AIRWAVE SOLUTIONS LTD=========,0941000028-009,2,41.69,ACQUISITIONS,02/04/2015,,Information and Communication Technology,ICT
240315H,AIRWAVE SOLUTIONS LTD=========,0941000028-009,3,"9,548.05",OPERATIONAL EQUIP-PURCHASE,02/04/2015,,Operational Procedures,ICT
240315H,AIRWAVE SOLUTIONS LTD=========,0941000028-009,4,"1,771.90",OPERATIONAL EQUIP-PURCHASE,02/04/2015,,Operational Procedures,ICT
240315H,AIRWAVE SOLUTIONS LTD=========,0941000028-009,5,519.35,OPERATIONAL EQUIP-PURCHASE,02/04/2015,,Operational Procedures,ICT
240315H,AIRWAVE SOLUTIONS LTD=========,0941000028-009,6,"6,034.80",OPERATIONAL EQUIP-PURCHASE,02/04/2015,,Operational Procedures,ICT
270315H,CHANGING YOUNG MINDS,10/24/032015,1,150,GENERAL,02/04/2015,450,LIFE - LFB Funded,Human Resources
270315H,CHANGING YOUNG MINDS,10/24/032015,2,150,GENERAL,02/04/2015,,LIFE - LFB Funded,Human Resources
270315H,CHANGING YOUNG MINDS,10/24/032015,3,150,GENERAL,02/04/2015,,LIFE - LFB Funded,Human Resources
260315H,HAYS ACCOUNTANCY & FINANCE====,1005260308,1,464,FRS STAFF AGENCY,02/04/2015,464,Technical And Service Support,Human Resources
270315H,NATIONAL DESIGN CONSULTANCY===,102/155718/01,1,500,PROFESSIONAL SERVICES,02/04/2015,500,Technical And Service Support,Environmental Services
800060245,AZTEC COMPUTING LTD===========,10472,1,"2,800.00",TELECOMMUNICATIONS,02/04/2015,"2,800.00",HR Management,ICT
800060246,AZTEC COMPUTING LTD===========,10473,1,700,TELECOMMUNICATIONS,02/04/2015,700,HR Management,ICT
800060247,AZTEC COMPUTING LTD===========,10474,1,"3,500.00",TELECOMMUNICATIONS,02/04/2015,"3,500.00",HR Management,ICT
800060249,AZTEC COMPUTING LTD===========,10476,1,"3,150.00",TELECOMMUNICATIONS,02/04/2015,"3,150.00",HR Management,ICT
800060250,AZTEC COMPUTING LTD===========,10477,1,"6,000.00",MAINTENANCE & SUPPORT,02/04/2015,"11,000.00",Information and Communication Technology,ICT
800060250,AZTEC COMPUTING LTD===========,10477,2,"5,000.00",MAINTENANCE & SUPPORT,02/04/2015,,Information and Communication Technology,ICT
800060251,AZTEC COMPUTING LTD===========,10478,1,350,MAINTENANCE & SUPPORT,02/04/2015,350,HR Management,ICT
180315H,IMPACT EPOS LTD,10512,1,912.71,TACTICAL DAY TO DAY,02/04/2015,912.71,Technical And Service Support,ICT
141008,MR NICHOLAS WILCOX============,106970,1,450,COUNSELS FEES,02/04/2015,450,Legal & Democratic Services,Legal Services
300315H,*SPRUE SAFETY PRODUCTS LTD====,1072465,1,"2,224.80",FIRE DETECTORS,02/04/2015,"2,224.80",Operations Non Fire Stations,Health & Safety
300315H,*SPRUE SAFETY PRODUCTS LTD====,1072466,1,"2,472.00",FIRE DETECTORS,02/04/2015,"2,472.00",Operations Non Fire Stations,Health & Safety
300315H,*SPRUE SAFETY PRODUCTS LTD====,1072467,1,"2,224.80",FIRE DETECTORS,02/04/2015,"2,224.80",Operations Non Fire Stations,Health & Safety
300315H,*SPRUE SAFETY PRODUCTS LTD====,1072468,1,"2,472.00",FIRE DETECTORS,02/04/2015,"2,472.00",Operations Non Fire Stations,Health & Safety
300315H,*SPRUE SAFETY PRODUCTS LTD====,1072661,1,"1,236.00",FIRE DETECTORS,02/04/2015,"1,236.00",Operations Non Fire Stations,Health & Safety
300315H,*SPRUE SAFETY PRODUCTS LTD====,1072662,1,"2,472.00",FIRE DETECTORS,02/04/2015,"2,472.00",Operations Non Fire Stations,Health & Safety
300315H,*SPRUE SAFETY PRODUCTS LTD====,1072663,1,"2,472.00",FIRE DETECTORS,02/04/2015,"2,472.00",Operations Non Fire Stations,Health & Safety
300315H,*SPRUE SAFETY PRODUCTS LTD====,1072671,1,"1,236.00",FIRE DETECTORS,02/04/2015,"1,236.00",Operations Non Fire Stations,Health & Safety
300315H,*SPRUE SAFETY PRODUCTS LTD====,1072672,1,"1,236.00",FIRE DETECTORS,02/04/2015,"1,236.00",Operations Non Fire Stations,Health & Safety
300315H,*SPRUE SAFETY PRODUCTS LTD====,1072673,1,"1,236.00",FIRE DETECTORS,02/04/2015,"1,236.00",Operations Non Fire Stations,Health & Safety
300315H,*SPRUE SAFETY PRODUCTS LTD====,1072674,1,"1,236.00",FIRE DETECTORS,02/04/2015,"1,236.00",Operations Non Fire Stations,Health & Safety
300315H,*SPRUE SAFETY PRODUCTS LTD====,1072675,1,"2,472.00",FIRE DETECTORS,02/04/2015,"2,472.00",Operations Non Fire Stations,Health & Safety
300315H,*SPRUE SAFETY PRODUCTS LTD====,1072676,1,988.8,FIRE DETECTORS,02/04/2015,988.8,Operations Non Fire Stations,Health & Safety
300315H,*SPRUE SAFETY PRODUCTS LTD====,1072677,1,"1,236.00",FIRE DETECTORS,02/04/2015,"1,236.00",Operations Non Fire Stations,Health & Safety
300315H,*SPRUE SAFETY PRODUCTS LTD====,1072678,1,"1,236.00",FIRE DETECTORS,02/04/2015,"1,236.00",Operations Non Fire Stations,Health & Safety
300315H,*SPRUE SAFETY PRODUCTS LTD====,1072679,1,"2,472.00",FIRE DETECTORS,02/04/2015,"2,472.00",Operations Non Fire Stations,Health & Safety
300315H,*SPRUE SAFETY PRODUCTS LTD====,1072680,1,"1,236.00",FIRE DETECTORS,02/04/2015,"1,236.00",Operations Non Fire Stations,Health & Safety
300315H,*SPRUE SAFETY PRODUCTS LTD====,1072686,1,988.8,FIRE DETECTORS,02/04/2015,988.8,Operations Non Fire Stations,Health & Safety
300315H,*SPRUE SAFETY PRODUCTS LTD====,1072691,1,"2,472.00",FIRE DETECTORS,02/04/2015,"2,472.00",Operations Non Fire Stations,Health & Safety
300315H,*SPRUE SAFETY PRODUCTS LTD====,1072692,1,"2,472.00",FIRE DETECTORS,02/04/2015,"2,472.00",Operations Non Fire Stations,Health & Safety
300315H,*SPRUE SAFETY PRODUCTS LTD====,1072693,1,"2,472.00",FIRE DETECTORS,02/04/2015,"2,472.00",Operations Non Fire Stations,Health & Safety
300315H,*SPRUE SAFETY PRODUCTS LTD====,1072694,1,"2,472.00",FIRE DETECTORS,02/04/2015,"2,472.00",Operations Non Fire Stations,Health & Safety
300315H,*SPRUE SAFETY PRODUCTS LTD====,1072695,1,988.8,FIRE DETECTORS,02/04/2015,988.8,Operations Non Fire Stations,Health & Safety
300315H,*SPRUE SAFETY PRODUCTS LTD====,1072696,1,"1,236.00",FIRE DETECTORS,02/04/2015,"1,236.00",Operations Non Fire Stations,Health & Safety
300315H,*SPRUE SAFETY PRODUCTS LTD====,1072698,1,865.2,FIRE DETECTORS,02/04/2015,865.2,Operations Non Fire Stations,Health & Safety
300315H,*SPRUE SAFETY PRODUCTS LTD====,1072707,1,865.2,FIRE DETECTORS,02/04/2015,865.2,Operations Non Fire Stations,Health & Safety
300315H,*SPRUE SAFETY PRODUCTS LTD====,1072710,1,988.8,FIRE DETECTORS,02/04/2015,988.8,Operations Non Fire Stations,Health & Safety
300315H,*SPRUE SAFETY PRODUCTS LTD====,1072711,1,865.2,FIRE DETECTORS,02/04/2015,865.2,Operations Non Fire Stations,Health & Safety
300315H,*SPRUE SAFETY PRODUCTS LTD====,1072713,1,741.6,FIRE DETECTORS,02/04/2015,741.6,Operations Non Fire Stations,Health & Safety
300315H,*SPRUE SAFETY PRODUCTS LTD====,1072716,1,988.8,FIRE DETECTORS,02/04/2015,988.8,Operations Non Fire Stations,Health & Safety
800060029,*JAMES HUNTER (OUTFITTERS) LTD,107993,1,148.9,CLOTHING,02/04/2015,287.72,Operations Fire Stations,Clothing
800060029,*JAMES HUNTER (OUTFITTERS) LTD,107993,2,138.82,CLOTHING,02/04/2015,,Operations Fire Stations,Clothing
800060030,*JAMES HUNTER (OUTFITTERS) LTD,107994,1,145.74,CLOTHING,02/04/2015,284.56,Operations Fire Stations,Clothing
800060030,*JAMES HUNTER (OUTFITTERS) LTD,107994,2,138.82,CLOTHING,02/04/2015,,Operations Fire Stations,Clothing
800060033,*JAMES HUNTER (OUTFITTERS) LTD,107997,1,231.56,CLOTHING,02/04/2015,293.35,Operations Fire Stations,Clothing
800060033,*JAMES HUNTER (OUTFITTERS) LTD,107997,2,61.79,CLOTHING,02/04/2015,,Operations Fire Stations,Clothing
800060035,*JAMES HUNTER (OUTFITTERS) LTD,107999,1,362.23,CLOTHING,02/04/2015,580.84,Corporate Management Team,Clothing
800060035,*JAMES HUNTER (OUTFITTERS) LTD,107999,2,218.61,CLOTHING,02/04/2015,,Corporate Management Team,Clothing
800060064,*JAMES HUNTER (OUTFITTERS) LTD,108028,1,293.13,CLOTHING,02/04/2015,293.13,Operations Fire Stations,Clothing
800060070,*JAMES HUNTER (OUTFITTERS) LTD,108048,1,354.69,CLOTHING,02/04/2015,427.56,HR Management,Clothing
800060070,*JAMES HUNTER (OUTFITTERS) LTD,108048,2,72.87,CLOTHING,02/04/2015,,HR Management,Clothing
800060075,*JAMES HUNTER (OUTFITTERS) LTD,108053,1,294.48,CLOTHING,02/04/2015,294.48,Operations Fire Stations,Clothing
800060077,*JAMES HUNTER (OUTFITTERS) LTD,108055,1,293.13,CLOTHING,02/04/2015,293.13,Fire Safety Regulation,Clothing
240315H,NISBETS=======================,10888174,1,269.99,CATERING EQUIPMENT,02/04/2015,269.99,Operations Fire Stations,Catering
141007,AFFINITY WATER,13273822S,1,305.07,WATER & SEWERAGE RATES,02/04/2015,305.07,Technical And Service Support,Utilities
141008,MR DAVID CLAXTON,134551,1,675,PROFESSIONAL FEES ENFORCEMENT,02/04/2015,675,Legal & Democratic Services,Legal Services
300315H,IRG ADVISORS LLP,14004000 SJM 50815,1,"5,000.00",ADVERTISING,02/04/2015,"5,000.00",HR Management,Human Resources
250315C,KIER BUILDING SERV ENGINEERS==,14090190,1,"16,460.05",STRATEGIC (CYCLICAL),02/04/2015,"16,460.05",Technical And Service Support,"Works - Construction, R&M"
800059925,*NPS (SHOES) LTD,14462,1,30.05,CLOTHING,02/04/2015,"4,041.05",Operations Fire Stations,Clothing
800059925,*NPS (SHOES) LTD,14462,2,30.05,CLOTHING,02/04/2015,,Operations Fire Stations,Clothing
800059925,*NPS (SHOES) LTD,14462,3,30.05,CLOTHING,02/04/2015,,Operations Fire Stations,Clothing
800059925,*NPS (SHOES) LTD,14462,4,30.05,CLOTHING,02/04/2015,,Operations Fire Stations,Clothing
800059925,*NPS (SHOES) LTD,14462,5,30.05,CLOTHING,02/04/2015,,Operations Fire Stations,Clothing
800059925,*NPS (SHOES) LTD,14462,6,30.05,CLOTHING,02/04/2015,,Operations Fire Stations,Clothing
800059925,*NPS (SHOES) LTD,14462,7,30.05,CLOTHING,02/04/2015,,Operations Fire Stations,Clothing
800059925,*NPS (SHOES) LTD,14462,8,30.05,CLOTHING,02/04/2015,,Operations Fire Stations,Clothing
800059925,*NPS (SHOES) LTD,14462,9,30.05,CLOTHING,02/04/2015,,Operations Fire Stations,Clothing
800059925,*NPS (SHOES) LTD,14462,10,30.05,CLOTHING,02/04/2015,,Cadets,Clothing
800059925,*NPS (SHOES) LTD,14462,11,30.05,CLOTHING,02/04/2015,,Cadets,Clothing
800059925,*NPS (SHOES) LTD,14462,12,30.05,CLOTHING,02/04/2015,,Operations Fire Stations,Clothing
800059925,*NPS (SHOES) LTD,14462,13,30.05,CLOTHING,02/04/2015,,Fire Safety Regulation,Clothing
800059925,*NPS (SHOES) LTD,14462,14,30.05,CLOTHING,02/04/2015,,Operations Fire Stations,Clothing
800059925,*NPS (SHOES) LTD,14462,15,30.05,CLOTHING,02/04/2015,,Control and Mobilising,Clothing
800059925,*NPS (SHOES) LTD,14462,16,30.05,CLOTHING,02/04/2015,,Command Units,Clothing
800059925,*NPS (SHOES) LTD,14462,17,30.05,CLOTHING,02/04/2015,,Operations Fire Stations,Clothing
800059925,*NPS (SHOES) LTD,14462,18,30.05,CLOTHING,02/04/2015,,Operations Fire Stations,Clothing
800059925,*NPS (SHOES) LTD,14462,19,29.45,CLOTHING,02/04/2015,,Cadets,Clothing
800059925,*NPS (SHOES) LTD,14462,20,29.45,CLOTHING,02/04/2015,,Cadets,Clothing
800059925,*NPS (SHOES) LTD,14462,21,29.45,CLOTHING,02/04/2015,,Cadets,Clothing
800059925,*NPS (SHOES) LTD,14462,22,29.45,CLOTHING,02/04/2015,,Cadets,Clothing
800059925,*NPS (SHOES) LTD,14462,23,29.45,CLOTHING,02/04/2015,,Cadets,Clothing
800059925,*NPS (SHOES) LTD,14462,24,29.45,CLOTHING,02/04/2015,,Cadets,Clothing
800059925,*NPS (SHOES) LTD,14462,25,29.45,CLOTHING,02/04/2015,,Cadets,Clothing
800059925,*NPS (SHOES) LTD,14462,26,29.45,CLOTHING,02/04/2015,,Cadets,Clothing
800059925,*NPS (SHOES) LTD,14462,27,29.45,CLOTHING,02/04/2015,,Operations Fire Stations,Clothing
800059925,*NPS (SHOES) LTD,14462,28,29.45,CLOTHING,02/04/2015,,Operations Fire Stations,Clothing
800059925,*NPS (SHOES) LTD,14462,29,29.45,CLOTHING,02/04/2015,,Operations Fire Stations,Clothing
800059925,*NPS (SHOES) LTD,14462,30,29.45,CLOTHING,02/04/2015,,Operations Fire Stations,Clothing
800059925,*NPS (SHOES) LTD,14462,31,29.45,CLOTHING,02/04/2015,,Operations Fire Stations,Clothing
800059925,*NPS (SHOES) LTD,14462,32,29.45,CLOTHING,02/04/2015,,Cadets,Clothing
800059925,*NPS (SHOES) LTD,14462,33,29.45,CLOTHING,02/04/2015,,Operations Fire Stations,Clothing
800059925,*NPS (SHOES) LTD,14462,34,29.45,CLOTHING,02/04/2015,,Operations Fire Stations,Clothing
800059925,*NPS (SHOES) LTD,14462,35,29.45,CLOTHING,02/04/2015,,Cadets,Clothing
800059925,*NPS (SHOES) LTD,14462,36,29.45,CLOTHING,02/04/2015,,Cadets,Clothing
800059925,*NPS (SHOES) LTD,14462,37,29.45,CLOTHING,02/04/2015,,Cadets,Clothing
800059925,*NPS (SHOES) LTD,14462,38,29.45,CLOTHING,02/04/2015,,Cadets,Clothing
800059925,*NPS (SHOES) LTD,14462,39,29.45,CLOTHING,02/04/2015,,Cadets,Clothing
800059925,*NPS (SHOES) LTD,14462,40,29.45,CLOTHING,02/04/2015,,Cadets,Clothing
800059925,*NPS (SHOES) LTD,14462,41,29.45,CLOTHING,02/04/2015,,Cadets,Clothing
800059925,*NPS (SHOES) LTD,14462,42,29.45,CLOTHING,02/04/2015,,Cadets,Clothing
800059925,*NPS (SHOES) LTD,14462,43,29.45,CLOTHING,02/04/2015,,Firefighter Trainees,Clothing
800059925,*NPS (SHOES) LTD,14462,44,29.45,CLOTHING,02/04/2015,,Firefighter Trainees,Clothing
800059925,*NPS (SHOES) LTD,14462,45,29.45,CLOTHING,02/04/2015,,Firefighter Trainees,Clothing
800059925,*NPS (SHOES) LTD,14462,46,29.45,CLOTHING,02/04/2015,,Firefighter Trainees,Clothing
800059925,*NPS (SHOES) LTD,14462,47,29.45,CLOTHING,02/04/2015,,Cadets,Clothing
800059925,*NPS (SHOES) LTD,14462,48,29.45,CLOTHING,02/04/2015,,Cadets,Clothing
800059925,*NPS (SHOES) LTD,14462,49,29.45,CLOTHING,02/04/2015,,Operations Fire Stations,Clothing
800059925,*NPS (SHOES) LTD,14462,50,29.45,CLOTHING,02/04/2015,,Operations Fire Stations,Clothing
800059925,*NPS (SHOES) LTD,14462,51,29.45,CLOTHING,02/04/2015,,Firefighter Trainees,Clothing
800059925,*NPS (SHOES) LTD,14462,52,29.45,CLOTHING,02/04/2015,,Firefighter Trainees,Clothing
800059925,*NPS (SHOES) LTD,14462,53,29.45,CLOTHING,02/04/2015,,Cadets,Clothing
800059925,*NPS (SHOES) LTD,14462,54,29.45,CLOTHING,02/04/2015,,Cadets,Clothing
800059925,*NPS (SHOES) LTD,14462,55,29.45,CLOTHING,02/04/2015,,Cadets,Clothing
800059925,*NPS (SHOES) LTD,14462,56,29.45,CLOTHING,02/04/2015,,Cadets,Clothing
800059925,*NPS (SHOES) LTD,14462,57,29.45,CLOTHING,02/04/2015,,Operations Fire Stations,Clothing
800059925,*NPS (SHOES) LTD,14462,58,29.45,CLOTHING,02/04/2015,,Firefighter Trainees,Clothing
800059925,*NPS (SHOES) LTD,14462,59,29.45,CLOTHING,02/04/2015,,Firefighter Trainees,Clothing
800059925,*NPS (SHOES) LTD,14462,60,29.45,CLOTHING,02/04/2015,,Cadets,Clothing
800059925,*NPS (SHOES) LTD,14462,61,29.45,CLOTHING,02/04/2015,,Cadets,Clothing
800059925,*NPS (SHOES) LTD,14462,62,29.45,CLOTHING,02/04/2015,,Firefighter Trainees,Clothing
800059925,*NPS (SHOES) LTD,14462,63,29.45,CLOTHING,02/04/2015,,Firefighter Trainees,Clothing
800059925,*NPS (SHOES) LTD,14462,64,29.45,CLOTHING,02/04/2015,,Operations Fire Stations,Clothing
800059925,*NPS (SHOES) LTD,14462,65,29.45,CLOTHING,02/04/2015,,Firefighter Trainees,Clothing
800059925,*NPS (SHOES) LTD,14462,66,29.45,CLOTHING,02/04/2015,,Firefighter Trainees,Clothing
800059925,*NPS (SHOES) LTD,14462,67,29.45,CLOTHING,02/04/2015,,Operations Fire Stations,Clothing
800059925,*NPS (SHOES) LTD,14462,68,29.45,CLOTHING,02/04/2015,,Cadets,Clothing
800059925,*NPS (SHOES) LTD,14462,69,29.45,CLOTHING,02/04/2015,,Cadets,Clothing
800059925,*NPS (SHOES) LTD,14462,70,29.45,CLOTHING,02/04/2015,,Cadets,Clothing
800059925,*NPS (SHOES) LTD,14462,71,29.45,CLOTHING,02/04/2015,,Cadets,Clothing
800059925,*NPS (SHOES) LTD,14462,72,28.45,CLOTHING,02/04/2015,,Operations Fire Stations,Clothing
800059925,*NPS (SHOES) LTD,14462,73,30.05,CLOTHING,02/04/2015,,Operational Assurance,Clothing
800059925,*NPS (SHOES) LTD,14462,74,30.05,CLOTHING,02/04/2015,,Operations Fire Stations,Clothing
800059925,*NPS (SHOES) LTD,14462,75,30.05,CLOTHING,02/04/2015,,Operations Fire Stations,Clothing
800059925,*NPS (SHOES) LTD,14462,76,30.05,CLOTHING,02/04/2015,,Operations Fire Stations,Clothing
800059925,*NPS (SHOES) LTD,14462,77,30.05,CLOTHING,02/04/2015,,Operations Fire Stations,Clothing
800059925,*NPS (SHOES) LTD,14462,78,30.05,CLOTHING,02/04/2015,,Operations Fire Stations,Clothing
800059925,*NPS (SHOES) LTD,14462,79,30.05,CLOTHING,02/04/2015,,Operations Fire Stations,Clothing
800059925,*NPS (SHOES) LTD,14462,80,30.05,CLOTHING,02/04/2015,,Operations Fire Stations,Clothing
800059925,*NPS (SHOES) LTD,14462,81,30.05,CLOTHING,02/04/2015,,Operational Assurance,Clothing
800059925,*NPS (SHOES) LTD,14462,82,30.05,CLOTHING,02/04/2015,,Operations Non Fire Stations,Clothing
800059925,*NPS (SHOES) LTD,14462,83,30.05,CLOTHING,02/04/2015,,Command Units,Clothing
800059925,*NPS (SHOES) LTD,14462,84,29.45,CLOTHING,02/04/2015,,Operations Fire Stations,Clothing
800059925,*NPS (SHOES) LTD,14462,85,29.45,CLOTHING,02/04/2015,,Operations Fire Stations,Clothing
800059925,*NPS (SHOES) LTD,14462,86,29.45,CLOTHING,02/04/2015,,Operations Fire Stations,Clothing
800059925,*NPS (SHOES) LTD,14462,87,29.45,CLOTHING,02/04/2015,,Operations Fire Stations,Clothing
800059925,*NPS (SHOES) LTD,14462,88,29.45,CLOTHING,02/04/2015,,Operations Fire Stations,Clothing
800059925,*NPS (SHOES) LTD,14462,89,29.45,CLOTHING,02/04/2015,,Operations Fire Stations,Clothing
800059925,*NPS (SHOES) LTD,14462,90,29.45,CLOTHING,02/04/2015,,Operations Fire Stations,Clothing
800059925,*NPS (SHOES) LTD,14462,91,29.45,CLOTHING,02/04/2015,,Fire Safety Regulation,Clothing
800059925,*NPS (SHOES) LTD,14462,92,29.45,CLOTHING,02/04/2015,,Operations Fire Stations,Clothing
800059925,*NPS (SHOES) LTD,14462,93,29.45,CLOTHING,02/04/2015,,Operations Fire Stations,Clothing
800059925,*NPS (SHOES) LTD,14462,94,29.45,CLOTHING,02/04/2015,,Operations Fire Stations,Clothing
800059925,*NPS (SHOES) LTD,14462,95,29.45,CLOTHING,02/04/2015,,Operations Fire Stations,Clothing
800059925,*NPS (SHOES) LTD,14462,96,29.45,CLOTHING,02/04/2015,,Operations Fire Stations,Clothing
800059925,*NPS (SHOES) LTD,14462,97,29.45,CLOTHING,02/04/2015,,Operations Fire Stations,Clothing
800059925,*NPS (SHOES) LTD,14462,98,29.45,CLOTHING,02/04/2015,,Operations Fire Stations,Clothing
800059925,*NPS (SHOES) LTD,14462,99,29.45,CLOTHING,02/04/2015,,HR Development,Clothing
800059925,*NPS (SHOES) LTD,14462,100,29.45,CLOTHING,02/04/2015,,Operations Fire Stations,Clothing
800059925,*NPS (SHOES) LTD,14462,101,41.1,CLOTHING,02/04/2015,,Fire Safety Regulation,Clothing
800059925,*NPS (SHOES) LTD,14462,102,30.05,CLOTHING,02/04/2015,,Operations Fire Stations,Clothing
800059925,*NPS (SHOES) LTD,14462,103,30.05,CLOTHING,02/04/2015,,Operations Fire Stations,Clothing
800059925,*NPS (SHOES) LTD,14462,104,30.05,CLOTHING,02/04/2015,,Operations Fire Stations,Clothing
800059925,*NPS (SHOES) LTD,14462,105,30.05,CLOTHING,02/04/2015,,Operations Fire Stations,Clothing
800059925,*NPS (SHOES) LTD,14462,106,30.05,CLOTHING,02/04/2015,,Operations Fire Stations,Clothing
800059925,*NPS (SHOES) LTD,14462,107,30.05,CLOTHING,02/04/2015,,Operations Fire Stations,Clothing
800059925,*NPS (SHOES) LTD,14462,108,30.05,CLOTHING,02/04/2015,,Fire Safety Regulation,Clothing
800059925,*NPS (SHOES) LTD,14462,109,30.05,CLOTHING,02/04/2015,,Operations Fire Stations,Clothing
800059925,*NPS (SHOES) LTD,14462,110,30.05,CLOTHING,02/04/2015,,Operations Fire Stations,Clothing
800059925,*NPS (SHOES) LTD,14462,111,30.05,CLOTHING,02/04/2015,,Operations Fire Stations,Clothing
800059925,*NPS (SHOES) LTD,14462,112,30.05,CLOTHING,02/04/2015,,Operations Fire Stations,Clothing
800059925,*NPS (SHOES) LTD,14462,113,30.05,CLOTHING,02/04/2015,,Operations Fire Stations,Clothing
800059925,*NPS (SHOES) LTD,14462,114,30.05,CLOTHING,02/04/2015,,Operations Fire Stations,Clothing
800059925,*NPS (SHOES) LTD,14462,115,29.45,CLOTHING,02/04/2015,,Operations Fire Stations,Clothing
800059925,*NPS (SHOES) LTD,14462,116,29.45,CLOTHING,02/04/2015,,Operations Fire Stations,Clothing
800059925,*NPS (SHOES) LTD,14462,117,29.45,CLOTHING,02/04/2015,,Operations Fire Stations,Clothing
800059925,*NPS (SHOES) LTD,14462,118,29.45,CLOTHING,02/04/2015,,Operations Fire Stations,Clothing
800059925,*NPS (SHOES) LTD,14462,119,29.45,CLOTHING,02/04/2015,,Operations Fire Stations,Clothing
800059925,*NPS (SHOES) LTD,14462,120,29.45,CLOTHING,02/04/2015,,Operations Fire Stations,Clothing
800059925,*NPS (SHOES) LTD,14462,121,29.45,CLOTHING,02/04/2015,,Firefighter Trainees,Clothing
800059925,*NPS (SHOES) LTD,14462,122,29.45,CLOTHING,02/04/2015,,Firefighter Trainees,Clothing
800059925,*NPS (SHOES) LTD,14462,123,29.45,CLOTHING,02/04/2015,,Operations Fire Stations,Clothing
800059925,*NPS (SHOES) LTD,14462,124,29.45,CLOTHING,02/04/2015,,Operations Fire Stations,Clothing
800059925,*NPS (SHOES) LTD,14462,125,29.45,CLOTHING,02/04/2015,,Operations Fire Stations,Clothing
800059925,*NPS (SHOES) LTD,14462,126,29.45,CLOTHING,02/04/2015,,Operations Fire Stations,Clothing
800059925,*NPS (SHOES) LTD,14462,127,29.45,CLOTHING,02/04/2015,,Operations Fire Stations,Clothing
800059925,*NPS (SHOES) LTD,14462,128,29.45,CLOTHING,02/04/2015,,Operations Fire Stations,Clothing
800059925,*NPS (SHOES) LTD,14462,129,29.45,CLOTHING,02/04/2015,,Operations Fire Stations,Clothing
800059925,*NPS (SHOES) LTD,14462,130,29.45,CLOTHING,02/04/2015,,Operations Fire Stations,Clothing
800059925,*NPS (SHOES) LTD,14462,131,29.45,CLOTHING,02/04/2015,,Operations Fire Stations,Clothing
800059925,*NPS (SHOES) LTD,14462,132,29.45,CLOTHING,02/04/2015,,Operations Fire Stations,Clothing
800059925,*NPS (SHOES) LTD,14462,133,29.45,CLOTHING,02/04/2015,,Operations Fire Stations,Clothing
800059925,*NPS (SHOES) LTD,14462,134,29.45,CLOTHING,02/04/2015,,Operations Fire Stations,Clothing
800059925,*NPS (SHOES) LTD,14462,135,29.45,CLOTHING,02/04/2015,,Operations Fire Stations,Clothing
800059925,*NPS (SHOES) LTD,14462,136,29.45,CLOTHING,02/04/2015,,Operations Fire Stations,Clothing
260315H,LONDON FIT OUT LTD,1496,1,"56,274.00",DEVELOPMENT  EXPENSES-CONTRACT,02/04/2015,"56,274.00",Technical and Service Support,"Works - Construction, R&M"
230315H,BUREAU VERITAS HS&E LTD=======,15004234,1,"96,450.00",SCIENTIFIC SERVICES,02/04/2015,"96,450.00",Procurement,Environmental Services
260315H,IMTECH INVIRON,15005244R7,1,"1,035.00",DEVELOPMENT  EXPENSES-CONTRACT,02/04/2015,"21,735.00",Technical and Service Support,Facilities & Management S
260315H,IMTECH INVIRON,15005244R7,2,"1,035.00",DEVELOPMENT  EXPENSES-CONTRACT,02/04/2015,,Technical and Service Support,Facilities & Management S
260315H,IMTECH INVIRON,15005244R7,3,"1,035.00",DEVELOPMENT  EXPENSES-CONTRACT,02/04/2015,,Technical and Service Support,Facilities & Management S
260315H,IMTECH INVIRON,15005244R7,4,"1,035.00",DEVELOPMENT  EXPENSES-CONTRACT,02/04/2015,,Technical and Service Support,Facilities & Management S
260315H,IMTECH INVIRON,15005244R7,5,"1,035.00",DEVELOPMENT  EXPENSES-CONTRACT,02/04/2015,,Technical and Service Support,Facilities & Management S
260315H,IMTECH INVIRON,15005244R7,6,"1,035.00",DEVELOPMENT  EXPENSES-CONTRACT,02/04/2015,,Technical and Service Support,Facilities & Management S
260315H,IMTECH INVIRON,15005244R7,7,"1,035.00",DEVELOPMENT  EXPENSES-CONTRACT,02/04/2015,,Technical and Service Support,Facilities & Management S
260315H,IMTECH INVIRON,15005244R7,8,"1,035.00",DEVELOPMENT  EXPENSES-CONTRACT,02/04/2015,,Technical and Service Support,Facilities & Management S
260315H,IMTECH INVIRON,15005244R7,9,"1,035.00",DEVELOPMENT  EXPENSES-CONTRACT,02/04/2015,,Technical and Service Support,Facilities & Management S
260315H,IMTECH INVIRON,15005244R7,10,"1,035.00",DEVELOPMENT  EXPENSES-CONTRACT,02/04/2015,,Technical and Service Support,Facilities & Management S
260315H,IMTECH INVIRON,15005244R7,11,"1,035.00",DEVELOPMENT  EXPENSES-CONTRACT,02/04/2015,,Technical and Service Support,Facilities & Management S
260315H,IMTECH INVIRON,15005244R7,12,"1,035.00",DEVELOPMENT  EXPENSES-CONTRACT,02/04/2015,,Technical and Service Support,Facilities & Management S
260315H,IMTECH INVIRON,15005244R7,13,"1,035.00",DEVELOPMENT  EXPENSES-CONTRACT,02/04/2015,,Technical and Service Support,Facilities & Management S
260315H,IMTECH INVIRON,15005244R7,14,"1,035.00",DEVELOPMENT  EXPENSES-CONTRACT,02/04/2015,,Technical and Service Support,Facilities & Management S
260315H,IMTECH INVIRON,15005244R7,15,"1,035.00",DEVELOPMENT  EXPENSES-CONTRACT,02/04/2015,,Technical and Service Support,Facilities & Management S
260315H,IMTECH INVIRON,15005244R7,16,"1,035.00",DEVELOPMENT  EXPENSES-CONTRACT,02/04/2015,,Technical and Service Support,Facilities & Management S
260315H,IMTECH INVIRON,15005244R7,17,"1,035.00",DEVELOPMENT  EXPENSES-CONTRACT,02/04/2015,,Technical and Service Support,Facilities & Management S
260315H,IMTECH INVIRON,15005244R7,18,"1,035.00",DEVELOPMENT  EXPENSES-CONTRACT,02/04/2015,,Technical and Service Support,Facilities & Management S
260315H,IMTECH INVIRON,15005244R7,19,"1,035.00",DEVELOPMENT  EXPENSES-CONTRACT,02/04/2015,,Technical and Service Support,Facilities & Management S
260315H,IMTECH INVIRON,15005244R7,20,"1,035.00",DEVELOPMENT  EXPENSES-CONTRACT,02/04/2015,,Technical and Service Support,Facilities & Management S
260315H,IMTECH INVIRON,15005244R7,21,"1,035.00",DEVELOPMENT  EXPENSES-CONTRACT,02/04/2015,,Technical and Service Support,Facilities & Management S
300315H,RYDERMARSHSHARMAN LIMITED,15029,1,"4,950.00",CONSULTANTS,02/04/2015,"4,950.00",Operational Assurance,Consultancy
260315H,RESPIREX======================,150815,1,"5,625.00",TELEMETRY MAINTENANCE,02/04/2015,"5,625.00",Technical And Service Support,Clothing
260315H,RESPIREX======================,150816,1,"5,625.00",TELEMETRY MAINTENANCE,02/04/2015,"5,625.00",Technical And Service Support,Clothing
260315H,RESPIREX======================,150817,1,"11,250.00",TELEMETRY MAINTENANCE,02/04/2015,"11,250.00",Technical And Service Support,Clothing
260315H,RESPIREX======================,150833,1,104.67,REPAIR & MAINTENANCE,02/04/2015,363.36,Technical And Service Support,Clothing
260315H,RESPIREX======================,150833,2,21.67,REPAIR & MAINTENANCE,02/04/2015,,Technical And Service Support,Clothing
260315H,RESPIREX======================,150833,3,237.02,REPAIR & MAINTENANCE,02/04/2015,,Technical And Service Support,Clothing
260315H,RESPIREX======================,150835,1,274.52,PROTECTIVE EQUIPMENT,02/04/2015,786.06,Technical And Service Support,Clothing
260315H,RESPIREX======================,150835,2,237.02,PROTECTIVE EQUIPMENT,02/04/2015,,Technical And Service Support,Clothing
260315H,RESPIREX======================,150835,3,274.52,PROTECTIVE EQUIPMENT,02/04/2015,,Technical And Service Support,Clothing
300315H,GP CONTRACTS==================,15217,1,705,OFFICE FURNITURE,02/04/2015,705,Operations Fire Stations,Furniture
300315H,SPECTRUM======================,1544,1,540,SPECIALIST EQUIPMENT,02/04/2015,540,Communications,Facilities & Management S
260315H,ROLFE CONTRACTING LIMITED,15911,1,"30,351.80",DEVELOPMENT  EXPENSES-CONTRACT,02/04/2015,"30,351.80",Technical and Service Support,"Works - Construction, R&M"
300315H,HELPUSTRADE LTD,161,1,700,PROFESSIONAL DEVELOPMENT,02/04/2015,700,EU Fired-Up Project,Consultancy
300315H,L B OF REDBRIDGE==============,1.70114E+11,1,"1,000.00",COMMUNITY RELATIONS,02/04/2015,"1,000.00",Community Safety Delivery,Statutory Bodies
300315H,HARRIS INSTALLATION SERVICES,17528,1,"10,399.24",REMOVALS,02/04/2015,"10,399.24",Technical And Service Support,Facilities & Management S
260315H,HARRIS INSTALLATION SERVICES,17627,1,"1,085.24",REMOVALS,02/04/2015,"1,085.24",Technical And Service Support,Facilities & Management S
190315H,GREATER LONDON AUTHORITY======,1800004733,1,779,CONSULTANTS,02/04/2015,779,Communications,Fire & Rescue
300315H,COMMUNITIES & LOCAL GOVERNMENT,1800021283,1,"122,993.53",ACQUISITIONS,02/04/2015,"131,734.42",Information and Communication Technology,ICT
300315H,COMMUNITIES & LOCAL GOVERNMENT,1800021283,2,"8,416.82",ACQUISITIONS,02/04/2015,,Information and Communication Technology,ICT
300315H,COMMUNITIES & LOCAL GOVERNMENT,1800021283,3,324.07,ACQUISITIONS,02/04/2015,,Information and Communication Technology,ICT
240315C,BACP ENTERPRISES LTD==========,180315,1,270,SUBSCRIPTIONS,02/04/2015,270,HR Management,Financial Services
200315H,DYSLEXIA ACTION,183934,1,540,LEARNING SUPPORT,02/04/2015,540,HR Management,Human Resources
300315H,DYSLEXIA ACTION,184546,1,525,LEARNING SUPPORT,02/04/2015,525,HR Management,Human Resources
141008,BENJAMIN TANKEL,190097A,1,500,COUNSELS FEES,02/04/2015,500,Legal & Democratic Services,Legal Services
230315H,ENERGY AUDITING AGENCY LTD====,20151250,1,825,CONSULTANTS,02/04/2015,825,Technical And Service Support,Statutory Bodies
230315H,ENERGY AUDITING AGENCY LTD====,20151251,1,"1,375.00",CONSULTANTS,02/04/2015,"1,375.00",Technical And Service Support,Statutory Bodies
230315H,ENERGY AUDITING AGENCY LTD====,20151252,1,825,CONSULTANTS,02/04/2015,825,Technical And Service Support,Statutory Bodies
230315H,ENERGY AUDITING AGENCY LTD====,20151254,1,"2,750.00",CONSULTANTS,02/04/2015,"2,750.00",Technical And Service Support,Statutory Bodies
230315H,ENERGY AUDITING AGENCY LTD====,20151259,1,652,PROFESSIONAL SERVICES,02/04/2015,652,Technical And Service Support,Statutory Bodies
300315H,TRADE WINDS===================,22597,1,434.04,PRINTING,02/04/2015,434.04,Communications,Facilities & Management S
190315H,CRISPIN HUGHES================,2288,1,359.9,PRESS OFFICE,02/04/2015,359.9,Communications,Facilities & Management S
141008,MR EDMUND GRITT,230683,1,"1,000.00",PROFESSIONAL FEES ENFORCEMENT,02/04/2015,"1,000.00",Legal & Democratic Services,Legal Services
300315H,AUTOGLASS LIMITED=============,24972990/24987747,1,"1,430.71",WINDSCREEN & TYRE CHARGES,02/04/2015,"1,430.71",Procurement,Vehicle Management
260315H,REGENT OFFICE CARE LTD========,25560,1,194.11,STRATEGIC (CYCLICAL),02/04/2015,"5,014.53",Technical and Service Support,Cleaning & Janitorial
260315H,REGENT OFFICE CARE LTD========,25560,2,161.76,STRATEGIC (CYCLICAL),02/04/2015,,Technical and Service Support,Cleaning & Janitorial
260315H,REGENT OFFICE CARE LTD========,25560,3,161.76,STRATEGIC (CYCLICAL),02/04/2015,,Technical and Service Support,Cleaning & Janitorial
260315H,REGENT OFFICE CARE LTD========,25560,4,194.11,STRATEGIC (CYCLICAL),02/04/2015,,Technical and Service Support,Cleaning & Janitorial
260315H,REGENT OFFICE CARE LTD========,25560,5,194.11,STRATEGIC (CYCLICAL),02/04/2015,,Technical and Service Support,Cleaning & Janitorial
260315H,REGENT OFFICE CARE LTD========,25560,6,194.11,STRATEGIC (CYCLICAL),02/04/2015,,Technical and Service Support,Cleaning & Janitorial
260315H,REGENT OFFICE CARE LTD========,25560,7,161.76,STRATEGIC (CYCLICAL),02/04/2015,,Technical and Service Support,Cleaning & Janitorial
260315H,REGENT OFFICE CARE LTD========,25560,8,194.11,STRATEGIC (CYCLICAL),02/04/2015,,Technical and Service Support,Cleaning & Janitorial
260315H,REGENT OFFICE CARE LTD========,25560,9,161.76,STRATEGIC (CYCLICAL),02/04/2015,,Technical and Service Support,Cleaning & Janitorial
260315H,REGENT OFFICE CARE LTD========,25560,10,194.11,STRATEGIC (CYCLICAL),02/04/2015,,Technical and Service Support,Cleaning & Janitorial
260315H,REGENT OFFICE CARE LTD========,25560,11,194.11,STRATEGIC (CYCLICAL),02/04/2015,,Technical and Service Support,Cleaning & Janitorial
260315H,REGENT OFFICE CARE LTD========,25560,12,161.76,STRATEGIC (CYCLICAL),02/04/2015,,Technical and Service Support,Cleaning & Janitorial
260315H,REGENT OFFICE CARE LTD========,25560,13,161.76,STRATEGIC (CYCLICAL),02/04/2015,,Technical and Service Support,Cleaning & Janitorial
260315H,REGENT OFFICE CARE LTD========,25560,14,194.11,STRATEGIC (CYCLICAL),02/04/2015,,Technical and Service Support,Cleaning & Janitorial
260315H,REGENT OFFICE CARE LTD========,25560,15,161.76,STRATEGIC (CYCLICAL),02/04/2015,,Technical and Service Support,Cleaning & Janitorial
260315H,REGENT OFFICE CARE LTD========,25560,16,161.76,STRATEGIC (CYCLICAL),02/04/2015,,Technical and Service Support,Cleaning & Janitorial
260315H,REGENT OFFICE CARE LTD========,25560,17,194.11,STRATEGIC (CYCLICAL),02/04/2015,,Technical and Service Support,Cleaning & Janitorial
260315H,REGENT OFFICE CARE LTD========,25560,18,194.11,STRATEGIC (CYCLICAL),02/04/2015,,Technical and Service Support,Cleaning & Janitorial
260315H,REGENT OFFICE CARE LTD========,25560,19,194.11,STRATEGIC (CYCLICAL),02/04/2015,,Technical and Service Support,Cleaning & Janitorial
260315H,REGENT OFFICE CARE LTD========,25560,20,161.76,STRATEGIC (CYCLICAL),02/04/2015,,Technical and Service Support,Cleaning & Janitorial
260315H,REGENT OFFICE CARE LTD========,25560,21,161.76,STRATEGIC (CYCLICAL),02/04/2015,,Technical and Service Support,Cleaning & Janitorial
260315H,REGENT OFFICE CARE LTD========,25560,22,194.11,STRATEGIC (CYCLICAL),02/04/2015,,Technical and Service Support,Cleaning & Janitorial
260315H,REGENT OFFICE CARE LTD========,25560,23,161.76,STRATEGIC (CYCLICAL),02/04/2015,,Technical And Service Support,Cleaning & Janitorial
260315H,REGENT OFFICE CARE LTD========,25560,24,161.76,STRATEGIC (CYCLICAL),02/04/2015,,Technical And Service Support,Cleaning & Janitorial
260315H,REGENT OFFICE CARE LTD========,25560,25,194.11,STRATEGIC (CYCLICAL),02/04/2015,,Technical and Service Support,Cleaning & Janitorial
260315H,REGENT OFFICE CARE LTD========,25560,26,161.76,STRATEGIC (CYCLICAL),02/04/2015,,Technical and Service Support,Cleaning & Janitorial
260315H,REGENT OFFICE CARE LTD========,25560,27,194.11,STRATEGIC (CYCLICAL),02/04/2015,,Technical and Service Support,Cleaning & Janitorial
260315H,REGENT OFFICE CARE LTD========,25560,28,194.11,STRATEGIC (CYCLICAL),02/04/2015,,Technical and Service Support,Cleaning & Janitorial
300315H,PELI PRODUCTS (UK) LTD========,267094,1,675.18,PROTECTIVE EQUIPMENT,02/04/2015,747.18,Technical And Service Support,Fire & Rescue
300315H,PELI PRODUCTS (UK) LTD========,267094,2,60,PROTECTIVE EQUIPMENT,02/04/2015,,Technical And Service Support,Fire & Rescue
300315H,PELI PRODUCTS (UK) LTD========,267094,3,12,PROTECTIVE EQUIPMENT,02/04/2015,,Technical And Service Support,Fire & Rescue
300315H,B NOKES CONTRACTS LTD,2673,1,320,TACTICAL DAY TO DAY,02/04/2015,320,Technical And Service Support,"Works - Construction, R&M"
300315H,B NOKES CONTRACTS LTD,2674,1,"6,182.50",STRATEGIC (NON CYCLICAL),02/04/2015,"6,182.50",Technical and Service Support,"Works - Construction, R&M"
300315H,B NOKES CONTRACTS LTD,2675,1,550,TACTICAL DAY TO DAY,02/04/2015,550,Technical And Service Support,"Works - Construction, R&M"
300315H,B NOKES CONTRACTS LTD,2676,1,"3,865.00",STRATEGIC (NON CYCLICAL),02/04/2015,"3,865.00",Technical and Service Support,"Works - Construction, R&M"
300315H,B NOKES CONTRACTS LTD,2677,1,"4,837.00",STRATEGIC (NON CYCLICAL),02/04/2015,"4,837.00",Technical and Service Support,"Works - Construction, R&M"
300315H,B NOKES CONTRACTS LTD,2686,1,"20,076.42",DEVELOPMENT  EXPENSES-CONTRACT,02/04/2015,"20,076.42",Technical and Service Support,"Works - Construction, R&M"
260315H,ARKAS LIMITED=================,26873,1,776.26,STRATEGIC (CYCLICAL),02/04/2015,"1,895.14",Technical And Service Support,"Works - Construction, R&M"
260315H,ARKAS LIMITED=================,26873,2,362.5,STRATEGIC (CYCLICAL),02/04/2015,,Technical And Service Support,"Works - Construction, R&M"
260315H,ARKAS LIMITED=================,26873,3,376.96,STRATEGIC (CYCLICAL),02/04/2015,,Technical And Service Support,"Works - Construction, R&M"
260315H,ARKAS LIMITED=================,26873,4,379.42,STRATEGIC (CYCLICAL),02/04/2015,,Technical And Service Support,"Works - Construction, R&M"
260315H,ARKAS LIMITED=================,26876,1,167.33,STRATEGIC (CYCLICAL),02/04/2015,912.34,Technical And Service Support,"Works - Construction, R&M"
260315H,ARKAS LIMITED=================,26876,2,214,TACTICAL DAY TO DAY,02/04/2015,,Technical And Service Support,"Works - Construction, R&M"
260315H,ARKAS LIMITED=================,26876,3,164.5,STRATEGIC (CYCLICAL),02/04/2015,,Technical And Service Support,"Works - Construction, R&M"
260315H,ARKAS LIMITED=================,26876,4,366.51,STRATEGIC (CYCLICAL),02/04/2015,,Technical And Service Support,"Works - Construction, R&M"
300315H,ARKAS LIMITED=================,26881,1,222.6,STRATEGIC (CYCLICAL),02/04/2015,939.2,Technical And Service Support,"Works - Construction, R&M"
300315H,ARKAS LIMITED=================,26881,2,247,STRATEGIC (CYCLICAL),02/04/2015,,Technical And Service Support,"Works - Construction, R&M"
300315H,ARKAS LIMITED=================,26881,3,272.1,TACTICAL DAY TO DAY,02/04/2015,,Technical And Service Support,"Works - Construction, R&M"
300315H,ARKAS LIMITED=================,26881,4,197.5,STRATEGIC (CYCLICAL),02/04/2015,,Technical And Service Support,"Works - Construction, R&M"
260315H,ARKAS LIMITED=================,26883,1,197.5,TACTICAL DAY TO DAY,02/04/2015,"1,070.92",Technical And Service Support,"Works - Construction, R&M"
260315H,ARKAS LIMITED=================,26883,2,197.5,STRATEGIC (CYCLICAL),02/04/2015,,Technical And Service Support,"Works - Construction, R&M"
260315H,ARKAS LIMITED=================,26883,3,461.92,STRATEGIC (CYCLICAL),02/04/2015,,Technical And Service Support,"Works - Construction, R&M"
260315H,ARKAS LIMITED=================,26883,4,214,STRATEGIC (CYCLICAL),02/04/2015,,Technical And Service Support,"Works - Construction, R&M"
270315H,DRAEGER SAFETY UK LIMITED=====,2910011747,1,"3,292.00",PROFESSIONAL DEVELOPMENT,02/04/2015,"6,584.00",Technical And Service Support,Fire & Rescue
270315H,DRAEGER SAFETY UK LIMITED=====,2910011747,2,"3,292.00",PROFESSIONAL DEVELOPMENT,02/04/2015,,Technical And Service Support,Fire & Rescue
270315H,DRAEGER SAFETY UK LIMITED=====,2910011748,1,"1,700.00",PROFESSIONAL DEVELOPMENT,02/04/2015,"1,700.00",Technical And Service Support,Fire & Rescue
270315H,DRAEGER SAFETY UK LIMITED=====,2910011749,1,"1,418.50",PROTECTIVE EQUIPT - PARTS,02/04/2015,"1,418.50",Technical and Service Support,Fire & Rescue
240315H,DRAEGER SAFETY UK LIMITED=====,2910011806,1,241.5,REPAIR & MAINTENANCE,02/04/2015,"2,076.81",Technical And Service Support,Fire & Rescue
240315H,DRAEGER SAFETY UK LIMITED=====,2910011806,2,82.8,REPAIR & MAINTENANCE,02/04/2015,,Technical And Service Support,Fire & Rescue
240315H,DRAEGER SAFETY UK LIMITED=====,2910011806,3,"1,194.95",REPAIR & MAINTENANCE,02/04/2015,,Technical And Service Support,Fire & Rescue
240315H,DRAEGER SAFETY UK LIMITED=====,2910011806,4,557.56,REPAIR & MAINTENANCE,02/04/2015,,Technical And Service Support,Fire & Rescue
250315H,DRAEGER SAFETY UK LIMITED=====,2910011826,1,358.05,REPAIR & MAINTENANCE,02/04/2015,358.05,Technical And Service Support,Fire & Rescue
300315H,DRAEGER SAFETY UK LIMITED=====,2910012763,1,69,REPAIR & MAINTENANCE,02/04/2015,546.98,Technical And Service Support,Fire & Rescue
300315H,DRAEGER SAFETY UK LIMITED=====,2910012763,2,477.98,REPAIR & MAINTENANCE,02/04/2015,,Technical And Service Support,Fire & Rescue
300315H,PRECISE MEDIA MONITORING LTD==,311898,1,577.7,PRESS OFFICE,02/04/2015,577.7,Communications,Education
260315H,S W BRUCE & CO LTD,31790,1,"17,410.39",DEVELOPMENT  EXPENSES-CONTRACT,02/04/2015,"19,998.00",Technical and Service Support,"Works - Construction, R&M"
260315H,S W BRUCE & CO LTD,31790,2,"2,587.61",DEVELOPMENT  EXPENSES-CONTRACT,02/04/2015,,Technical and Service Support,"Works - Construction, R&M"
260315H,STORM TECHNOLOGIES============,318629,1,"2,110.35",TELECOMMUNICATIONS,02/04/2015,"2,532.42",Communications,ICT
260315H,STORM TECHNOLOGIES============,318629,2,422.07,ACQUISITIONS,02/04/2015,,Information and Communication Technology,ICT
300315H,S W BRUCE & CO LTD,31978,1,617.64,DEVELOPMENT  EXPENSES-CONTRACT,02/04/2015,617.64,Technical and Service Support,"Works - Construction, R&M"
300315H,S W BRUCE & CO LTD,32129,1,"4,679.02",STRATEGIC (NON CYCLICAL),02/04/2015,"4,679.02",Technical and Service Support,"Works - Construction, R&M"
230315G,S W BRUCE & CO LTD,32131,1,"2,500.87",STRATEGIC (NON CYCLICAL),02/04/2015,"2,500.87",Technical and Service Support,"Works - Construction, R&M"
230315G,S W BRUCE & CO LTD,32132,1,"4,631.25",STRATEGIC (NON CYCLICAL),02/04/2015,"4,631.25",Technical and Service Support,"Works - Construction, R&M"
240315H,S W BRUCE & CO LTD,32133,1,"8,044.73",STRATEGIC (NON CYCLICAL),02/04/2015,"8,044.73",Technical and Service Support,"Works - Construction, R&M"
230315G,S W BRUCE & CO LTD,32134,1,"8,310.90",STRATEGIC (NON CYCLICAL),02/04/2015,"8,310.90",Technical and Service Support,"Works - Construction, R&M"
230315G,S W BRUCE & CO LTD,32135,1,"4,114.50",STRATEGIC (NON CYCLICAL),02/04/2015,"4,114.50",Technical and Service Support,"Works - Construction, R&M"
230315G,S W BRUCE & CO LTD,32136,1,"3,810.30",STRATEGIC (NON CYCLICAL),02/04/2015,"3,810.30",Technical and Service Support,"Works - Construction, R&M"
260315H,S W BRUCE & CO LTD,32176,1,"18,996.72",DEVELOPMENT  EXPENSES-CONTRACT,02/04/2015,"41,500.32",Technical and Service Support,"Works - Construction, R&M"
260315H,S W BRUCE & CO LTD,32176,2,"22,503.60",DEVELOPMENT  EXPENSES-CONTRACT,02/04/2015,,Technical and Service Support,"Works - Construction, R&M"
300315H,BEAUMONT CONSTRUCTION SERVICES,3428,1,"4,650.00",STRATEGIC (NON CYCLICAL),02/04/2015,"4,650.00",Technical and Service Support,"Works - Construction, R&M"
270315H,EUROLOOS LTD,34345,1,"1,495.00",OPERATIONAL EQUIP-PURCHASE,02/04/2015,"1,495.00",Operations Non Fire Stations,Facilities & Management S
300315H,PRESTIGE PROJECTS LTD,3459,1,295,OPERATIONAL EQUIP-PURCHASE,02/04/2015,295,Community Safety Delivery,Social Community Care S&S
230315H,HUNTERS CONTRACTS LIMITED,349505,1,598.5,OFFICE FURNITURE,02/04/2015,598.5,Operations Fire Stations,Furniture
270315H,MCGRATH BROS (WASTE CONTROL) L,358830,1,268.4,REFUSE COLLECTION,02/04/2015,"15,655.92",Technical And Service Support,Environmental Services
270315H,MCGRATH BROS (WASTE CONTROL) L,358830,2,112.16,REFUSE COLLECTION,02/04/2015,,Technical And Service Support,Environmental Services
270315H,MCGRATH BROS (WASTE CONTROL) L,358830,3,209.36,REFUSE COLLECTION,02/04/2015,,Technical And Service Support,Environmental Services
270315H,MCGRATH BROS (WASTE CONTROL) L,358830,4,82.64,REFUSE COLLECTION,02/04/2015,,Technical And Service Support,Environmental Services
270315H,MCGRATH BROS (WASTE CONTROL) L,358830,5,112.16,REFUSE COLLECTION,02/04/2015,,Technical And Service Support,Environmental Services
270315H,MCGRATH BROS (WASTE CONTROL) L,358830,6,82.64,REFUSE COLLECTION,02/04/2015,,Technical And Service Support,Environmental Services
270315H,MCGRATH BROS (WASTE CONTROL) L,358830,7,29.52,REFUSE COLLECTION,02/04/2015,,Technical And Service Support,Environmental Services
270315H,MCGRATH BROS (WASTE CONTROL) L,358830,8,144.56,REFUSE COLLECTION,02/04/2015,,Technical And Service Support,Environmental Services
270315H,MCGRATH BROS (WASTE CONTROL) L,358830,9,112.16,REFUSE COLLECTION,02/04/2015,,Technical And Service Support,Environmental Services
270315H,MCGRATH BROS (WASTE CONTROL) L,358830,10,82.64,REFUSE COLLECTION,02/04/2015,,Technical And Service Support,Environmental Services
270315H,MCGRATH BROS (WASTE CONTROL) L,358830,11,29.52,REFUSE COLLECTION,02/04/2015,,Technical And Service Support,Environmental Services
270315H,MCGRATH BROS (WASTE CONTROL) L,358830,12,115.04,REFUSE COLLECTION,02/04/2015,,Technical And Service Support,Environmental Services
270315H,MCGRATH BROS (WASTE CONTROL) L,358830,13,144.56,REFUSE COLLECTION,02/04/2015,,Technical And Service Support,Environmental Services
270315H,MCGRATH BROS (WASTE CONTROL) L,358830,14,268.4,REFUSE COLLECTION,02/04/2015,,Technical And Service Support,Environmental Services
270315H,MCGRATH BROS (WASTE CONTROL) L,358830,15,112.16,REFUSE COLLECTION,02/04/2015,,Technical And Service Support,Environmental Services
270315H,MCGRATH BROS (WASTE CONTROL) L,358830,16,333.2,REFUSE COLLECTION,02/04/2015,,Technical And Service Support,Environmental Services
270315H,MCGRATH BROS (WASTE CONTROL) L,358830,17,82.64,REFUSE COLLECTION,02/04/2015,,Technical And Service Support,Environmental Services
270315H,MCGRATH BROS (WASTE CONTROL) L,358830,18,268.4,REFUSE COLLECTION,02/04/2015,,Technical And Service Support,Environmental Services
270315H,MCGRATH BROS (WASTE CONTROL) L,358830,19,29.52,REFUSE COLLECTION,02/04/2015,,Technical And Service Support,Environmental Services
270315H,MCGRATH BROS (WASTE CONTROL) L,358830,20,333.2,REFUSE COLLECTION,02/04/2015,,Technical And Service Support,Environmental Services
270315H,MCGRATH BROS (WASTE CONTROL) L,358830,21,82.64,REFUSE COLLECTION,02/04/2015,,Technical And Service Support,Environmental Services
270315H,MCGRATH BROS (WASTE CONTROL) L,358830,22,82.6,REFUSE COLLECTION,02/04/2015,,Technical And Service Support,Environmental Services
270315H,MCGRATH BROS (WASTE CONTROL) L,358830,23,82.64,REFUSE COLLECTION,02/04/2015,,Technical And Service Support,Environmental Services
270315H,MCGRATH BROS (WASTE CONTROL) L,358830,24,29.52,REFUSE COLLECTION,02/04/2015,,Technical And Service Support,Environmental Services
270315H,MCGRATH BROS (WASTE CONTROL) L,358830,25,112.16,REFUSE COLLECTION,02/04/2015,,Technical And Service Support,Environmental Services
270315H,MCGRATH BROS (WASTE CONTROL) L,358830,26,82.64,REFUSE COLLECTION,02/04/2015,,Technical And Service Support,Environmental Services
270315H,MCGRATH BROS (WASTE CONTROL) L,358830,27,268.4,REFUSE COLLECTION,02/04/2015,,Technical And Service Support,Environmental Services
270315H,MCGRATH BROS (WASTE CONTROL) L,358830,28,203.6,REFUSE COLLECTION,02/04/2015,,Technical And Service Support,Environmental Services
270315H,MCGRATH BROS (WASTE CONTROL) L,358830,29,82.64,REFUSE COLLECTION,02/04/2015,,Technical And Service Support,Environmental Services
270315H,MCGRATH BROS (WASTE CONTROL) L,358830,30,112.16,REFUSE COLLECTION,02/04/2015,,Technical And Service Support,Environmental Services
270315H,MCGRATH BROS (WASTE CONTROL) L,358830,31,268.4,REFUSE COLLECTION,02/04/2015,,Technical And Service Support,Environmental Services
270315H,MCGRATH BROS (WASTE CONTROL) L,358830,32,112.16,REFUSE COLLECTION,02/04/2015,,Technical And Service Support,Environmental Services
270315H,MCGRATH BROS (WASTE CONTROL) L,358830,33,112.16,REFUSE COLLECTION,02/04/2015,,Technical And Service Support,Environmental Services
270315H,MCGRATH BROS (WASTE CONTROL) L,358830,34,144.56,REFUSE COLLECTION,02/04/2015,,Technical And Service Support,Environmental Services
270315H,MCGRATH BROS (WASTE CONTROL) L,358830,35,112.16,REFUSE COLLECTION,02/04/2015,,Technical And Service Support,Environmental Services
270315H,MCGRATH BROS (WASTE CONTROL) L,358830,36,144.56,REFUSE COLLECTION,02/04/2015,,Technical And Service Support,Environmental Services
270315H,MCGRATH BROS (WASTE CONTROL) L,358830,37,115.04,REFUSE COLLECTION,02/04/2015,,Technical And Service Support,Environmental Services
270315H,MCGRATH BROS (WASTE CONTROL) L,358830,38,82.64,REFUSE COLLECTION,02/04/2015,,Technical And Service Support,Environmental Services
270315H,MCGRATH BROS (WASTE CONTROL) L,358830,39,203.6,REFUSE COLLECTION,02/04/2015,,Technical And Service Support,Environmental Services
270315H,MCGRATH BROS (WASTE CONTROL) L,358830,40,203.6,REFUSE COLLECTION,02/04/2015,,Technical And Service Support,Environmental Services
270315H,MCGRATH BROS (WASTE CONTROL) L,358830,41,112.16,REFUSE COLLECTION,02/04/2015,,Technical And Service Support,Environmental Services
270315H,MCGRATH BROS (WASTE CONTROL) L,358830,42,82.64,REFUSE COLLECTION,02/04/2015,,Technical And Service Support,Environmental Services
270315H,MCGRATH BROS (WASTE CONTROL) L,358830,43,82.64,REFUSE COLLECTION,02/04/2015,,Technical And Service Support,Environmental Services
270315H,MCGRATH BROS (WASTE CONTROL) L,358830,44,237.44,REFUSE COLLECTION,02/04/2015,,Technical And Service Support,Environmental Services
270315H,MCGRATH BROS (WASTE CONTROL) L,358830,45,203.6,REFUSE COLLECTION,02/04/2015,,Technical And Service Support,Environmental Services
270315H,MCGRATH BROS (WASTE CONTROL) L,358830,46,112.16,REFUSE COLLECTION,02/04/2015,,Technical And Service Support,Environmental Services
270315H,MCGRATH BROS (WASTE CONTROL) L,358830,47,82.64,REFUSE COLLECTION,02/04/2015,,Technical And Service Support,Environmental Services
270315H,MCGRATH BROS (WASTE CONTROL) L,358830,48,82.64,REFUSE COLLECTION,02/04/2015,,Technical And Service Support,Environmental Services
270315H,MCGRATH BROS (WASTE CONTROL) L,358830,49,112.16,REFUSE COLLECTION,02/04/2015,,Technical And Service Support,Environmental Services
270315H,MCGRATH BROS (WASTE CONTROL) L,358830,50,268.4,REFUSE COLLECTION,02/04/2015,,Technical And Service Support,Environmental Services
270315H,MCGRATH BROS (WASTE CONTROL) L,358830,51,82.64,REFUSE COLLECTION,02/04/2015,,Technical And Service Support,Environmental Services
270315H,MCGRATH BROS (WASTE CONTROL) L,358830,52,82.64,REFUSE COLLECTION,02/04/2015,,Technical And Service Support,Environmental Services
270315H,MCGRATH BROS (WASTE CONTROL) L,358830,53,112.16,REFUSE COLLECTION,02/04/2015,,Technical And Service Support,Environmental Services
270315H,MCGRATH BROS (WASTE CONTROL) L,358830,54,29.52,REFUSE COLLECTION,02/04/2015,,Technical And Service Support,Environmental Services
270315H,MCGRATH BROS (WASTE CONTROL) L,358830,55,115.04,REFUSE COLLECTION,02/04/2015,,Technical And Service Support,Environmental Services
270315H,MCGRATH BROS (WASTE CONTROL) L,358830,56,29.52,REFUSE COLLECTION,02/04/2015,,Technical And Service Support,Environmental Services
270315H,MCGRATH BROS (WASTE CONTROL) L,358830,57,144.56,REFUSE COLLECTION,02/04/2015,,Technical And Service Support,Environmental Services
270315H,MCGRATH BROS (WASTE CONTROL) L,358830,58,82.64,REFUSE COLLECTION,02/04/2015,,Technical And Service Support,Environmental Services
270315H,MCGRATH BROS (WASTE CONTROL) L,358830,59,268.4,REFUSE COLLECTION,02/04/2015,,Technical And Service Support,Environmental Services
270315H,MCGRATH BROS (WASTE CONTROL) L,358830,60,112.16,REFUSE COLLECTION,02/04/2015,,Technical And Service Support,Environmental Services
270315H,MCGRATH BROS (WASTE CONTROL) L,358830,61,82.64,REFUSE COLLECTION,02/04/2015,,Technical And Service Support,Environmental Services
270315H,MCGRATH BROS (WASTE CONTROL) L,358830,62,268.4,REFUSE COLLECTION,02/04/2015,,Technical And Service Support,Environmental Services
270315H,MCGRATH BROS (WASTE CONTROL) L,358830,63,70.08,REFUSE COLLECTION,02/04/2015,,Technical And Service Support,Environmental Services
270315H,MCGRATH BROS (WASTE CONTROL) L,358830,64,268.4,REFUSE COLLECTION,02/04/2015,,Technical And Service Support,Environmental Services
270315H,MCGRATH BROS (WASTE CONTROL) L,358830,65,82.64,REFUSE COLLECTION,02/04/2015,,Technical And Service Support,Environmental Services
270315H,MCGRATH BROS (WASTE CONTROL) L,358830,66,112.16,REFUSE COLLECTION,02/04/2015,,Technical And Service Support,Environmental Services
270315H,MCGRATH BROS (WASTE CONTROL) L,358830,67,112.16,REFUSE COLLECTION,02/04/2015,,Technical And Service Support,Environmental Services
270315H,MCGRATH BROS (WASTE CONTROL) L,358830,68,112.16,REFUSE COLLECTION,02/04/2015,,Technical And Service Support,Environmental Services
270315H,MCGRATH BROS (WASTE CONTROL) L,358830,69,82.64,REFUSE COLLECTION,02/04/2015,,Technical And Service Support,Environmental Services
270315H,MCGRATH BROS (WASTE CONTROL) L,358830,70,289.12,REFUSE COLLECTION,02/04/2015,,Technical And Service Support,Environmental Services
270315H,MCGRATH BROS (WASTE CONTROL) L,358830,71,82.64,REFUSE COLLECTION,02/04/2015,,Technical And Service Support,Environmental Services
270315H,MCGRATH BROS (WASTE CONTROL) L,358830,72,112.16,REFUSE COLLECTION,02/04/2015,,Technical And Service Support,Environmental Services
270315H,MCGRATH BROS (WASTE CONTROL) L,358830,73,112.16,REFUSE COLLECTION,02/04/2015,,Technical And Service Support,Environmental Services
270315H,MCGRATH BROS (WASTE CONTROL) L,358830,74,115.04,REFUSE COLLECTION,02/04/2015,,Technical And Service Support,Environmental Services
270315H,MCGRATH BROS (WASTE CONTROL) L,358830,75,82.64,REFUSE COLLECTION,02/04/2015,,Technical And Service Support,Environmental Services
270315H,MCGRATH BROS (WASTE CONTROL) L,358830,76,82.64,REFUSE COLLECTION,02/04/2015,,Technical And Service Support,Environmental Services
270315H,MCGRATH BROS (WASTE CONTROL) L,358830,77,82.64,REFUSE COLLECTION,02/04/2015,,Technical And Service Support,Environmental Services
270315H,MCGRATH BROS (WASTE CONTROL) L,358830,78,82.64,REFUSE COLLECTION,02/04/2015,,Technical And Service Support,Environmental Services
270315H,MCGRATH BROS (WASTE CONTROL) L,358830,79,268.4,REFUSE COLLECTION,02/04/2015,,Technical And Service Support,Environmental Services
270315H,MCGRATH BROS (WASTE CONTROL) L,358830,80,112.16,REFUSE COLLECTION,02/04/2015,,Technical And Service Support,Environmental Services
270315H,MCGRATH BROS (WASTE CONTROL) L,358830,81,29.52,REFUSE COLLECTION,02/04/2015,,Technical And Service Support,Environmental Services
270315H,MCGRATH BROS (WASTE CONTROL) L,358830,82,115.04,REFUSE COLLECTION,02/04/2015,,Technical And Service Support,Environmental Services
270315H,MCGRATH BROS (WASTE CONTROL) L,358830,83,112.16,REFUSE COLLECTION,02/04/2015,,Technical And Service Support,Environmental Services
270315H,MCGRATH BROS (WASTE CONTROL) L,358830,84,82.64,REFUSE COLLECTION,02/04/2015,,Technical And Service Support,Environmental Services
270315H,MCGRATH BROS (WASTE CONTROL) L,358830,85,469.02,REFUSE COLLECTION,02/04/2015,,Technical And Service Support,Environmental Services
270315H,MCGRATH BROS (WASTE CONTROL) L,358830,86,82.64,REFUSE COLLECTION,02/04/2015,,Technical And Service Support,Environmental Services
270315H,MCGRATH BROS (WASTE CONTROL) L,358830,87,82.64,REFUSE COLLECTION,02/04/2015,,Technical And Service Support,Environmental Services
270315H,MCGRATH BROS (WASTE CONTROL) L,358830,88,268.4,REFUSE COLLECTION,02/04/2015,,Technical And Service Support,Environmental Services
270315H,MCGRATH BROS (WASTE CONTROL) L,358830,89,82.64,REFUSE COLLECTION,02/04/2015,,Technical And Service Support,Environmental Services
270315H,MCGRATH BROS (WASTE CONTROL) L,358830,90,112.16,REFUSE COLLECTION,02/04/2015,,Technical And Service Support,Environmental Services
270315H,MCGRATH BROS (WASTE CONTROL) L,358830,91,112.16,REFUSE COLLECTION,02/04/2015,,Technical And Service Support,Environmental Services
270315H,MCGRATH BROS (WASTE CONTROL) L,358830,92,268.4,REFUSE COLLECTION,02/04/2015,,Technical And Service Support,Environmental Services
270315H,MCGRATH BROS (WASTE CONTROL) L,358830,93,112.16,REFUSE COLLECTION,02/04/2015,,Technical And Service Support,Environmental Services
270315H,MCGRATH BROS (WASTE CONTROL) L,358830,94,"1,525.96",REFUSE COLLECTION,02/04/2015,,Technical And Service Support,Environmental Services
270315H,MCGRATH BROS (WASTE CONTROL) L,358830,95,82.64,REFUSE COLLECTION,02/04/2015,,Technical And Service Support,Environmental Services
270315H,MCGRATH BROS (WASTE CONTROL) L,358830,96,120.26,REFUSE COLLECTION,02/04/2015,,Technical And Service Support,Environmental Services
270315H,MCGRATH BROS (WASTE CONTROL) L,358830,97,112.16,REFUSE COLLECTION,02/04/2015,,Technical And Service Support,Environmental Services
270315H,MCGRATH BROS (WASTE CONTROL) L,358830,98,289.12,REFUSE COLLECTION,02/04/2015,,Technical And Service Support,Environmental Services
270315H,MCGRATH BROS (WASTE CONTROL) L,358830,99,82.64,REFUSE COLLECTION,02/04/2015,,Technical And Service Support,Environmental Services
270315H,MCGRATH BROS (WASTE CONTROL) L,358830,100,115.04,REFUSE COLLECTION,02/04/2015,,Technical And Service Support,Environmental Services
270315H,MCGRATH BROS (WASTE CONTROL) L,358830,101,112.16,REFUSE COLLECTION,02/04/2015,,Technical And Service Support,Environmental Services
270315H,MCGRATH BROS (WASTE CONTROL) L,358830,102,29.52,REFUSE COLLECTION,02/04/2015,,Technical And Service Support,Environmental Services
270315H,MCGRATH BROS (WASTE CONTROL) L,358830,103,112.16,REFUSE COLLECTION,02/04/2015,,Technical And Service Support,Environmental Services
270315H,MCGRATH BROS (WASTE CONTROL) L,358830,104,112.16,REFUSE COLLECTION,02/04/2015,,Technical And Service Support,Environmental Services
270315H,MCGRATH BROS (WASTE CONTROL) L,358830,105,115.04,REFUSE COLLECTION,02/04/2015,,Technical And Service Support,Environmental Services
270315H,MCGRATH BROS (WASTE CONTROL) L,358830,106,82.64,REFUSE COLLECTION,02/04/2015,,Technical And Service Support,Environmental Services
270315H,MCGRATH BROS (WASTE CONTROL) L,358830,107,82.64,REFUSE COLLECTION,02/04/2015,,Technical And Service Support,Environmental Services
270315H,MCGRATH BROS (WASTE CONTROL) L,358830,108,29.52,REFUSE COLLECTION,02/04/2015,,Technical And Service Support,Environmental Services
270315H,MCGRATH BROS (WASTE CONTROL) L,358830,109,82.64,REFUSE COLLECTION,02/04/2015,,Technical And Service Support,Environmental Services
260315H,COMPUTACENTRE================,3780019502,1,556.7,MAINTENANCE & SUPPORT,02/04/2015,556.7,Information and Communication Technology,ICT
270315H,CVS INTERNATIONAL,38709,1,"1,037.50",PUBLIC RELATIONS,02/04/2015,"1,037.50",Operational Procedures,Human Resources
260315H,COMPUTACENTRE================,3880404904,1,"1,180.00",ACQUISITIONS,02/04/2015,"16,037.89",Operational Resilience,ICT
260315H,COMPUTACENTRE================,3880404904,2,166.62,ACQUISITIONS,02/04/2015,,Operational Resilience,ICT
260315H,COMPUTACENTRE================,3880404904,3,358.73,ACQUISITIONS,02/04/2015,,Operational Resilience,ICT
260315H,COMPUTACENTRE================,3880404904,4,249.9,ACQUISITIONS,02/04/2015,,Operational Resilience,ICT
260315H,COMPUTACENTRE================,3880404904,5,357.74,ACQUISITIONS,02/04/2015,,Operational Resilience,ICT
260315H,COMPUTACENTRE================,3880404904,6,"1,342.60",ACQUISITIONS,02/04/2015,,Operational Resilience,ICT
260315H,COMPUTACENTRE================,3880404904,7,"3,263.40",ACQUISITIONS,02/04/2015,,Operational Resilience,ICT
260315H,COMPUTACENTRE================,3880404904,8,"5,478.20",ACQUISITIONS,02/04/2015,,Operational Resilience,ICT
260315H,COMPUTACENTRE================,3880404904,9,999.6,ACQUISITIONS,02/04/2015,,Operational Resilience,ICT
260315H,COMPUTACENTRE================,3880404904,10,240.1,ACQUISITIONS,02/04/2015,,Operational Resilience,ICT
260315H,COMPUTACENTRE================,3880404904,11,529.2,ACQUISITIONS,02/04/2015,,Operational Resilience,ICT
260315H,COMPUTACENTRE================,3880404904,12,171.5,ACQUISITIONS,02/04/2015,,Operational Resilience,ICT
260315H,COMPUTACENTRE================,3880404904,13,112.7,ACQUISITIONS,02/04/2015,,Operational Resilience,ICT
260315H,COMPUTACENTRE================,3880404904,14,112.7,ACQUISITIONS,02/04/2015,,Operational Resilience,ICT
260315H,COMPUTACENTRE================,3880404904,15,249.9,ACQUISITIONS,02/04/2015,,Operational Resilience,ICT
260315H,COMPUTACENTRE================,3880404904,16,651.7,ACQUISITIONS,02/04/2015,,Operational Resilience,ICT
260315H,COMPUTACENTRE================,3880404904,17,573.3,ACQUISITIONS,02/04/2015,,Operational Resilience,ICT
260315H,COMPUTACENTRE================,3880408571/3880435393,1,"1,460.58",ACQUISITIONS,02/04/2015,"1,460.58",Information and Communication Technology,ICT
200315H,COMPUTACENTRE================,3880455085,1,338.38,ACQUISITIONS,02/04/2015,338.38,Information and Communication Technology,ICT
250315C,COMPUTACENTRE================,3880461857,1,140,STRATEGIC (NON CYCLICAL),02/04/2015,984.44,Technical And Service Support,ICT
250315C,COMPUTACENTRE================,3880461857,2,211.11,STRATEGIC (NON CYCLICAL),02/04/2015,,Technical And Service Support,ICT
250315C,COMPUTACENTRE================,3880461857,3,633.33,STRATEGIC (NON CYCLICAL),02/04/2015,,Technical And Service Support,ICT
141007,THAMES WATER UTILITIES LTD====,42153-20857N,1,521.44,WATER & SEWERAGE RATES,02/04/2015,521.44,Technical And Service Support,Utilities
141007,THAMES WATER UTILITIES LTD====,47190-45186N,1,"2,941.28",WATER & SEWERAGE RATES,02/04/2015,"2,941.28",Technical And Service Support,Utilities
800060253,*OCS GROUP UK LTD,5000067489-06,1,304.5,REFRESHMENTS,02/04/2015,304.5,Fire Safety Regulation,Catering
800059541,*OCS GROUP UK LTD,5000074388-1,1,"3,232.97",CATERING,02/04/2015,"3,232.97",Technical And Service Support,Catering
800059542,*OCS GROUP UK LTD,5000074388-2,1,678.81,CATERING,02/04/2015,678.81,Technical And Service Support,Catering
300315H,J & B BRAIDWAY LTD,513,1,139.3,CLOTHING,02/04/2015,278.6,Operations Fire Stations,Clothing
300315H,J & B BRAIDWAY LTD,513,2,139.3,CLOTHING,02/04/2015,,Operations Fire Stations,Clothing
260315H,PRESSURE COOLERS LTD==========,569620,1,16.5,CATERING FIXTURES,02/04/2015,"1,180.50",Technical And Service Support,Facilities & Management S
260315H,PRESSURE COOLERS LTD==========,569620,2,8.25,CATERING FIXTURES,02/04/2015,,Technical And Service Support,Facilities & Management S
260315H,PRESSURE COOLERS LTD==========,569620,3,8.25,CATERING FIXTURES,02/04/2015,,Technical And Service Support,Facilities & Management S
260315H,PRESSURE COOLERS LTD==========,569620,4,8.25,CATERING FIXTURES,02/04/2015,,Technical And Service Support,Facilities & Management S
260315H,PRESSURE COOLERS LTD==========,569620,5,8,CATERING FIXTURES,02/04/2015,,Technical And Service Support,Facilities & Management S
260315H,PRESSURE COOLERS LTD==========,569620,6,8.25,CATERING FIXTURES,02/04/2015,,Technical And Service Support,Facilities & Management S
260315H,PRESSURE COOLERS LTD==========,569620,7,8,CATERING FIXTURES,02/04/2015,,Technical And Service Support,Facilities & Management S
260315H,PRESSURE COOLERS LTD==========,569620,8,8.25,CATERING FIXTURES,02/04/2015,,Technical And Service Support,Facilities & Management S
260315H,PRESSURE COOLERS LTD==========,569620,9,8.25,CATERING FIXTURES,02/04/2015,,Technical And Service Support,Facilities & Management S
260315H,PRESSURE COOLERS LTD==========,569620,10,8.25,CATERING FIXTURES,02/04/2015,,Technical And Service Support,Facilities & Management S
260315H,PRESSURE COOLERS LTD==========,569620,11,8.25,CATERING EQUIPMENT,02/04/2015,,Technical And Service Support,Facilities & Management S
260315H,PRESSURE COOLERS LTD==========,569620,12,8.25,CATERING FIXTURES,02/04/2015,,Technical And Service Support,Facilities & Management S
260315H,PRESSURE COOLERS LTD==========,569620,13,8.25,CATERING FIXTURES,02/04/2015,,Technical And Service Support,Facilities & Management S
260315H,PRESSURE COOLERS LTD==========,569620,14,8.25,CATERING FIXTURES,02/04/2015,,Technical And Service Support,Facilities & Management S
260315H,PRESSURE COOLERS LTD==========,569620,15,8,CATERING FIXTURES,02/04/2015,,Technical And Service Support,Facilities & Management S
260315H,PRESSURE COOLERS LTD==========,569620,16,8.25,CATERING FIXTURES,02/04/2015,,Technical And Service Support,Facilities & Management S
260315H,PRESSURE COOLERS LTD==========,569620,17,8,CATERING FIXTURES,02/04/2015,,Technical And Service Support,Facilities & Management S
260315H,PRESSURE COOLERS LTD==========,569620,18,8.25,CATERING FIXTURES,02/04/2015,,Technical And Service Support,Facilities & Management S
260315H,PRESSURE COOLERS LTD==========,569620,19,8.25,CATERING FIXTURES,02/04/2015,,Technical And Service Support,Facilities & Management S
260315H,PRESSURE COOLERS LTD==========,569620,20,8,CATERING FIXTURES,02/04/2015,,Technical And Service Support,Facilities & Management S
260315H,PRESSURE COOLERS LTD==========,569620,21,8.25,CATERING FIXTURES,02/04/2015,,Technical And Service Support,Facilities & Management S
260315H,PRESSURE COOLERS LTD==========,569620,22,8.25,CATERING FIXTURES,02/04/2015,,Technical And Service Support,Facilities & Management S
260315H,PRESSURE COOLERS LTD==========,569620,23,8.25,CATERING FIXTURES,02/04/2015,,Technical And Service Support,Facilities & Management S
260315H,PRESSURE COOLERS LTD==========,569620,24,8,CATERING FIXTURES,02/04/2015,,Technical And Service Support,Facilities & Management S
260315H,PRESSURE COOLERS LTD==========,569620,25,8.25,CATERING FIXTURES,02/04/2015,,Technical And Service Support,Facilities & Management S
260315H,PRESSURE COOLERS LTD==========,569620,26,8.25,CATERING FIXTURES,02/04/2015,,Technical And Service Support,Facilities & Management S
260315H,PRESSURE COOLERS LTD==========,569620,27,8.25,CATERING FIXTURES,02/04/2015,,Technical And Service Support,Facilities & Management S
260315H,PRESSURE COOLERS LTD==========,569620,28,8.25,CATERING EQUIPMENT,02/04/2015,,Procurement,Facilities & Management S
260315H,PRESSURE COOLERS LTD==========,569620,29,8.25,CATERING FIXTURES,02/04/2015,,Technical And Service Support,Facilities & Management S
260315H,PRESSURE COOLERS LTD==========,569620,30,8.25,CATERING EQUIPMENT,02/04/2015,,Technical And Service Support,Facilities & Management S
260315H,PRESSURE COOLERS LTD==========,569620,31,8.25,CATERING FIXTURES,02/04/2015,,Technical And Service Support,Facilities & Management S
260315H,PRESSURE COOLERS LTD==========,569620,32,8.25,CATERING FIXTURES,02/04/2015,,Technical And Service Support,Facilities & Management S
260315H,PRESSURE COOLERS LTD==========,569620,33,8.25,OFFICE EQUIPMENT,02/04/2015,,Fire Safety Regulation,Facilities & Management S
260315H,PRESSURE COOLERS LTD==========,569620,34,8.25,CATERING FIXTURES,02/04/2015,,Technical And Service Support,Facilities & Management S
260315H,PRESSURE COOLERS LTD==========,569620,35,8.25,CATERING FIXTURES,02/04/2015,,Technical And Service Support,Facilities & Management S
260315H,PRESSURE COOLERS LTD==========,569620,36,8.25,CATERING FIXTURES,02/04/2015,,Technical And Service Support,Facilities & Management S
260315H,PRESSURE COOLERS LTD==========,569620,37,8,CATERING FIXTURES,02/04/2015,,Technical And Service Support,Facilities & Management S
260315H,PRESSURE COOLERS LTD==========,569620,38,8,CATERING FIXTURES,02/04/2015,,Technical And Service Support,Facilities & Management S
260315H,PRESSURE COOLERS LTD==========,569620,39,8.25,CATERING FIXTURES,02/04/2015,,Technical And Service Support,Facilities & Management S
260315H,PRESSURE COOLERS LTD==========,569620,40,8.25,CATERING FIXTURES,02/04/2015,,Technical And Service Support,Facilities & Management S
260315H,PRESSURE COOLERS LTD==========,569620,41,8.25,CATERING FIXTURES,02/04/2015,,Technical And Service Support,Facilities & Management S
260315H,PRESSURE COOLERS LTD==========,569620,42,8.25,CATERING FIXTURES,02/04/2015,,Technical And Service Support,Facilities & Management S
260315H,PRESSURE COOLERS LTD==========,569620,43,8,CATERING FIXTURES,02/04/2015,,Technical And Service Support,Facilities & Management S
260315H,PRESSURE COOLERS LTD==========,569620,44,8.25,CATERING FIXTURES,02/04/2015,,Technical And Service Support,Facilities & Management S
260315H,PRESSURE COOLERS LTD==========,569620,45,8.25,CATERING FIXTURES,02/04/2015,,Technical And Service Support,Facilities & Management S
260315H,PRESSURE COOLERS LTD==========,569620,46,8.25,CATERING FIXTURES,02/04/2015,,Technical And Service Support,Facilities & Management S
260315H,PRESSURE COOLERS LTD==========,569620,47,8.25,CATERING FIXTURES,02/04/2015,,Technical And Service Support,Facilities & Management S
260315H,PRESSURE COOLERS LTD==========,569620,48,8.25,CATERING FIXTURES,02/04/2015,,Technical And Service Support,Facilities & Management S
260315H,PRESSURE COOLERS LTD==========,569620,49,8.25,CATERING FIXTURES,02/04/2015,,Technical And Service Support,Facilities & Management S
260315H,PRESSURE COOLERS LTD==========,569620,50,8,CATERING FIXTURES,02/04/2015,,Technical And Service Support,Facilities & Management S
260315H,PRESSURE COOLERS LTD==========,569620,51,8.25,CATERING FIXTURES,02/04/2015,,Technical And Service Support,Facilities & Management S
260315H,PRESSURE COOLERS LTD==========,569620,52,8.25,CATERING EQUIPMENT,02/04/2015,,HR Management,Facilities & Management S
260315H,PRESSURE COOLERS LTD==========,569620,53,8.25,CATERING FIXTURES,02/04/2015,,Technical And Service Support,Facilities & Management S
260315H,PRESSURE COOLERS LTD==========,569620,54,8.25,CATERING FIXTURES,02/04/2015,,Technical And Service Support,Facilities & Management S
260315H,PRESSURE COOLERS LTD==========,569620,55,8.25,CATERING FIXTURES,02/04/2015,,Technical And Service Support,Facilities & Management S
260315H,PRESSURE COOLERS LTD==========,569620,56,8.25,CATERING FIXTURES,02/04/2015,,Technical And Service Support,Facilities & Management S
260315H,PRESSURE COOLERS LTD==========,569620,57,8.25,CATERING FIXTURES,02/04/2015,,Technical And Service Support,Facilities & Management S
260315H,PRESSURE COOLERS LTD==========,569620,58,8.25,CATERING FIXTURES,02/04/2015,,Technical And Service Support,Facilities & Management S
260315H,PRESSURE COOLERS LTD==========,569620,59,8.25,CATERING FIXTURES,02/04/2015,,Technical And Service Support,Facilities & Management S
260315H,PRESSURE COOLERS LTD==========,569620,60,8,CATERING FIXTURES,02/04/2015,,Technical And Service Support,Facilities & Management S
260315H,PRESSURE COOLERS LTD==========,569620,61,8.25,CATERING FIXTURES,02/04/2015,,Technical And Service Support,Facilities & Management S
260315H,PRESSURE COOLERS LTD==========,569620,62,8.25,CATERING FIXTURES,02/04/2015,,Technical And Service Support,Facilities & Management S
260315H,PRESSURE COOLERS LTD==========,569620,63,8.25,CATERING FIXTURES,02/04/2015,,Technical And Service Support,Facilities & Management S
260315H,PRESSURE COOLERS LTD==========,569620,64,8.25,CATERING FIXTURES,02/04/2015,,Technical And Service Support,Facilities & Management S
260315H,PRESSURE COOLERS LTD==========,569620,65,8.25,CATERING FIXTURES,02/04/2015,,Technical And Service Support,Facilities & Management S
260315H,PRESSURE COOLERS LTD==========,569620,66,8.25,CATERING FIXTURES,02/04/2015,,Technical And Service Support,Facilities & Management S
260315H,PRESSURE COOLERS LTD==========,569620,67,8.25,CATERING FIXTURES,02/04/2015,,Technical And Service Support,Facilities & Management S
260315H,PRESSURE COOLERS LTD==========,569620,68,8.25,CATERING FIXTURES,02/04/2015,,Technical And Service Support,Facilities & Management S
260315H,PRESSURE COOLERS LTD==========,569620,69,8.25,CATERING FIXTURES,02/04/2015,,Technical And Service Support,Facilities & Management S
260315H,PRESSURE COOLERS LTD==========,569620,70,8.25,CATERING FIXTURES,02/04/2015,,Technical And Service Support,Facilities & Management S
260315H,PRESSURE COOLERS LTD==========,569620,71,8.25,CATERING FIXTURES,02/04/2015,,Technical And Service Support,Facilities & Management S
260315H,PRESSURE COOLERS LTD==========,569620,72,8.25,CATERING FIXTURES,02/04/2015,,Technical And Service Support,Facilities & Management S
260315H,PRESSURE COOLERS LTD==========,569620,73,8.25,CATERING FIXTURES,02/04/2015,,Technical And Service Support,Facilities & Management S
260315H,PRESSURE COOLERS LTD==========,569620,74,8.25,OFFICE EQUIPMENT,02/04/2015,,CBRN RRT,Facilities & Management S
260315H,PRESSURE COOLERS LTD==========,569620,75,8.25,CATERING FIXTURES,02/04/2015,,Technical And Service Support,Facilities & Management S
260315H,PRESSURE COOLERS LTD==========,569620,76,8,CATERING FIXTURES,02/04/2015,,Technical And Service Support,Facilities & Management S
260315H,PRESSURE COOLERS LTD==========,569620,77,8,CATERING FIXTURES,02/04/2015,,Technical And Service Support,Facilities & Management S
260315H,PRESSURE COOLERS LTD==========,569620,78,8.25,CATERING FIXTURES,02/04/2015,,Technical And Service Support,Facilities & Management S
260315H,PRESSURE COOLERS LTD==========,569620,79,8,CATERING FIXTURES,02/04/2015,,Technical And Service Support,Facilities & Management S
260315H,PRESSURE COOLERS LTD==========,569620,80,8,OFFICE EQUIPMENT,02/04/2015,,Information and Communication Technology,Facilities & Management S
260315H,PRESSURE COOLERS LTD==========,569620,81,8.25,CATERING FIXTURES,02/04/2015,,Technical And Service Support,Facilities & Management S
260315H,PRESSURE COOLERS LTD==========,569620,82,8,CATERING FIXTURES,02/04/2015,,Technical And Service Support,Facilities & Management S
260315H,PRESSURE COOLERS LTD==========,569620,83,8.25,CATERING FIXTURES,02/04/2015,,Technical And Service Support,Facilities & Management S
260315H,PRESSURE COOLERS LTD==========,569620,84,8,CATERING FIXTURES,02/04/2015,,Technical And Service Support,Facilities & Management S
260315H,PRESSURE COOLERS LTD==========,569620,85,8.25,CATERING FIXTURES,02/04/2015,,Technical And Service Support,Facilities & Management S
260315H,PRESSURE COOLERS LTD==========,569620,86,8.25,CATERING FIXTURES,02/04/2015,,Technical And Service Support,Facilities & Management S
260315H,PRESSURE COOLERS LTD==========,569620,87,8,CATERING FIXTURES,02/04/2015,,Technical And Service Support,Facilities & Management S
260315H,PRESSURE COOLERS LTD==========,569620,88,8.25,CATERING FIXTURES,02/04/2015,,Technical And Service Support,Facilities & Management S
260315H,PRESSURE COOLERS LTD==========,569620,89,8.25,CATERING FIXTURES,02/04/2015,,Technical And Service Support,Facilities & Management S
260315H,PRESSURE COOLERS LTD==========,569620,90,8.25,CATERING FIXTURES,02/04/2015,,Technical And Service Support,Facilities & Management S
260315H,PRESSURE COOLERS LTD==========,569620,91,8.25,CATERING FIXTURES,02/04/2015,,Technical And Service Support,Facilities & Management S
260315H,PRESSURE COOLERS LTD==========,569620,92,8.25,CATERING FIXTURES,02/04/2015,,Technical And Service Support,Facilities & Management S
260315H,PRESSURE COOLERS LTD==========,569620,93,8.25,CATERING FIXTURES,02/04/2015,,Technical And Service Support,Facilities & Management S
260315H,PRESSURE COOLERS LTD==========,569620,94,8,CATERING FIXTURES,02/04/2015,,Technical And Service Support,Facilities & Management S
260315H,PRESSURE COOLERS LTD==========,569620,95,8.25,CATERING FIXTURES,02/04/2015,,Technical And Service Support,Facilities & Management S
260315H,PRESSURE COOLERS LTD==========,569620,96,8.25,CATERING FIXTURES,02/04/2015,,Technical And Service Support,Facilities & Management S
260315H,PRESSURE COOLERS LTD==========,569620,97,8.25,CATERING FIXTURES,02/04/2015,,Technical And Service Support,Facilities & Management S
260315H,PRESSURE COOLERS LTD==========,569620,98,8,CATERING FIXTURES,02/04/2015,,Technical And Service Support,Facilities & Management S
260315H,PRESSURE COOLERS LTD==========,569620,99,8,CATERING FIXTURES,02/04/2015,,Technical And Service Support,Facilities & Management S
260315H,PRESSURE COOLERS LTD==========,569620,100,8.25,CATERING FIXTURES,02/04/2015,,Technical And Service Support,Facilities & Management S
260315H,PRESSURE COOLERS LTD==========,569620,101,8.25,CATERING FIXTURES,02/04/2015,,Technical And Service Support,Facilities & Management S
260315H,PRESSURE COOLERS LTD==========,569620,102,8,CATERING FIXTURES,02/04/2015,,Technical And Service Support,Facilities & Management S
260315H,PRESSURE COOLERS LTD==========,569620,103,8.25,CATERING FIXTURES,02/04/2015,,Technical And Service Support,Facilities & Management S
260315H,PRESSURE COOLERS LTD==========,569620,104,8.25,RADIO,02/04/2015,,Information and Communication Technology,Facilities & Management S
260315H,PRESSURE COOLERS LTD==========,569620,105,8.25,CATERING FIXTURES,02/04/2015,,Technical And Service Support,Facilities & Management S
260315H,PRESSURE COOLERS LTD==========,569620,106,8.25,CATERING FIXTURES,02/04/2015,,Technical And Service Support,Facilities & Management S
260315H,PRESSURE COOLERS LTD==========,569620,107,8.25,CATERING FIXTURES,02/04/2015,,Technical And Service Support,Facilities & Management S
260315H,PRESSURE COOLERS LTD==========,569620,108,8,CATERING FIXTURES,02/04/2015,,Technical And Service Support,Facilities & Management S
260315H,PRESSURE COOLERS LTD==========,569620,109,8.25,CATERING FIXTURES,02/04/2015,,Technical And Service Support,Facilities & Management S
260315H,PRESSURE COOLERS LTD==========,569620,110,8.25,CATERING FIXTURES,02/04/2015,,Technical And Service Support,Facilities & Management S
260315H,PRESSURE COOLERS LTD==========,569620,111,8.25,CATERING FIXTURES,02/04/2015,,Technical And Service Support,Facilities & Management S
260315H,PRESSURE COOLERS LTD==========,569620,112,8.25,CATERING FIXTURES,02/04/2015,,Technical And Service Support,Facilities & Management S
260315H,PRESSURE COOLERS LTD==========,569620,113,8.25,CATERING FIXTURES,02/04/2015,,Technical And Service Support,Facilities & Management S
260315H,PRESSURE COOLERS LTD==========,569620,114,8,CATERING EQUIPMENT,02/04/2015,,HR Management,Facilities & Management S
260315H,PRESSURE COOLERS LTD==========,569620,115,8.25,CATERING FIXTURES,02/04/2015,,Technical And Service Support,Facilities & Management S
260315H,PRESSURE COOLERS LTD==========,569620,116,8.25,CATERING FIXTURES,02/04/2015,,Technical And Service Support,Facilities & Management S
260315H,PRESSURE COOLERS LTD==========,569620,117,8.25,CATERING FIXTURES,02/04/2015,,Technical And Service Support,Facilities & Management S
260315H,PRESSURE COOLERS LTD==========,569620,118,8.25,CATERING FIXTURES,02/04/2015,,Technical And Service Support,Facilities & Management S
260315H,PRESSURE COOLERS LTD==========,569620,119,8.25,STATIONERY CONSUMABLES,02/04/2015,,Control and Mobilising,Facilities & Management S
260315H,PRESSURE COOLERS LTD==========,569620,120,8.25,CATERING FIXTURES,02/04/2015,,Technical And Service Support,Facilities & Management S
260315H,PRESSURE COOLERS LTD==========,569620,121,8.25,CATERING FIXTURES,02/04/2015,,Technical And Service Support,Facilities & Management S
260315H,PRESSURE COOLERS LTD==========,569620,122,8,CATERING FIXTURES,02/04/2015,,Technical And Service Support,Facilities & Management S
260315H,PRESSURE COOLERS LTD==========,569620,123,8.25,CATERING FIXTURES,02/04/2015,,Technical And Service Support,Facilities & Management S
260315H,PRESSURE COOLERS LTD==========,569620,124,8.25,CATERING FIXTURES,02/04/2015,,Technical And Service Support,Facilities & Management S
260315H,PRESSURE COOLERS LTD==========,569620,125,8.25,CATERING FIXTURES,02/04/2015,,Technical And Service Support,Facilities & Management S
260315H,PRESSURE COOLERS LTD==========,569620,126,8.25,CATERING FIXTURES,02/04/2015,,Technical And Service Support,Facilities & Management S
260315H,PRESSURE COOLERS LTD==========,569620,127,8.25,CATERING FIXTURES,02/04/2015,,Technical And Service Support,Facilities & Management S
260315H,PRESSURE COOLERS LTD==========,569620,128,8.25,CATERING FIXTURES,02/04/2015,,Technical And Service Support,Facilities & Management S
260315H,PRESSURE COOLERS LTD==========,569620,129,8,CATERING FIXTURES,02/04/2015,,Technical And Service Support,Facilities & Management S
260315H,PRESSURE COOLERS LTD==========,569620,130,8,CATERING FIXTURES,02/04/2015,,Technical And Service Support,Facilities & Management S
260315H,PRESSURE COOLERS LTD==========,569620,131,8.25,CATERING FIXTURES,02/04/2015,,Technical And Service Support,Facilities & Management S
260315H,PRESSURE COOLERS LTD==========,569620,132,8.25,CATERING FIXTURES,02/04/2015,,Technical And Service Support,Facilities & Management S
260315H,PRESSURE COOLERS LTD==========,569620,133,8,CATERING FIXTURES,02/04/2015,,Technical And Service Support,Facilities & Management S
260315H,PRESSURE COOLERS LTD==========,569620,134,8.25,CATERING FIXTURES,02/04/2015,,Technical And Service Support,Facilities & Management S
260315H,PRESSURE COOLERS LTD==========,569620,135,8.25,CATERING FIXTURES,02/04/2015,,Technical And Service Support,Facilities & Management S
260315H,PRESSURE COOLERS LTD==========,569620,136,8.25,CATERING FIXTURES,02/04/2015,,Technical And Service Support,Facilities & Management S
260315H,PRESSURE COOLERS LTD==========,569620,137,8.25,CATERING FIXTURES,02/04/2015,,Technical And Service Support,Facilities & Management S
260315H,PRESSURE COOLERS LTD==========,569620,138,8,CATERING FIXTURES,02/04/2015,,Technical And Service Support,Facilities & Management S
260315H,PRESSURE COOLERS LTD==========,569620,139,8.25,CATERING FIXTURES,02/04/2015,,Technical And Service Support,Facilities & Management S
260315H,PRESSURE COOLERS LTD==========,569620,140,8.25,CATERING FIXTURES,02/04/2015,,Technical And Service Support,Facilities & Management S
260315H,PRESSURE COOLERS LTD==========,569620,141,8,CATERING FIXTURES,02/04/2015,,Technical And Service Support,Facilities & Management S
260315H,PRESSURE COOLERS LTD==========,569620,142,8.25,OPERATIONAL EQUIP-PURCHASE,02/04/2015,,Command Units,Facilities & Management S
260315H,PRESSURE COOLERS LTD==========,569620,143,8.25,CATERING EQUIPMENT,02/04/2015,,Cadets,Facilities & Management S
250315H,PRESSURE COOLERS LTD==========,570041,1,8.25,CATERING FIXTURES,02/04/2015,"1,172.25",Technical And Service Support,Facilities & Management S
250315H,PRESSURE COOLERS LTD==========,570041,2,8.25,CATERING FIXTURES,02/04/2015,,Technical And Service Support,Facilities & Management S
250315H,PRESSURE COOLERS LTD==========,570041,3,8.25,CATERING FIXTURES,02/04/2015,,Technical And Service Support,Facilities & Management S
250315H,PRESSURE COOLERS LTD==========,570041,4,8.25,CATERING FIXTURES,02/04/2015,,Technical And Service Support,Facilities & Management S
250315H,PRESSURE COOLERS LTD==========,570041,5,8,CATERING FIXTURES,02/04/2015,,Technical And Service Support,Facilities & Management S
250315H,PRESSURE COOLERS LTD==========,570041,6,8.25,CATERING FIXTURES,02/04/2015,,Technical And Service Support,Facilities & Management S
250315H,PRESSURE COOLERS LTD==========,570041,7,8,CATERING FIXTURES,02/04/2015,,Technical And Service Support,Facilities & Management S
250315H,PRESSURE COOLERS LTD==========,570041,8,8.25,CATERING FIXTURES,02/04/2015,,Technical And Service Support,Facilities & Management S
250315H,PRESSURE COOLERS LTD==========,570041,9,8.25,CATERING FIXTURES,02/04/2015,,Technical And Service Support,Facilities & Management S
250315H,PRESSURE COOLERS LTD==========,570041,10,8.25,CATERING FIXTURES,02/04/2015,,Technical And Service Support,Facilities & Management S
250315H,PRESSURE COOLERS LTD==========,570041,11,8.25,CATERING EQUIPMENT,02/04/2015,,Technical And Service Support,Facilities & Management S
250315H,PRESSURE COOLERS LTD==========,570041,12,8.25,CATERING FIXTURES,02/04/2015,,Technical And Service Support,Facilities & Management S
250315H,PRESSURE COOLERS LTD==========,570041,13,8.25,CATERING FIXTURES,02/04/2015,,Technical And Service Support,Facilities & Management S
250315H,PRESSURE COOLERS LTD==========,570041,14,8.25,CATERING FIXTURES,02/04/2015,,Technical And Service Support,Facilities & Management S
250315H,PRESSURE COOLERS LTD==========,570041,15,8,CATERING FIXTURES,02/04/2015,,Technical And Service Support,Facilities & Management S
250315H,PRESSURE COOLERS LTD==========,570041,16,8.25,CATERING FIXTURES,02/04/2015,,Technical And Service Support,Facilities & Management S
250315H,PRESSURE COOLERS LTD==========,570041,17,8,CATERING FIXTURES,02/04/2015,,Technical And Service Support,Facilities & Management S
250315H,PRESSURE COOLERS LTD==========,570041,18,8.25,CATERING FIXTURES,02/04/2015,,Technical And Service Support,Facilities & Management S
250315H,PRESSURE COOLERS LTD==========,570041,19,8.25,CATERING FIXTURES,02/04/2015,,Technical And Service Support,Facilities & Management S
250315H,PRESSURE COOLERS LTD==========,570041,20,8,CATERING FIXTURES,02/04/2015,,Technical And Service Support,Facilities & Management S
250315H,PRESSURE COOLERS LTD==========,570041,21,8.25,CATERING FIXTURES,02/04/2015,,Technical And Service Support,Facilities & Management S
250315H,PRESSURE COOLERS LTD==========,570041,22,8.25,CATERING FIXTURES,02/04/2015,,Technical And Service Support,Facilities & Management S
250315H,PRESSURE COOLERS LTD==========,570041,23,8.25,CATERING FIXTURES,02/04/2015,,Technical And Service Support,Facilities & Management S
250315H,PRESSURE COOLERS LTD==========,570041,24,8,CATERING FIXTURES,02/04/2015,,Technical And Service Support,Facilities & Management S
250315H,PRESSURE COOLERS LTD==========,570041,25,8.25,CATERING FIXTURES,02/04/2015,,Technical And Service Support,Facilities & Management S
250315H,PRESSURE COOLERS LTD==========,570041,26,8.25,CATERING FIXTURES,02/04/2015,,Technical And Service Support,Facilities & Management S
250315H,PRESSURE COOLERS LTD==========,570041,27,8.25,CATERING FIXTURES,02/04/2015,,Technical And Service Support,Facilities & Management S
250315H,PRESSURE COOLERS LTD==========,570041,28,8.25,CATERING EQUIPMENT,02/04/2015,,Procurement,Facilities & Management S
250315H,PRESSURE COOLERS LTD==========,570041,29,8.25,CATERING FIXTURES,02/04/2015,,Technical And Service Support,Facilities & Management S
250315H,PRESSURE COOLERS LTD==========,570041,30,8.25,CATERING EQUIPMENT,02/04/2015,,Technical And Service Support,Facilities & Management S
250315H,PRESSURE COOLERS LTD==========,570041,31,8.25,CATERING FIXTURES,02/04/2015,,Technical And Service Support,Facilities & Management S
250315H,PRESSURE COOLERS LTD==========,570041,32,8.25,CATERING FIXTURES,02/04/2015,,Technical And Service Support,Facilities & Management S
250315H,PRESSURE COOLERS LTD==========,570041,33,8.25,OFFICE EQUIPMENT,02/04/2015,,Fire Safety Regulation,Facilities & Management S
250315H,PRESSURE COOLERS LTD==========,570041,34,8.25,CATERING FIXTURES,02/04/2015,,Technical And Service Support,Facilities & Management S
250315H,PRESSURE COOLERS LTD==========,570041,35,8.25,CATERING FIXTURES,02/04/2015,,Technical And Service Support,Facilities & Management S
250315H,PRESSURE COOLERS LTD==========,570041,36,8.25,CATERING FIXTURES,02/04/2015,,Technical And Service Support,Facilities & Management S
250315H,PRESSURE COOLERS LTD==========,570041,37,8,CATERING FIXTURES,02/04/2015,,Technical And Service Support,Facilities & Management S
250315H,PRESSURE COOLERS LTD==========,570041,38,8,CATERING FIXTURES,02/04/2015,,Technical And Service Support,Facilities & Management S
250315H,PRESSURE COOLERS LTD==========,570041,39,8.25,CATERING FIXTURES,02/04/2015,,Technical And Service Support,Facilities & Management S
250315H,PRESSURE COOLERS LTD==========,570041,40,8.25,CATERING FIXTURES,02/04/2015,,Technical And Service Support,Facilities & Management S
250315H,PRESSURE COOLERS LTD==========,570041,41,8.25,CATERING FIXTURES,02/04/2015,,Technical And Service Support,Facilities & Management S
250315H,PRESSURE COOLERS LTD==========,570041,42,8.25,CATERING FIXTURES,02/04/2015,,Technical And Service Support,Facilities & Management S
250315H,PRESSURE COOLERS LTD==========,570041,43,8,CATERING FIXTURES,02/04/2015,,Technical And Service Support,Facilities & Management S
250315H,PRESSURE COOLERS LTD==========,570041,44,8.25,CATERING FIXTURES,02/04/2015,,Technical And Service Support,Facilities & Management S
250315H,PRESSURE COOLERS LTD==========,570041,45,8.25,CATERING FIXTURES,02/04/2015,,Technical And Service Support,Facilities & Management S
250315H,PRESSURE COOLERS LTD==========,570041,46,8.25,CATERING FIXTURES,02/04/2015,,Technical And Service Support,Facilities & Management S
250315H,PRESSURE COOLERS LTD==========,570041,47,8.25,CATERING FIXTURES,02/04/2015,,Technical And Service Support,Facilities & Management S
250315H,PRESSURE COOLERS LTD==========,570041,48,8.25,CATERING FIXTURES,02/04/2015,,Technical And Service Support,Facilities & Management S
250315H,PRESSURE COOLERS LTD==========,570041,49,8.25,CATERING FIXTURES,02/04/2015,,Technical And Service Support,Facilities & Management S
250315H,PRESSURE COOLERS LTD==========,570041,50,8,CATERING FIXTURES,02/04/2015,,Technical And Service Support,Facilities & Management S
250315H,PRESSURE COOLERS LTD==========,570041,51,8.25,CATERING FIXTURES,02/04/2015,,Technical And Service Support,Facilities & Management S
250315H,PRESSURE COOLERS LTD==========,570041,52,8.25,CATERING EQUIPMENT,02/04/2015,,HR Management,Facilities & Management S
250315H,PRESSURE COOLERS LTD==========,570041,53,8.25,CATERING FIXTURES,02/04/2015,,Technical And Service Support,Facilities & Management S
250315H,PRESSURE COOLERS LTD==========,570041,54,8.25,CATERING FIXTURES,02/04/2015,,Technical And Service Support,Facilities & Management S
250315H,PRESSURE COOLERS LTD==========,570041,55,8.25,CATERING FIXTURES,02/04/2015,,Technical And Service Support,Facilities & Management S
250315H,PRESSURE COOLERS LTD==========,570041,56,8.25,CATERING FIXTURES,02/04/2015,,Technical And Service Support,Facilities & Management S
250315H,PRESSURE COOLERS LTD==========,570041,57,8.25,CATERING FIXTURES,02/04/2015,,Technical And Service Support,Facilities & Management S
250315H,PRESSURE COOLERS LTD==========,570041,58,8.25,CATERING FIXTURES,02/04/2015,,Technical And Service Support,Facilities & Management S
250315H,PRESSURE COOLERS LTD==========,570041,59,8.25,CATERING FIXTURES,02/04/2015,,Technical And Service Support,Facilities & Management S
250315H,PRESSURE COOLERS LTD==========,570041,60,8,CATERING FIXTURES,02/04/2015,,Technical And Service Support,Facilities & Management S
250315H,PRESSURE COOLERS LTD==========,570041,61,8.25,CATERING FIXTURES,02/04/2015,,Technical And Service Support,Facilities & Management S
250315H,PRESSURE COOLERS LTD==========,570041,62,8.25,CATERING FIXTURES,02/04/2015,,Technical And Service Support,Facilities & Management S
250315H,PRESSURE COOLERS LTD==========,570041,63,8.25,CATERING FIXTURES,02/04/2015,,Technical And Service Support,Facilities & Management S
250315H,PRESSURE COOLERS LTD==========,570041,64,8.25,CATERING FIXTURES,02/04/2015,,Technical And Service Support,Facilities & Management S
250315H,PRESSURE COOLERS LTD==========,570041,65,8.25,CATERING FIXTURES,02/04/2015,,Technical And Service Support,Facilities & Management S
250315H,PRESSURE COOLERS LTD==========,570041,66,8.25,CATERING FIXTURES,02/04/2015,,Technical And Service Support,Facilities & Management S
250315H,PRESSURE COOLERS LTD==========,570041,67,8.25,CATERING FIXTURES,02/04/2015,,Technical And Service Support,Facilities & Management S
250315H,PRESSURE COOLERS LTD==========,570041,68,8.25,CATERING FIXTURES,02/04/2015,,Technical And Service Support,Facilities & Management S
250315H,PRESSURE COOLERS LTD==========,570041,69,8.25,CATERING FIXTURES,02/04/2015,,Technical And Service Support,Facilities & Management S
250315H,PRESSURE COOLERS LTD==========,570041,70,8.25,CATERING FIXTURES,02/04/2015,,Technical And Service Support,Facilities & Management S
250315H,PRESSURE COOLERS LTD==========,570041,71,8.25,CATERING FIXTURES,02/04/2015,,Technical And Service Support,Facilities & Management S
250315H,PRESSURE COOLERS LTD==========,570041,72,8.25,CATERING FIXTURES,02/04/2015,,Technical And Service Support,Facilities & Management S
250315H,PRESSURE COOLERS LTD==========,570041,73,8.25,CATERING FIXTURES,02/04/2015,,Technical And Service Support,Facilities & Management S
250315H,PRESSURE COOLERS LTD==========,570041,74,8.25,OFFICE EQUIPMENT,02/04/2015,,CBRN RRT,Facilities & Management S
250315H,PRESSURE COOLERS LTD==========,570041,75,8.25,CATERING FIXTURES,02/04/2015,,Technical And Service Support,Facilities & Management S
250315H,PRESSURE COOLERS LTD==========,570041,76,8,CATERING FIXTURES,02/04/2015,,Technical And Service Support,Facilities & Management S
250315H,PRESSURE COOLERS LTD==========,570041,77,8,CATERING FIXTURES,02/04/2015,,Technical And Service Support,Facilities & Management S
250315H,PRESSURE COOLERS LTD==========,570041,78,8.25,CATERING FIXTURES,02/04/2015,,Technical And Service Support,Facilities & Management S
250315H,PRESSURE COOLERS LTD==========,570041,79,8,CATERING FIXTURES,02/04/2015,,Technical And Service Support,Facilities & Management S
250315H,PRESSURE COOLERS LTD==========,570041,80,8,OFFICE EQUIPMENT,02/04/2015,,Information and Communication Technology,Facilities & Management S
250315H,PRESSURE COOLERS LTD==========,570041,81,8.25,CATERING FIXTURES,02/04/2015,,Technical And Service Support,Facilities & Management S
250315H,PRESSURE COOLERS LTD==========,570041,82,8,CATERING FIXTURES,02/04/2015,,Technical And Service Support,Facilities & Management S
250315H,PRESSURE COOLERS LTD==========,570041,83,8.25,CATERING FIXTURES,02/04/2015,,Technical And Service Support,Facilities & Management S
250315H,PRESSURE COOLERS LTD==========,570041,84,8,CATERING FIXTURES,02/04/2015,,Technical And Service Support,Facilities & Management S
250315H,PRESSURE COOLERS LTD==========,570041,85,8.25,CATERING FIXTURES,02/04/2015,,Technical And Service Support,Facilities & Management S
250315H,PRESSURE COOLERS LTD==========,570041,86,8.25,CATERING FIXTURES,02/04/2015,,Technical And Service Support,Facilities & Management S
250315H,PRESSURE COOLERS LTD==========,570041,87,8,CATERING FIXTURES,02/04/2015,,Technical And Service Support,Facilities & Management S
250315H,PRESSURE COOLERS LTD==========,570041,88,8.25,CATERING FIXTURES,02/04/2015,,Technical And Service Support,Facilities & Management S
250315H,PRESSURE COOLERS LTD==========,570041,89,8.25,CATERING FIXTURES,02/04/2015,,Technical And Service Support,Facilities & Management S
250315H,PRESSURE COOLERS LTD==========,570041,90,8.25,CATERING FIXTURES,02/04/2015,,Technical And Service Support,Facilities & Management S
250315H,PRESSURE COOLERS LTD==========,570041,91,8.25,CATERING FIXTURES,02/04/2015,,Technical And Service Support,Facilities & Management S
250315H,PRESSURE COOLERS LTD==========,570041,92,8.25,CATERING FIXTURES,02/04/2015,,Technical And Service Support,Facilities & Management S
250315H,PRESSURE COOLERS LTD==========,570041,93,8.25,CATERING FIXTURES,02/04/2015,,Technical And Service Support,Facilities & Management S
250315H,PRESSURE COOLERS LTD==========,570041,94,8,CATERING FIXTURES,02/04/2015,,Technical And Service Support,Facilities & Management S
250315H,PRESSURE COOLERS LTD==========,570041,95,8.25,CATERING FIXTURES,02/04/2015,,Technical And Service Support,Facilities & Management S
250315H,PRESSURE COOLERS LTD==========,570041,96,8.25,CATERING FIXTURES,02/04/2015,,Technical And Service Support,Facilities & Management S
250315H,PRESSURE COOLERS LTD==========,570041,97,8.25,CATERING FIXTURES,02/04/2015,,Technical And Service Support,Facilities & Management S
250315H,PRESSURE COOLERS LTD==========,570041,98,8,CATERING FIXTURES,02/04/2015,,Technical And Service Support,Facilities & Management S
250315H,PRESSURE COOLERS LTD==========,570041,99,8,CATERING FIXTURES,02/04/2015,,Technical And Service Support,Facilities & Management S
250315H,PRESSURE COOLERS LTD==========,570041,100,8.25,CATERING FIXTURES,02/04/2015,,Technical And Service Support,Facilities & Management S
250315H,PRESSURE COOLERS LTD==========,570041,101,8.25,CATERING FIXTURES,02/04/2015,,Technical And Service Support,Facilities & Management S
250315H,PRESSURE COOLERS LTD==========,570041,102,8,CATERING FIXTURES,02/04/2015,,Technical And Service Support,Facilities & Management S
250315H,PRESSURE COOLERS LTD==========,570041,103,8.25,CATERING FIXTURES,02/04/2015,,Technical And Service Support,Facilities & Management S
250315H,PRESSURE COOLERS LTD==========,570041,104,8.25,RADIO,02/04/2015,,Information and Communication Technology,Facilities & Management S
250315H,PRESSURE COOLERS LTD==========,570041,105,8.25,CATERING FIXTURES,02/04/2015,,Technical And Service Support,Facilities & Management S
250315H,PRESSURE COOLERS LTD==========,570041,106,8.25,CATERING FIXTURES,02/04/2015,,Technical And Service Support,Facilities & Management S
250315H,PRESSURE COOLERS LTD==========,570041,107,8,CATERING FIXTURES,02/04/2015,,Technical And Service Support,Facilities & Management S
250315H,PRESSURE COOLERS LTD==========,570041,108,8.25,CATERING FIXTURES,02/04/2015,,Technical And Service Support,Facilities & Management S
250315H,PRESSURE COOLERS LTD==========,570041,109,8.25,CATERING FIXTURES,02/04/2015,,Technical And Service Support,Facilities & Management S
250315H,PRESSURE COOLERS LTD==========,570041,110,8.25,CATERING FIXTURES,02/04/2015,,Technical And Service Support,Facilities & Management S
250315H,PRESSURE COOLERS LTD==========,570041,111,8.25,CATERING FIXTURES,02/04/2015,,Technical And Service Support,Facilities & Management S
250315H,PRESSURE COOLERS LTD==========,570041,112,8.25,CATERING FIXTURES,02/04/2015,,Technical And Service Support,Facilities & Management S
250315H,PRESSURE COOLERS LTD==========,570041,113,8,CATERING EQUIPMENT,02/04/2015,,HR Management,Facilities & Management S
250315H,PRESSURE COOLERS LTD==========,570041,114,8.25,CATERING FIXTURES,02/04/2015,,Technical And Service Support,Facilities & Management S
250315H,PRESSURE COOLERS LTD==========,570041,115,8.25,CATERING FIXTURES,02/04/2015,,Technical And Service Support,Facilities & Management S
250315H,PRESSURE COOLERS LTD==========,570041,116,8.25,CATERING FIXTURES,02/04/2015,,Technical And Service Support,Facilities & Management S
250315H,PRESSURE COOLERS LTD==========,570041,117,8.25,CATERING FIXTURES,02/04/2015,,Technical And Service Support,Facilities & Management S
250315H,PRESSURE COOLERS LTD==========,570041,118,8.25,STATIONERY CONSUMABLES,02/04/2015,,Control and Mobilising,Facilities & Management S
250315H,PRESSURE COOLERS LTD==========,570041,119,8.25,CATERING FIXTURES,02/04/2015,,Technical And Service Support,Facilities & Management S
250315H,PRESSURE COOLERS LTD==========,570041,120,8.25,CATERING FIXTURES,02/04/2015,,Technical And Service Support,Facilities & Management S
250315H,PRESSURE COOLERS LTD==========,570041,121,8,CATERING FIXTURES,02/04/2015,,Technical And Service Support,Facilities & Management S
250315H,PRESSURE COOLERS LTD==========,570041,122,8.25,CATERING FIXTURES,02/04/2015,,Technical And Service Support,Facilities & Management S
250315H,PRESSURE COOLERS LTD==========,570041,123,8.25,CATERING FIXTURES,02/04/2015,,Technical And Service Support,Facilities & Management S
250315H,PRESSURE COOLERS LTD==========,570041,124,8.25,CATERING FIXTURES,02/04/2015,,Technical And Service Support,Facilities & Management S
250315H,PRESSURE COOLERS LTD==========,570041,125,8.25,CATERING FIXTURES,02/04/2015,,Technical And Service Support,Facilities & Management S
250315H,PRESSURE COOLERS LTD==========,570041,126,8.25,CATERING FIXTURES,02/04/2015,,Technical And Service Support,Facilities & Management S
250315H,PRESSURE COOLERS LTD==========,570041,127,8.25,CATERING FIXTURES,02/04/2015,,Technical And Service Support,Facilities & Management S
250315H,PRESSURE COOLERS LTD==========,570041,128,8,CATERING FIXTURES,02/04/2015,,Technical And Service Support,Facilities & Management S
250315H,PRESSURE COOLERS LTD==========,570041,129,8,CATERING FIXTURES,02/04/2015,,Technical And Service Support,Facilities & Management S
250315H,PRESSURE COOLERS LTD==========,570041,130,8.25,CATERING FIXTURES,02/04/2015,,Technical And Service Support,Facilities & Management S
250315H,PRESSURE COOLERS LTD==========,570041,131,8.25,CATERING FIXTURES,02/04/2015,,Technical And Service Support,Facilities & Management S
250315H,PRESSURE COOLERS LTD==========,570041,132,8,CATERING FIXTURES,02/04/2015,,Technical And Service Support,Facilities & Management S
250315H,PRESSURE COOLERS LTD==========,570041,133,8.25,CATERING FIXTURES,02/04/2015,,Technical And Service Support,Facilities & Management S
250315H,PRESSURE COOLERS LTD==========,570041,134,8.25,CATERING FIXTURES,02/04/2015,,Technical And Service Support,Facilities & Management S
250315H,PRESSURE COOLERS LTD==========,570041,135,8.25,CATERING FIXTURES,02/04/2015,,Technical And Service Support,Facilities & Management S
250315H,PRESSURE COOLERS LTD==========,570041,136,8.25,CATERING FIXTURES,02/04/2015,,Technical And Service Support,Facilities & Management S
250315H,PRESSURE COOLERS LTD==========,570041,137,8,CATERING FIXTURES,02/04/2015,,Technical And Service Support,Facilities & Management S
250315H,PRESSURE COOLERS LTD==========,570041,138,8.25,CATERING FIXTURES,02/04/2015,,Technical And Service Support,Facilities & Management S
250315H,PRESSURE COOLERS LTD==========,570041,139,8.25,CATERING FIXTURES,02/04/2015,,Technical And Service Support,Facilities & Management S
250315H,PRESSURE COOLERS LTD==========,570041,140,8,CATERING FIXTURES,02/04/2015,,Technical And Service Support,Facilities & Management S
250315H,PRESSURE COOLERS LTD==========,570041,141,8.25,OPERATIONAL EQUIP-PURCHASE,02/04/2015,,Command Units,Facilities & Management S
250315H,PRESSURE COOLERS LTD==========,570041,142,8.25,CATERING EQUIPMENT,02/04/2015,,Cadets,Facilities & Management S
250315H,PRESSURE COOLERS LTD==========,570041,143,8.25,CATERING FIXTURES,02/04/2015,,Technical And Service Support,Facilities & Management S
141005,BRITISH GAS BUSINESS==========,5802050215,1,56.82,ELECTRICITY,02/04/2015,662.76,Technical And Service Support,Utilities
141005,BRITISH GAS BUSINESS==========,5802050215,2,36.15,ELECTRICITY,02/04/2015,,Technical And Service Support,Utilities
141005,BRITISH GAS BUSINESS==========,5802050215,3,46.67,ELECTRICITY,02/04/2015,,Technical And Service Support,Utilities
141005,BRITISH GAS BUSINESS==========,5802050215,4,11.33,ELECTRICITY,02/04/2015,,Technical And Service Support,Utilities
141005,BRITISH GAS BUSINESS==========,5802050215,5,90.34,ELECTRICITY,02/04/2015,,Technical And Service Support,Utilities
141005,BRITISH GAS BUSINESS==========,5802050215,6,8.12,ELECTRICITY,02/04/2015,,Technical And Service Support,Utilities
141005,BRITISH GAS BUSINESS==========,5802050215,7,44.06,ELECTRICITY,02/04/2015,,Technical And Service Support,Utilities
141005,BRITISH GAS BUSINESS==========,5802050215,8,16.5,ELECTRICITY,02/04/2015,,Technical And Service Support,Utilities
141005,BRITISH GAS BUSINESS==========,5802050215,9,25.16,ELECTRICITY,02/04/2015,,Technical And Service Support,Utilities
141005,BRITISH GAS BUSINESS==========,5802050215,10,21.99,ELECTRICITY,02/04/2015,,Technical And Service Support,Utilities
141005,BRITISH GAS BUSINESS==========,5802050215,11,13.12,ELECTRICITY,02/04/2015,,Technical And Service Support,Utilities
141005,BRITISH GAS BUSINESS==========,5802050215,12,20.02,ELECTRICITY,02/04/2015,,Technical And Service Support,Utilities
141005,BRITISH GAS BUSINESS==========,5802050215,13,8.12,ELECTRICITY,02/04/2015,,Technical And Service Support,Utilities
141005,BRITISH GAS BUSINESS==========,5802050215,14,30.09,ELECTRICITY,02/04/2015,,Technical And Service Support,Utilities
141005,BRITISH GAS BUSINESS==========,5802050215,15,44.06,ELECTRICITY,02/04/2015,,Technical And Service Support,Utilities
141005,BRITISH GAS BUSINESS==========,5802050215,16,39.4,ELECTRICITY,02/04/2015,,Technical And Service Support,Utilities
141005,BRITISH GAS BUSINESS==========,5802050215,17,33.91,ELECTRICITY,02/04/2015,,Technical And Service Support,Utilities
141005,BRITISH GAS BUSINESS==========,5802050215,18,27.77,ELECTRICITY,02/04/2015,,Technical And Service Support,Utilities
141005,BRITISH GAS BUSINESS==========,5802050215,19,19.94,ELECTRICITY,02/04/2015,,Technical And Service Support,Utilities
141005,BRITISH GAS BUSINESS==========,5802050215,20,26.37,ELECTRICITY,02/04/2015,,Technical And Service Support,Utilities
141005,BRITISH GAS BUSINESS==========,5802050215,21,13.71,ELECTRICITY,02/04/2015,,Technical And Service Support,Utilities
141005,BRITISH GAS BUSINESS==========,5802050215,22,9.61,ELECTRICITY,02/04/2015,,Technical And Service Support,Utilities
141005,BRITISH GAS BUSINESS==========,5802050215,23,9.33,ELECTRICITY,02/04/2015,,Technical And Service Support,Utilities
141005,BRITISH GAS BUSINESS==========,5802050215,24,10.17,ELECTRICITY,02/04/2015,,Technical And Service Support,Utilities
141007,ESSEX & SUFFOLK WATER PLC=====,602686100012Q,1,650.36,WATER & SEWERAGE RATES,02/04/2015,650.36,Technical And Service Support,Utilities
260315H,GEORGE JONES & SON LTD========,605,1,"7,122.33",STRATEGIC (NON CYCLICAL),02/04/2015,"7,122.33",Technical and Service Support,"Works - Construction, R&M"
300315H,AECOM INFRASTRUCTURE &,6211617,1,968.38,PROF FEES-MISCELLANEOUS,02/04/2015,968.38,Technical and Service Support,Consultancy
300315H,AECOM INFRASTRUCTURE &,6217771,1,"1,766.32",STRATEGIC (NON CYCLICAL),02/04/2015,"1,766.32",Technical and Service Support,Consultancy
300315H,MICHAEL RUBENSTEIN PUBLISHING,6225,1,399,PROFESSIONAL DEVELOPMENT,02/04/2015,399,Corporate Management Team,Education
141007,THAMES WATER UTILITIES LTD====,62429-55180N,1,261.43,WATER & SEWERAGE RATES,02/04/2015,261.43,Technical And Service Support,Utilities
260315H,TRY & LILLY LTD===============,66196,1,253.35,UNIFORMS - POMS,02/04/2015,253.35,Procurement,Clothing
260315H,GAS & AIR SERVICES (UK)=======,6623,1,"1,788.30",PROTECTIVE EQUIPMENT,02/04/2015,"2,288.58",Technical And Service Support,Building Constr Materials
260315H,GAS & AIR SERVICES (UK)=======,6623,2,500.28,PROTECTIVE EQUIPMENT,02/04/2015,,Technical And Service Support,Building Constr Materials
270315H,MAYORS OFF FOR POLICING&CRIME,6800101621,1,"102,099.00",GLA GROUP SHARED SERVICES,02/04/2015,"102,099.00",Finance Services,Human Resources
300315H,SWEETT  UK LTD,7052134,1,"1,969.10",PROF FEES-MISCELLANEOUS,02/04/2015,"1,969.10",Technical and Service Support,"Works - Construction, R&M"
260315H,SWEETT  UK LTD,7052376,1,"2,378.11",PROF FEES-MISCELLANEOUS,02/04/2015,"2,378.11",Technical and Service Support,"Works - Construction, R&M"
141007,ALPHABET (GB) LIMITED,80009857,1,352.33,LEASE CAR CHARGES,02/04/2015,"4,592.85",Procurement,Vehicle Management
141007,ALPHABET (GB) LIMITED,80009857,2,"4,240.52",P/PAYMTS-CAR LEASG-RENTAL,02/04/2015,,Finance Services,Vehicle Management
141007,ALPHABET (GB) LIMITED,80009857,3,-386.89,VAT CAR LEASING,02/04/2015,,Finance Services,Vehicle Management
141007,ALPHABET (GB) LIMITED,80009857,4,386.89,LEASE CAR CHARGES,02/04/2015,,Procurement,Vehicle Management
300315H,SHARPE PRITCHARD==============,80504,1,717,CONSULTANTS,02/04/2015,717,Technical And Service Support,Legal Services
300315H,TWO SERVICES LTD==============,81447,1,284.83,CATERING EQUIPMENT,02/04/2015,284.83,Operations Fire Stations,Catering
141002,LONDON PENSIONS FUND AUTHORITY,8908,1,"84,494.58",LOCAL GOVT PENSION SCHEME PAYM,02/04/2015,"84,494.58",Central Finance,Financial Services
141008,P OLDHAM======================,90594A,1,805,PROFESSIONAL FEES GENERAL,02/04/2015,805,Legal & Democratic Services,Legal Services
141007,THAMES WATER UTILITIES LTD====,95992-95181N,1,422.56,WATER & SEWERAGE RATES,02/04/2015,422.56,Technical And Service Support,Utilities
141007,THAMES WATER UTILITIES LTD====,9870962314+,1,268.59,WATER & SEWERAGE RATES,02/04/2015,268.59,Technical And Service Support,Utilities
240315H,ASTEC SURVEYS LIMITED=========,ASL-15-040,1,175,ASBESTOS,02/04/2015,775,Technical and Service Support,Environmental Services
240315H,ASTEC SURVEYS LIMITED=========,ASL-15-040,2,175,ASBESTOS,02/04/2015,,Technical and Service Support,Environmental Services
240315H,ASTEC SURVEYS LIMITED=========,ASL-15-040,3,175,ASBESTOS,02/04/2015,,Technical and Service Support,Environmental Services
240315H,ASTEC SURVEYS LIMITED=========,ASL-15-040,4,250,ASBESTOS,02/04/2015,,Technical and Service Support,Environmental Services
270315H,THAMES WATER UTILITIES LTD====,CBA1502651,1,"1,185.00",CURRENT HYDRANT COSTS,02/04/2015,"1,185.00",Operational Resilience,Utilities
270315H,THAMES WATER UTILITIES LTD====,CBA1502731,1,"1,499.00",CARBON COMMITMENTS,02/04/2015,"1,499.00",Operational Resilience,Utilities
270315H,THAMES WATER UTILITIES LTD====,CBA1502732,1,"8,340.00",CARBON COMMITMENTS,02/04/2015,"8,340.00",Operational Resilience,Utilities
270315H,THAMES WATER UTILITIES LTD====,CBA1502733,1,"4,388.00",CARBON COMMITMENTS,02/04/2015,"4,388.00",Operational Resilience,Utilities
270315H,THAMES WATER UTILITIES LTD====,CBA1502734,1,"1,800.00",CARBON COMMITMENTS,02/04/2015,"1,800.00",Operational Resilience,Utilities
270315H,THAMES WATER UTILITIES LTD====,CBA1502735,1,"3,125.00",CARBON COMMITMENTS,02/04/2015,"3,125.00",Operational Resilience,Utilities
270315H,THAMES WATER UTILITIES LTD====,CBA1502736,1,"2,530.00",CARBON COMMITMENTS,02/04/2015,"2,530.00",Operational Resilience,Utilities
300315H,THAMES WATER UTILITIES LTD====,CBA1503153,1,"1,200.00",CARBON COMMITMENTS,02/04/2015,"1,200.00",Operational Resilience,Utilities
300315H,THAMES WATER UTILITIES LTD====,CBA1503154,1,800,CARBON COMMITMENTS,02/04/2015,800,Operational Resilience,Utilities
300315H,THAMES WATER UTILITIES LTD====,CBA1503156,1,"2,400.00",CARBON COMMITMENTS,02/04/2015,"2,400.00",Operational Resilience,Utilities
300315H,THAMES WATER UTILITIES LTD====,CBA1503157,1,480,CARBON COMMITMENTS,02/04/2015,480,Operational Resilience,Utilities
230315H,*GRAFTON MERCHANTING GB LTD,CRO/354502,1,472.56,OPERATIONAL EQUIP-PURCHASE,02/04/2015,472.56,Property PFI,Building Constr Materials
300315H,WM ENGINEERING SERVICES LTD===,I-4868,1,447.45,TACTICAL DAY TO DAY,02/04/2015,447.45,Technical And Service Support,"Works - Construction, R&M"
300315H,WM ENGINEERING SERVICES LTD===,I-4874,1,293.8,TACTICAL DAY TO DAY,02/04/2015,293.8,Technical And Service Support,"Works - Construction, R&M"
300315H,WM ENGINEERING SERVICES LTD===,I-4878,1,294.8,TACTICAL DAY TO DAY,02/04/2015,294.8,Technical And Service Support,"Works - Construction, R&M"
260315H,HALL FUELS,I07436671,1,"3,265.15",FUEL,02/04/2015,"3,265.15",Operations Fire Stations,Vehicle Management
260315H,HALL FUELS,I07445971,1,"2,332.25",FUEL,02/04/2015,"2,332.25",Operations Fire Stations,Vehicle Management
260315H,HALL FUELS,I07462670,1,"2,239.68",FUEL,02/04/2015,"2,239.68",Operations Fire Stations,Vehicle Management
300315H,HALL FUELS,I07462671,1,"2,333.00",FUEL,02/04/2015,"2,333.00",Operations Fire Stations,Vehicle Management
200315H,HALL FUELS,I07466349,1,"2,799.60",FUEL,02/04/2015,"2,799.60",Operations Fire Stations,Vehicle Management
200315H,HALL FUELS,I07466350,1,"1,866.40",FUEL,02/04/2015,"1,866.40",Operations Fire Stations,Vehicle Management
260315H,HALL FUELS,I07470466,1,"2,799.60",FUEL,02/04/2015,"2,799.60",Operations Fire Stations,Vehicle Management
260315H,HALL FUELS,I07474634,1,"2,769.90",FUEL,02/04/2015,"2,769.90",Operations Fire Stations,Vehicle Management
230315H,BABCOCK CIVIL INFRASTRUCTURE,II5001077,1,"28,641.37",STRATEGIC (CYCLICAL),02/04/2015,"28,641.37",Technical And Service Support,"Works - Construction, R&M"
230315H,BABCOCK CIVIL INFRASTRUCTURE,II5001079,1,644.92,STRATEGIC (NON CYCLICAL),02/04/2015,644.92,Technical And Service Support,"Works - Construction, R&M"
230315H,BLUESKY SHAREPOINT CONSULTING,INV-1456,1,"22,950.00",CONSULTANTS,02/04/2015,"22,950.00",Corporate Projects,Consultancy
300315H,WALTER FRANK & SONS LIMITED===,INV/13476,1,496,PROTECTIVE EQUIPMENT,02/04/2015,"1,433.00",Technical And Service Support,Fire & Rescue
300315H,WALTER FRANK & SONS LIMITED===,INV/13476,2,937,PROTECTIVE EQUIPMENT,02/04/2015,,Technical And Service Support,Fire & Rescue
270315H,OPP LTD=======================,INV0550374,1,395,ASSESSMENTS,02/04/2015,395,HR Management,Human Resources
270315H,CANNON'S MSA LTD,INV1083109,1,325,PROTECTIVE EQUIPMENT R & D,02/04/2015,569,Operational Procedures,Vehicle Management
270315H,CANNON'S MSA LTD,INV1083109,2,140,PROTECTIVE EQUIPMENT R & D,02/04/2015,,Operational Procedures,Vehicle Management
270315H,CANNON'S MSA LTD,INV1083109,3,104,PROTECTIVE EQUIPMENT R & D,02/04/2015,,Operational Procedures,Vehicle Management
270315H,BRISSCO SIGNS & GRAPHICS======,INV88268,1,821,HYDRANTS,02/04/2015,821,Operational Resilience,Fire & Rescue
250315C,BENNETT MECHANICAL SERVICES LT,L5110,1,"28,815.87",PROF FEES-MISCELLANEOUS,02/04/2015,"28,815.87",Technical and Service Support,Building Constr Materials
141008,L B OF SOUTHWARK==============,LEG/CONV/RS080/3542/MK,1,"1,000.00",CONSULTANTS,02/04/2015,"1,000.00",Technical And Service Support,Statutory Bodies
300315H,ONE STOP LANGUAGE SERVICES LTD,LFB-220,1,252.9,CONSULTANTS,02/04/2015,252.9,Communications,Human Resources
300315H,COFELY WORKPLACE LIMITED,M132723,1,165,STRATEGIC (NON CYCLICAL),02/04/2015,"1,976.59",Technical and Service Support,"Works - Construction, R&M"
300315H,COFELY WORKPLACE LIMITED,M132723,2,31.71,STRATEGIC (NON CYCLICAL),02/04/2015,,Technical and Service Support,"Works - Construction, R&M"
300315H,COFELY WORKPLACE LIMITED,M132723,3,291.5,STRATEGIC (NON CYCLICAL),02/04/2015,,Technical and Service Support,"Works - Construction, R&M"
300315H,COFELY WORKPLACE LIMITED,M132723,4,144.36,STRATEGIC (NON CYCLICAL),02/04/2015,,Technical and Service Support,"Works - Construction, R&M"
300315H,COFELY WORKPLACE LIMITED,M132723,5,361.57,STRATEGIC (NON CYCLICAL),02/04/2015,,Technical and Service Support,"Works - Construction, R&M"
300315H,COFELY WORKPLACE LIMITED,M132723,6,49.07,STRATEGIC (NON CYCLICAL),02/04/2015,,Technical and Service Support,"Works - Construction, R&M"
300315H,COFELY WORKPLACE LIMITED,M132723,7,21.57,STRATEGIC (NON CYCLICAL),02/04/2015,,Technical and Service Support,"Works - Construction, R&M"
300315H,COFELY WORKPLACE LIMITED,M132723,8,121.25,STRATEGIC (NON CYCLICAL),02/04/2015,,Technical and Service Support,"Works - Construction, R&M"
300315H,COFELY WORKPLACE LIMITED,M132723,9,395.14,STRATEGIC (NON CYCLICAL),02/04/2015,,Technical and Service Support,"Works - Construction, R&M"
300315H,COFELY WORKPLACE LIMITED,M132723,10,191.36,STRATEGIC (NON CYCLICAL),02/04/2015,,Technical and Service Support,"Works - Construction, R&M"
300315H,COFELY WORKPLACE LIMITED,M132723,11,160.38,STRATEGIC (NON CYCLICAL),02/04/2015,,Technical and Service Support,"Works - Construction, R&M"
300315H,COFELY WORKPLACE LIMITED,M132723,12,43.68,STRATEGIC (NON CYCLICAL),02/04/2015,,Technical and Service Support,"Works - Construction, R&M"
300315H,COFELY WORKPLACE LIMITED,M134327,1,58.23,STRATEGIC (NON CYCLICAL),02/04/2015,"1,478.62",Technical and Service Support,"Works - Construction, R&M"
300315H,COFELY WORKPLACE LIMITED,M134327,2,594,STRATEGIC (NON CYCLICAL),02/04/2015,,Technical and Service Support,"Works - Construction, R&M"
300315H,COFELY WORKPLACE LIMITED,M134327,3,172.56,STRATEGIC (NON CYCLICAL),02/04/2015,,Technical and Service Support,"Works - Construction, R&M"
300315H,COFELY WORKPLACE LIMITED,M134327,4,28.27,STRATEGIC (NON CYCLICAL),02/04/2015,,Technical and Service Support,"Works - Construction, R&M"
300315H,COFELY WORKPLACE LIMITED,M134327,5,136.73,STRATEGIC (NON CYCLICAL),02/04/2015,,Technical and Service Support,"Works - Construction, R&M"
300315H,COFELY WORKPLACE LIMITED,M134327,6,102.76,STRATEGIC (NON CYCLICAL),02/04/2015,,Technical and Service Support,"Works - Construction, R&M"
300315H,COFELY WORKPLACE LIMITED,M134327,7,269.61,STRATEGIC (NON CYCLICAL),02/04/2015,,Technical and Service Support,"Works - Construction, R&M"
300315H,COFELY WORKPLACE LIMITED,M134327,8,24.25,STRATEGIC (NON CYCLICAL),02/04/2015,,Technical and Service Support,"Works - Construction, R&M"
300315H,COFELY WORKPLACE LIMITED,M134327,9,43.14,STRATEGIC (NON CYCLICAL),02/04/2015,,Technical and Service Support,"Works - Construction, R&M"
300315H,COFELY WORKPLACE LIMITED,M134327,10,49.07,STRATEGIC (NON CYCLICAL),02/04/2015,,Technical and Service Support,"Works - Construction, R&M"
250315C,COFELY WORKPLACE LIMITED,M135055,1,655.6,STRATEGIC (CYCLICAL),02/04/2015,"10,423.42",Technical and Service Support,"Works - Construction, R&M"
250315C,COFELY WORKPLACE LIMITED,M135055,2,258.84,STRATEGIC (CYCLICAL),02/04/2015,,Technical and Service Support,"Works - Construction, R&M"
250315C,COFELY WORKPLACE LIMITED,M135055,3,121.25,STRATEGIC (CYCLICAL),02/04/2015,,Technical and Service Support,"Works - Construction, R&M"
250315C,COFELY WORKPLACE LIMITED,M135055,4,39.55,STRATEGIC (CYCLICAL),02/04/2015,,Technical and Service Support,"Works - Construction, R&M"
250315C,COFELY WORKPLACE LIMITED,M135055,5,60.63,STRATEGIC (CYCLICAL),02/04/2015,,Technical and Service Support,"Works - Construction, R&M"
250315C,COFELY WORKPLACE LIMITED,M135055,6,168.89,STRATEGIC (CYCLICAL),02/04/2015,,Technical and Service Support,"Works - Construction, R&M"
250315C,COFELY WORKPLACE LIMITED,M135055,7,110,STRATEGIC (CYCLICAL),02/04/2015,,Technical and Service Support,"Works - Construction, R&M"
250315C,COFELY WORKPLACE LIMITED,M135055,8,32.36,STRATEGIC (CYCLICAL),02/04/2015,,Technical and Service Support,"Works - Construction, R&M"
250315C,COFELY WORKPLACE LIMITED,M135055,9,32.36,STRATEGIC (CYCLICAL),02/04/2015,,Technical and Service Support,"Works - Construction, R&M"
250315C,COFELY WORKPLACE LIMITED,M135055,10,38.68,STRATEGIC (CYCLICAL),02/04/2015,,Technical and Service Support,"Works - Construction, R&M"
250315C,COFELY WORKPLACE LIMITED,M135055,11,168.75,STRATEGIC (CYCLICAL),02/04/2015,,Technical and Service Support,"Works - Construction, R&M"
250315C,COFELY WORKPLACE LIMITED,M135055,12,43.14,STRATEGIC (CYCLICAL),02/04/2015,,Technical and Service Support,"Works - Construction, R&M"
250315C,COFELY WORKPLACE LIMITED,M135055,13,203.5,STRATEGIC (CYCLICAL),02/04/2015,,Technical and Service Support,"Works - Construction, R&M"
250315C,COFELY WORKPLACE LIMITED,M135055,14,249.35,STRATEGIC (CYCLICAL),02/04/2015,,Technical and Service Support,"Works - Construction, R&M"
250315C,COFELY WORKPLACE LIMITED,M135055,15,18.19,STRATEGIC (CYCLICAL),02/04/2015,,Technical and Service Support,"Works - Construction, R&M"
250315C,COFELY WORKPLACE LIMITED,M135055,16,36.38,STRATEGIC (CYCLICAL),02/04/2015,,Technical and Service Support,"Works - Construction, R&M"
250315C,COFELY WORKPLACE LIMITED,M135055,17,35.83,STRATEGIC (CYCLICAL),02/04/2015,,Technical and Service Support,"Works - Construction, R&M"
250315C,COFELY WORKPLACE LIMITED,M135055,18,86.28,STRATEGIC (CYCLICAL),02/04/2015,,Technical and Service Support,"Works - Construction, R&M"
250315C,COFELY WORKPLACE LIMITED,M135055,19,12.8,STRATEGIC (CYCLICAL),02/04/2015,,Technical and Service Support,"Works - Construction, R&M"
250315C,COFELY WORKPLACE LIMITED,M135055,20,21.57,STRATEGIC (CYCLICAL),02/04/2015,,Technical and Service Support,"Works - Construction, R&M"
250315C,COFELY WORKPLACE LIMITED,M135055,21,165,STRATEGIC (CYCLICAL),02/04/2015,,Technical and Service Support,"Works - Construction, R&M"
250315C,COFELY WORKPLACE LIMITED,M135055,22,203.5,STRATEGIC (CYCLICAL),02/04/2015,,Technical and Service Support,"Works - Construction, R&M"
250315C,COFELY WORKPLACE LIMITED,M135055,23,169.69,STRATEGIC (CYCLICAL),02/04/2015,,Technical and Service Support,"Works - Construction, R&M"
250315C,COFELY WORKPLACE LIMITED,M135055,24,82.5,STRATEGIC (CYCLICAL),02/04/2015,,Technical and Service Support,"Works - Construction, R&M"
250315C,COFELY WORKPLACE LIMITED,M135055,25,20.29,STRATEGIC (CYCLICAL),02/04/2015,,Technical and Service Support,"Works - Construction, R&M"
250315C,COFELY WORKPLACE LIMITED,M135055,26,35.08,STRATEGIC (CYCLICAL),02/04/2015,,Technical and Service Support,"Works - Construction, R&M"
250315C,COFELY WORKPLACE LIMITED,M135055,27,241.89,STRATEGIC (CYCLICAL),02/04/2015,,Technical and Service Support,"Works - Construction, R&M"
250315C,COFELY WORKPLACE LIMITED,M135055,28,24.25,STRATEGIC (CYCLICAL),02/04/2015,,Technical and Service Support,"Works - Construction, R&M"
250315C,COFELY WORKPLACE LIMITED,M135055,29,48.5,STRATEGIC (CYCLICAL),02/04/2015,,Technical and Service Support,"Works - Construction, R&M"
250315C,COFELY WORKPLACE LIMITED,M135055,30,35.08,STRATEGIC (CYCLICAL),02/04/2015,,Technical and Service Support,"Works - Construction, R&M"
250315C,COFELY WORKPLACE LIMITED,M135055,31,32.36,STRATEGIC (CYCLICAL),02/04/2015,,Technical and Service Support,"Works - Construction, R&M"
250315C,COFELY WORKPLACE LIMITED,M135055,32,35.08,STRATEGIC (CYCLICAL),02/04/2015,,Technical and Service Support,"Works - Construction, R&M"
250315C,COFELY WORKPLACE LIMITED,M135055,33,142.23,STRATEGIC (CYCLICAL),02/04/2015,,Technical and Service Support,"Works - Construction, R&M"
250315C,COFELY WORKPLACE LIMITED,M135055,34,136.2,STRATEGIC (CYCLICAL),02/04/2015,,Technical and Service Support,"Works - Construction, R&M"
250315C,COFELY WORKPLACE LIMITED,M135055,35,165,STRATEGIC (CYCLICAL),02/04/2015,,Technical and Service Support,"Works - Construction, R&M"
250315C,COFELY WORKPLACE LIMITED,M135055,36,203.5,STRATEGIC (CYCLICAL),02/04/2015,,Technical and Service Support,"Works - Construction, R&M"
250315C,COFELY WORKPLACE LIMITED,M135055,37,145.6,STRATEGIC (CYCLICAL),02/04/2015,,Technical and Service Support,"Works - Construction, R&M"
250315C,COFELY WORKPLACE LIMITED,M135055,38,203.5,STRATEGIC (CYCLICAL),02/04/2015,,Technical and Service Support,"Works - Construction, R&M"
250315C,COFELY WORKPLACE LIMITED,M135055,39,639.95,STRATEGIC (CYCLICAL),02/04/2015,,Technical and Service Support,"Works - Construction, R&M"
250315C,COFELY WORKPLACE LIMITED,M135055,40,310.89,STRATEGIC (CYCLICAL),02/04/2015,,Technical and Service Support,"Works - Construction, R&M"
250315C,COFELY WORKPLACE LIMITED,M135055,41,121,STRATEGIC (CYCLICAL),02/04/2015,,Technical and Service Support,"Works - Construction, R&M"
250315C,COFELY WORKPLACE LIMITED,M135055,42,655.6,STRATEGIC (CYCLICAL),02/04/2015,,Technical and Service Support,"Works - Construction, R&M"
250315C,COFELY WORKPLACE LIMITED,M135055,43,167.2,STRATEGIC (CYCLICAL),02/04/2015,,Technical and Service Support,"Works - Construction, R&M"
250315C,COFELY WORKPLACE LIMITED,M135055,44,70.1,STRATEGIC (CYCLICAL),02/04/2015,,Technical and Service Support,"Works - Construction, R&M"
250315C,COFELY WORKPLACE LIMITED,M135055,45,248.75,STRATEGIC (CYCLICAL),02/04/2015,,Technical and Service Support,"Works - Construction, R&M"
250315C,COFELY WORKPLACE LIMITED,M135055,46,163.39,STRATEGIC (CYCLICAL),02/04/2015,,Technical and Service Support,"Works - Construction, R&M"
250315C,COFELY WORKPLACE LIMITED,M135055,47,30,STRATEGIC (CYCLICAL),02/04/2015,,Technical and Service Support,"Works - Construction, R&M"
250315C,COFELY WORKPLACE LIMITED,M135055,48,35.08,STRATEGIC (CYCLICAL),02/04/2015,,Technical and Service Support,"Works - Construction, R&M"
250315C,COFELY WORKPLACE LIMITED,M135055,49,203.5,STRATEGIC (CYCLICAL),02/04/2015,,Technical and Service Support,"Works - Construction, R&M"
250315C,COFELY WORKPLACE LIMITED,M135055,50,114,STRATEGIC (CYCLICAL),02/04/2015,,Technical and Service Support,"Works - Construction, R&M"
250315C,COFELY WORKPLACE LIMITED,M135055,51,43.14,STRATEGIC (CYCLICAL),02/04/2015,,Technical and Service Support,"Works - Construction, R&M"
250315C,COFELY WORKPLACE LIMITED,M135055,52,299.75,STRATEGIC (CYCLICAL),02/04/2015,,Technical and Service Support,"Works - Construction, R&M"
250315C,COFELY WORKPLACE LIMITED,M135055,53,37.75,STRATEGIC (CYCLICAL),02/04/2015,,Technical and Service Support,"Works - Construction, R&M"
250315C,COFELY WORKPLACE LIMITED,M135055,54,121.25,STRATEGIC (CYCLICAL),02/04/2015,,Technical and Service Support,"Works - Construction, R&M"
250315C,COFELY WORKPLACE LIMITED,M135055,55,132,STRATEGIC (CYCLICAL),02/04/2015,,Technical and Service Support,"Works - Construction, R&M"
250315C,COFELY WORKPLACE LIMITED,M135055,56,98.39,STRATEGIC (CYCLICAL),02/04/2015,,Technical and Service Support,"Works - Construction, R&M"
250315C,COFELY WORKPLACE LIMITED,M135055,57,207.79,STRATEGIC (CYCLICAL),02/04/2015,,Technical and Service Support,"Works - Construction, R&M"
250315C,COFELY WORKPLACE LIMITED,M135055,58,897.6,STRATEGIC (CYCLICAL),02/04/2015,,Technical and Service Support,"Works - Construction, R&M"
250315C,COFELY WORKPLACE LIMITED,M135055,59,70.07,STRATEGIC (CYCLICAL),02/04/2015,,Technical and Service Support,"Works - Construction, R&M"
250315C,COFELY WORKPLACE LIMITED,M135055,60,189.75,STRATEGIC (CYCLICAL),02/04/2015,,Technical and Service Support,"Works - Construction, R&M"
250315C,COFELY WORKPLACE LIMITED,M135055,61,124.16,STRATEGIC (CYCLICAL),02/04/2015,,Technical and Service Support,"Works - Construction, R&M"
250315C,COFELY WORKPLACE LIMITED,M135055,62,198,STRATEGIC (CYCLICAL),02/04/2015,,Technical and Service Support,"Works - Construction, R&M"
250315C,COFELY WORKPLACE LIMITED,M135055,63,35.08,STRATEGIC (CYCLICAL),02/04/2015,,Technical and Service Support,"Works - Construction, R&M"
250315C,COFELY WORKPLACE LIMITED,M135055,64,66,STRATEGIC (CYCLICAL),02/04/2015,,Technical and Service Support,"Works - Construction, R&M"
250315C,COFELY WORKPLACE LIMITED,M135055,65,203.5,STRATEGIC (CYCLICAL),02/04/2015,,Technical and Service Support,"Works - Construction, R&M"
250315C,COFELY WORKPLACE LIMITED,M135055,66,49.02,STRATEGIC (CYCLICAL),02/04/2015,,Technical and Service Support,"Works - Construction, R&M"
250315C,COFELY WORKPLACE LIMITED,M135055,67,140.8,STRATEGIC (CYCLICAL),02/04/2015,,Technical and Service Support,"Works - Construction, R&M"
250315C,COFELY WORKPLACE LIMITED,M135055,68,266.71,STRATEGIC (CYCLICAL),02/04/2015,,Technical and Service Support,"Works - Construction, R&M"
300315H,ETC VENUES LTD================,MO-102630,1,944,PROFESSIONAL DEVELOPMENT,02/04/2015,944,Corporate Projects,Human Resources
240315H,SPECIALIST COMPUTER CENTRES===,OP/L976965,1,294.78,ACQUISITIONS,02/04/2015,294.78,Information and Communication Technology,ICT
260315H,UNIVERSAL AV SERVICES LTD,P14202C/14203C,1,380,PROFESSIONAL DEVELOPMENT,02/04/2015,380,Corporate Projects,Arts & Leisure Services
141007,ARVAL UK LTD,RI0001584457,1,407.46,LEASE CAR CHARGES,02/04/2015,407.46,Procurement,Vehicle Management
141007,ARVAL UK LTD,RI0001584457,2,-33.95,VAT CAR LEASING,02/04/2015,,Finance Services,Vehicle Management
141007,ARVAL UK LTD,RI0001584457,3,33.95,LEASE CAR CHARGES,02/04/2015,,Procurement,Vehicle Management
200315F,NEWITT & CO LTD===============,SALE-0296409,1,545.67,OFFICE EQUIPMENT,02/04/2015,545.67,HR Management,Sports & Playground Equip
300315H,HUNTER LODGE==================,SI-05760,1,"10,000.00",ADVERTISING,02/04/2015,"24,209.93",Communications,Facilities & Management S
300315H,HUNTER LODGE==================,SI-05760,2,"10,000.00",ADVERTISING,02/04/2015,,Communications,Facilities & Management S
300315H,HUNTER LODGE==================,SI-05760,3,"4,209.93",ADVERTISING,02/04/2015,,Communications,Facilities & Management S
141007,VEOLIA WATER PROJECTS LTD=====,SI-15-0000344,1,"4,089.05",ELECTRICITY,02/04/2015,"4,089.05",Technical And Service Support,Utilities
300315H,SUTTON & EAST SURREY WATER PLC,SI033367,1,"1,152.00",CURRENT HYDRANT COSTS,02/04/2015,"1,152.00",Operational Resilience,Utilities
300315H,SUTTON & EAST SURREY WATER PLC,SI033368,1,"1,152.00",CURRENT HYDRANT COSTS,02/04/2015,"1,152.00",Operational Resilience,Utilities
300315H,SUTTON & EAST SURREY WATER PLC,SI033370,1,358,CURRENT HYDRANT COSTS,02/04/2015,358,Operational Resilience,Utilities
180315H,1SPATIAL,SIN002610,1,860,MAINTENANCE & SUPPORT,02/04/2015,"15,660.00",Information and Communication Technology,ICT
180315H,1SPATIAL,SIN002610,2,"4,300.00",MAINTENANCE & SUPPORT,02/04/2015,,Information and Communication Technology,ICT
180315H,1SPATIAL,SIN002610,3,"10,500.00",MAINTENANCE & SUPPORT,02/04/2015,,Information and Communication Technology,ICT
190315H,1SPATIAL,SIN002616,1,"1,200.00",CONSULTANTS,02/04/2015,"1,200.00",Strategy & Performance,ICT
200315H,OPPORTUNITY NOW,SIN048146,1,"3,280.00",SUBSCRIPTIONS,02/04/2015,"3,280.00",HR Management,Education
300315H,CENTRAL CITY TRAINING VENUES,SQ16994,1,"1,680.00",PROFESSIONAL DEVELOPMENT,02/04/2015,"1,680.00",Fire Safety Regulation,Human Resources
800060019,*THOMAS KNEALE & CO LTD,TK109902,1,1.48,CLOTHING,02/04/2015,"1,436.10",Operations Fire Stations,Furniture
800060019,*THOMAS KNEALE & CO LTD,TK109902,2,669.9,COMMUNITY RELATIONS,02/04/2015,,Community Safety Delivery,Furniture
800060019,*THOMAS KNEALE & CO LTD,TK109902,3,44.95,COMMUNITY RELATIONS,02/04/2015,,Community Safety Delivery,Furniture
800060019,*THOMAS KNEALE & CO LTD,TK109902,4,6.95,COMMUNITY RELATIONS,02/04/2015,,Community Safety Delivery,Furniture
800060019,*THOMAS KNEALE & CO LTD,TK109902,5,59.9,COMMUNITY RELATIONS,02/04/2015,,Community Safety Delivery,Furniture
800060019,*THOMAS KNEALE & CO LTD,TK109902,6,10.89,CLOTHING,02/04/2015,,Operations Fire Stations,Furniture
800060019,*THOMAS KNEALE & CO LTD,TK109902,7,3.47,CLOTHING,02/04/2015,,Operations Fire Stations,Furniture
800060019,*THOMAS KNEALE & CO LTD,TK109902,8,1.48,CLOTHING,02/04/2015,,Operations Fire Stations,Furniture
800060019,*THOMAS KNEALE & CO LTD,TK109902,9,10.89,CLOTHING,02/04/2015,,Operations Fire Stations,Furniture
800060019,*THOMAS KNEALE & CO LTD,TK109902,10,10.89,CLOTHING,02/04/2015,,Operations Fire Stations,Furniture
800060019,*THOMAS KNEALE & CO LTD,TK109902,11,0.99,CLOTHING,02/04/2015,,Operations Fire Stations,Furniture
800060019,*THOMAS KNEALE & CO LTD,TK109902,12,6.94,CLOTHING,02/04/2015,,Operations Fire Stations,Furniture
800060019,*THOMAS KNEALE & CO LTD,TK109902,13,2.96,CLOTHING,02/04/2015,,Operations Fire Stations,Furniture
800060019,*THOMAS KNEALE & CO LTD,TK109902,14,10.89,CLOTHING,02/04/2015,,Operations Fire Stations,Furniture
800060019,*THOMAS KNEALE & CO LTD,TK109902,15,3.47,CLOTHING,02/04/2015,,Operations Fire Stations,Furniture
800060019,*THOMAS KNEALE & CO LTD,TK109902,16,1.48,CLOTHING,02/04/2015,,Operations Fire Stations,Furniture
800060019,*THOMAS KNEALE & CO LTD,TK109902,17,10.89,CLOTHING,02/04/2015,,Operations Fire Stations,Furniture
800060019,*THOMAS KNEALE & CO LTD,TK109902,18,2.59,OFFICE FURNITURE,02/04/2015,,Operations Fire Stations,Furniture
800060019,*THOMAS KNEALE & CO LTD,TK109902,19,3.47,CLOTHING,02/04/2015,,Operations Fire Stations,Furniture
800060019,*THOMAS KNEALE & CO LTD,TK109902,20,10.89,CLOTHING,02/04/2015,,Operations Fire Stations,Furniture
800060019,*THOMAS KNEALE & CO LTD,TK109902,21,10.89,CLOTHING,02/04/2015,,Operations Fire Stations,Furniture
800060019,*THOMAS KNEALE & CO LTD,TK109902,22,3.47,CLOTHING,02/04/2015,,Operations Fire Stations,Furniture
800060019,*THOMAS KNEALE & CO LTD,TK109902,23,1.48,CLOTHING,02/04/2015,,Operations Fire Stations,Furniture
800060019,*THOMAS KNEALE & CO LTD,TK109902,24,3.47,CLOTHING,02/04/2015,,Operations Fire Stations,Furniture
800060019,*THOMAS KNEALE & CO LTD,TK109902,25,1.48,CLOTHING,02/04/2015,,Operations Fire Stations,Furniture
800060019,*THOMAS KNEALE & CO LTD,TK109902,26,10.89,CLOTHING,02/04/2015,,Operations Fire Stations,Furniture
800060019,*THOMAS KNEALE & CO LTD,TK109902,27,3.47,CLOTHING,02/04/2015,,Operations Fire Stations,Furniture
800060019,*THOMAS KNEALE & CO LTD,TK109902,28,10.89,CLOTHING,02/04/2015,,Operations Fire Stations,Furniture
800060019,*THOMAS KNEALE & CO LTD,TK109902,29,10.89,CLOTHING,02/04/2015,,Operations Fire Stations,Furniture
800060019,*THOMAS KNEALE & CO LTD,TK109902,30,10.89,CLOTHING,02/04/2015,,Operations Fire Stations,Furniture
800060019,*THOMAS KNEALE & CO LTD,TK109902,31,3.47,CLOTHING,02/04/2015,,Operations Fire Stations,Furniture
800060019,*THOMAS KNEALE & CO LTD,TK109902,32,10.89,CLOTHING,02/04/2015,,Operations Fire Stations,Furniture
800060019,*THOMAS KNEALE & CO LTD,TK109902,33,6.94,CLOTHING,02/04/2015,,Operations Fire Stations,Furniture
800060019,*THOMAS KNEALE & CO LTD,TK109902,34,2.96,CLOTHING,02/04/2015,,Operations Fire Stations,Furniture
800060019,*THOMAS KNEALE & CO LTD,TK109902,35,3.47,CLOTHING,02/04/2015,,Operations Fire Stations,Furniture
800060019,*THOMAS KNEALE & CO LTD,TK109902,36,1.48,CLOTHING,02/04/2015,,Operations Fire Stations,Furniture
800060019,*THOMAS KNEALE & CO LTD,TK109902,37,10.89,CLOTHING,02/04/2015,,Operations Fire Stations,Furniture
800060019,*THOMAS KNEALE & CO LTD,TK109902,38,3.47,CLOTHING,02/04/2015,,Operations Fire Stations,Furniture
800060019,*THOMAS KNEALE & CO LTD,TK109902,39,0.99,CLOTHING,02/04/2015,,Operations Fire Stations,Furniture
800060019,*THOMAS KNEALE & CO LTD,TK109902,40,6.94,CLOTHING,02/04/2015,,Operations Fire Stations,Furniture
800060019,*THOMAS KNEALE & CO LTD,TK109902,41,2.96,CLOTHING,02/04/2015,,Operations Fire Stations,Furniture
800060019,*THOMAS KNEALE & CO LTD,TK109902,42,2.59,OFFICE FURNITURE,02/04/2015,,Operations Fire Stations,Furniture
800060019,*THOMAS KNEALE & CO LTD,TK109902,43,10.89,CLOTHING,02/04/2015,,Operations Fire Stations,Furniture
800060019,*THOMAS KNEALE & CO LTD,TK109902,44,3.47,CLOTHING,02/04/2015,,Operations Fire Stations,Furniture
800060019,*THOMAS KNEALE & CO LTD,TK109902,45,1.48,CLOTHING,02/04/2015,,Operations Fire Stations,Furniture
800060019,*THOMAS KNEALE & CO LTD,TK109902,46,10.89,CLOTHING,02/04/2015,,Operations Fire Stations,Furniture
800060019,*THOMAS KNEALE & CO LTD,TK109902,47,103.6,OFFICE FURNITURE,02/04/2015,,Operations Fire Stations,Furniture
800060019,*THOMAS KNEALE & CO LTD,TK109902,48,0.99,CLOTHING,02/04/2015,,Operations Fire Stations,Furniture
800060019,*THOMAS KNEALE & CO LTD,TK109902,49,10.89,CLOTHING,02/04/2015,,Operations Fire Stations,Furniture
800060019,*THOMAS KNEALE & CO LTD,TK109902,50,6.94,CLOTHING,02/04/2015,,Operations Fire Stations,Furniture
800060019,*THOMAS KNEALE & CO LTD,TK109902,51,2.96,CLOTHING,02/04/2015,,Operations Fire Stations,Furniture
800060019,*THOMAS KNEALE & CO LTD,TK109902,52,10.89,CLOTHING,02/04/2015,,Operations Fire Stations,Furniture
800060019,*THOMAS KNEALE & CO LTD,TK109902,53,6.94,CLOTHING,02/04/2015,,Operations Fire Stations,Furniture
800060019,*THOMAS KNEALE & CO LTD,TK109902,54,2.96,CLOTHING,02/04/2015,,Operations Fire Stations,Furniture
800060019,*THOMAS KNEALE & CO LTD,TK109902,55,0.99,CLOTHING,02/04/2015,,Operations Fire Stations,Furniture
800060019,*THOMAS KNEALE & CO LTD,TK109902,56,10.89,CLOTHING,02/04/2015,,Operations Fire Stations,Furniture
800060019,*THOMAS KNEALE & CO LTD,TK109902,57,10.89,CLOTHING,02/04/2015,,Operations Fire Stations,Furniture
800060019,*THOMAS KNEALE & CO LTD,TK109902,58,3.47,CLOTHING,02/04/2015,,Operations Fire Stations,Furniture
800060019,*THOMAS KNEALE & CO LTD,TK109902,59,1.48,CLOTHING,02/04/2015,,Operations Fire Stations,Furniture
800060019,*THOMAS KNEALE & CO LTD,TK109902,60,4.98,OFFICE FURNITURE,02/04/2015,,Operations Fire Stations,Furniture
800060019,*THOMAS KNEALE & CO LTD,TK109902,61,3.47,CLOTHING,02/04/2015,,Operations Fire Stations,Furniture
800060019,*THOMAS KNEALE & CO LTD,TK109902,62,1.48,CLOTHING,02/04/2015,,Operations Fire Stations,Furniture
800060019,*THOMAS KNEALE & CO LTD,TK109902,63,10.89,CLOTHING,02/04/2015,,Operations Fire Stations,Furniture
800060019,*THOMAS KNEALE & CO LTD,TK109902,64,0.99,CLOTHING,02/04/2015,,Operations Fire Stations,Furniture
800060019,*THOMAS KNEALE & CO LTD,TK109902,65,3.47,CLOTHING,02/04/2015,,Operations Fire Stations,Furniture
800060019,*THOMAS KNEALE & CO LTD,TK109902,66,10.89,CLOTHING,02/04/2015,,Operations Fire Stations,Furniture
800060019,*THOMAS KNEALE & CO LTD,TK109902,67,3.47,CLOTHING,02/04/2015,,Operations Fire Stations,Furniture
800060019,*THOMAS KNEALE & CO LTD,TK109902,68,2.84,OFFICE FURNITURE,02/04/2015,,Operations Fire Stations,Furniture
800060019,*THOMAS KNEALE & CO LTD,TK109902,69,10.89,CLOTHING,02/04/2015,,Operations Fire Stations,Furniture
800060019,*THOMAS KNEALE & CO LTD,TK109902,70,1.48,CLOTHING,02/04/2015,,Operations Fire Stations,Furniture
800060019,*THOMAS KNEALE & CO LTD,TK109902,71,2.59,OFFICE FURNITURE,02/04/2015,,Operations Fire Stations,Furniture
800060019,*THOMAS KNEALE & CO LTD,TK109902,72,10.89,CLOTHING,02/04/2015,,Operations Fire Stations,Furniture
800060019,*THOMAS KNEALE & CO LTD,TK109902,73,10.89,CLOTHING,02/04/2015,,Operations Fire Stations,Furniture
800060019,*THOMAS KNEALE & CO LTD,TK109902,74,0.99,CLOTHING,02/04/2015,,Operations Fire Stations,Furniture
800060019,*THOMAS KNEALE & CO LTD,TK109902,75,3.47,CLOTHING,02/04/2015,,Operations Fire Stations,Furniture
800060019,*THOMAS KNEALE & CO LTD,TK109902,76,10.89,CLOTHING,02/04/2015,,Operations Fire Stations,Furniture
800060019,*THOMAS KNEALE & CO LTD,TK109902,77,10.89,CLOTHING,02/04/2015,,Operations Fire Stations,Furniture
800060019,*THOMAS KNEALE & CO LTD,TK109902,78,0.99,CLOTHING,02/04/2015,,Operations Fire Stations,Furniture
800060019,*THOMAS KNEALE & CO LTD,TK109902,79,2.96,CLOTHING,02/04/2015,,Operations Fire Stations,Furniture
800060019,*THOMAS KNEALE & CO LTD,TK109902,80,10.89,CLOTHING,02/04/2015,,Operations Fire Stations,Furniture
800060019,*THOMAS KNEALE & CO LTD,TK109902,81,3.47,CLOTHING,02/04/2015,,Operations Fire Stations,Furniture
800060019,*THOMAS KNEALE & CO LTD,TK109902,82,1.48,CLOTHING,02/04/2015,,Operations Fire Stations,Furniture
800060019,*THOMAS KNEALE & CO LTD,TK109902,83,10.89,CLOTHING,02/04/2015,,Operations Fire Stations,Furniture
800060019,*THOMAS KNEALE & CO LTD,TK109902,84,0.99,CLOTHING,02/04/2015,,Operations Fire Stations,Furniture
800060019,*THOMAS KNEALE & CO LTD,TK109902,85,10.89,CLOTHING,02/04/2015,,Operations Fire Stations,Furniture
800060019,*THOMAS KNEALE & CO LTD,TK109902,86,6.94,CLOTHING,02/04/2015,,Operations Fire Stations,Furniture
800060019,*THOMAS KNEALE & CO LTD,TK109902,87,2.96,CLOTHING,02/04/2015,,Operations Fire Stations,Furniture
800060019,*THOMAS KNEALE & CO LTD,TK109902,88,6.94,CLOTHING,02/04/2015,,Operations Fire Stations,Furniture
800060019,*THOMAS KNEALE & CO LTD,TK109902,89,2.96,CLOTHING,02/04/2015,,Operations Fire Stations,Furniture
800060019,*THOMAS KNEALE & CO LTD,TK109902,90,1.48,CLOTHING,02/04/2015,,Operations Fire Stations,Furniture
800060019,*THOMAS KNEALE & CO LTD,TK109902,91,3.47,CLOTHING,02/04/2015,,Operations Fire Stations,Furniture
800060019,*THOMAS KNEALE & CO LTD,TK109902,92,1.48,CLOTHING,02/04/2015,,Operations Fire Stations,Furniture
800060019,*THOMAS KNEALE & CO LTD,TK109902,93,3.47,CLOTHING,02/04/2015,,Operations Fire Stations,Furniture
800060019,*THOMAS KNEALE & CO LTD,TK109902,94,1.48,CLOTHING,02/04/2015,,Operations Fire Stations,Furniture
800060019,*THOMAS KNEALE & CO LTD,TK109902,95,1.48,CLOTHING,02/04/2015,,Operations Fire Stations,Furniture
800060019,*THOMAS KNEALE & CO LTD,TK109902,96,3.47,CLOTHING,02/04/2015,,Operations Fire Stations,Furniture
800060019,*THOMAS KNEALE & CO LTD,TK109902,97,10.89,CLOTHING,02/04/2015,,Operations Fire Stations,Furniture
800060019,*THOMAS KNEALE & CO LTD,TK109902,98,10.89,CLOTHING,02/04/2015,,Operations Fire Stations,Furniture
800060019,*THOMAS KNEALE & CO LTD,TK109902,99,8.52,OFFICE FURNITURE,02/04/2015,,Operations Fire Stations,Furniture
800060019,*THOMAS KNEALE & CO LTD,TK109902,100,2.96,CLOTHING,02/04/2015,,Operations Fire Stations,Furniture
800060019,*THOMAS KNEALE & CO LTD,TK109902,101,6.94,CLOTHING,02/04/2015,,Operations Fire Stations,Furniture
800060019,*THOMAS KNEALE & CO LTD,TK109902,102,10.89,CLOTHING,02/04/2015,,Operations Fire Stations,Furniture
300315H,ARVAL UK LTD,VS0001657961,1,410.84,CONTRACT HIRE,02/04/2015,410.84,LIFE - LFB Funded,Vehicle Management
800060095,ALLSTAR BUSINESS SOLUTIONS LTD,E2004438731,1,511.36,FUEL,08/04/2015,"17,721.51",Procurement,Vehicle Management
800060095,ALLSTAR BUSINESS SOLUTIONS LTD,E2004438731,2,510.16,FUEL,08/04/2015,,Operations Fire Stations,Vehicle Management
800060095,ALLSTAR BUSINESS SOLUTIONS LTD,E2004438731,3,483.1,FUEL,08/04/2015,,Operations Fire Stations,Vehicle Management
800060095,ALLSTAR BUSINESS SOLUTIONS LTD,E2004438731,4,481.58,FUEL,08/04/2015,,Operations Non Fire Stations,Vehicle Management
800060095,ALLSTAR BUSINESS SOLUTIONS LTD,E2004438731,5,418.99,FUEL,08/04/2015,,Operations Fire Stations,Vehicle Management
800060095,ALLSTAR BUSINESS SOLUTIONS LTD,E2004438731,6,411.15,FUEL,08/04/2015,,Operations Fire Stations,Vehicle Management
800060095,ALLSTAR BUSINESS SOLUTIONS LTD,E2004438731,7,403.21,FUEL,08/04/2015,,Operations Fire Stations,Vehicle Management
800060095,ALLSTAR BUSINESS SOLUTIONS LTD,E2004438731,8,396.78,FUEL,08/04/2015,,Operations Fire Stations,Vehicle Management
800060095,ALLSTAR BUSINESS SOLUTIONS LTD,E2004438731,9,355.44,FUEL,08/04/2015,,Operations Fire Stations,Vehicle Management
800060095,ALLSTAR BUSINESS SOLUTIONS LTD,E2004438731,10,318.88,FUEL,08/04/2015,,Operations Fire Stations,Vehicle Management
800060095,ALLSTAR BUSINESS SOLUTIONS LTD,E2004438731,11,312.84,FUEL,08/04/2015,,Operations Fire Stations,Vehicle Management
800060095,ALLSTAR BUSINESS SOLUTIONS LTD,E2004438731,12,299.45,FUEL,08/04/2015,,Operations Fire Stations,Vehicle Management
800060095,ALLSTAR BUSINESS SOLUTIONS LTD,E2004438731,13,289.74,FUEL,08/04/2015,,Operations Fire Stations,Vehicle Management
800060095,ALLSTAR BUSINESS SOLUTIONS LTD,E2004438731,14,271.06,FUEL,08/04/2015,,Operations Fire Stations,Vehicle Management
800060095,ALLSTAR BUSINESS SOLUTIONS LTD,E2004438731,15,267.52,FUEL,08/04/2015,,Operations Fire Stations,Vehicle Management
800060095,ALLSTAR BUSINESS SOLUTIONS LTD,E2004438731,16,264.49,FUEL,08/04/2015,,Operations Fire Stations,Vehicle Management
800060095,ALLSTAR BUSINESS SOLUTIONS LTD,E2004438731,17,262.18,FUEL,08/04/2015,,Operations Fire Stations,Vehicle Management
800060095,ALLSTAR BUSINESS SOLUTIONS LTD,E2004438731,18,261.05,FUEL,08/04/2015,,Operations Fire Stations,Vehicle Management
800060095,ALLSTAR BUSINESS SOLUTIONS LTD,E2004438731,19,258.76,FUEL,08/04/2015,,Operations Fire Stations,Vehicle Management
800060095,ALLSTAR BUSINESS SOLUTIONS LTD,E2004438731,20,258.11,FUEL,08/04/2015,,Operations Fire Stations,Vehicle Management
800060095,ALLSTAR BUSINESS SOLUTIONS LTD,E2004438731,21,257.45,FUEL,08/04/2015,,Operations Fire Stations,Vehicle Management
800060095,ALLSTAR BUSINESS SOLUTIONS LTD,E2004438731,22,255.14,FUEL,08/04/2015,,Operations Fire Stations,Vehicle Management
800060095,ALLSTAR BUSINESS SOLUTIONS LTD,E2004438731,23,247.56,FUEL,08/04/2015,,Operations Fire Stations,Vehicle Management
800060095,ALLSTAR BUSINESS SOLUTIONS LTD,E2004438731,24,241.68,FUEL,08/04/2015,,Operations Fire Stations,Vehicle Management
800060095,ALLSTAR BUSINESS SOLUTIONS LTD,E2004438731,25,239.18,FUEL,08/04/2015,,Operations Fire Stations,Vehicle Management
800060095,ALLSTAR BUSINESS SOLUTIONS LTD,E2004438731,26,235.77,FUEL,08/04/2015,,Operations Fire Stations,Vehicle Management
800060095,ALLSTAR BUSINESS SOLUTIONS LTD,E2004438731,27,226.06,FUEL,08/04/2015,,Operations Fire Stations,Vehicle Management
800060095,ALLSTAR BUSINESS SOLUTIONS LTD,E2004438731,28,223.39,FUEL,08/04/2015,,Operations Fire Stations,Vehicle Management
800060095,ALLSTAR BUSINESS SOLUTIONS LTD,E2004438731,29,212.31,FUEL,08/04/2015,,Operations Fire Stations,Vehicle Management
800060095,ALLSTAR BUSINESS SOLUTIONS LTD,E2004438731,30,210.1,FUEL,08/04/2015,,Operations Fire Stations,Vehicle Management
800060095,ALLSTAR BUSINESS SOLUTIONS LTD,E2004438731,31,207.8,FUEL,08/04/2015,,Operations Fire Stations,Vehicle Management
800060095,ALLSTAR BUSINESS SOLUTIONS LTD,E2004438731,32,207.78,FUEL,08/04/2015,,Operations Fire Stations,Vehicle Management
800060095,ALLSTAR BUSINESS SOLUTIONS LTD,E2004438731,33,204.99,FUEL,08/04/2015,,Operations Fire Stations,Vehicle Management
800060095,ALLSTAR BUSINESS SOLUTIONS LTD,E2004438731,34,204.34,FUEL,08/04/2015,,Operations Fire Stations,Vehicle Management
800060095,ALLSTAR BUSINESS SOLUTIONS LTD,E2004438731,35,197.54,FUEL,08/04/2015,,Operations Fire Stations,Vehicle Management
800060095,ALLSTAR BUSINESS SOLUTIONS LTD,E2004438731,36,192.99,FUEL,08/04/2015,,Command Units,Vehicle Management
800060095,ALLSTAR BUSINESS SOLUTIONS LTD,E2004438731,37,191.57,FUEL,08/04/2015,,Operations Fire Stations,Vehicle Management
800060095,ALLSTAR BUSINESS SOLUTIONS LTD,E2004438731,38,186.03,FUEL,08/04/2015,,Operations Fire Stations,Vehicle Management
800060095,ALLSTAR BUSINESS SOLUTIONS LTD,E2004438731,39,178.11,FUEL,08/04/2015,,Operations Fire Stations,Vehicle Management
800060095,ALLSTAR BUSINESS SOLUTIONS LTD,E2004438731,40,171.99,FUEL,08/04/2015,,Operations Fire Stations,Vehicle Management
800060095,ALLSTAR BUSINESS SOLUTIONS LTD,E2004438731,41,170.33,FUEL,08/04/2015,,Command Units,Vehicle Management
800060095,ALLSTAR BUSINESS SOLUTIONS LTD,E2004438731,42,168.74,FUEL,08/04/2015,,Operations Fire Stations,Vehicle Management
800060095,ALLSTAR BUSINESS SOLUTIONS LTD,E2004438731,43,166.25,FUEL,08/04/2015,,Operations Fire Stations,Vehicle Management
800060095,ALLSTAR BUSINESS SOLUTIONS LTD,E2004438731,44,164.49,FUEL,08/04/2015,,Operations Fire Stations,Vehicle Management
800060095,ALLSTAR BUSINESS SOLUTIONS LTD,E2004438731,45,160.32,FUEL,08/04/2015,,Command Units,Vehicle Management
800060095,ALLSTAR BUSINESS SOLUTIONS LTD,E2004438731,46,158.72,FUEL,08/04/2015,,Operations Fire Stations,Vehicle Management
800060095,ALLSTAR BUSINESS SOLUTIONS LTD,E2004438731,47,154.23,FUEL,08/04/2015,,Operations Fire Stations,Vehicle Management
800060095,ALLSTAR BUSINESS SOLUTIONS LTD,E2004438731,48,153.93,FUEL,08/04/2015,,Command Units,Vehicle Management
800060095,ALLSTAR BUSINESS SOLUTIONS LTD,E2004438731,49,153.16,FUEL,08/04/2015,,Operations Fire Stations,Vehicle Management
800060095,ALLSTAR BUSINESS SOLUTIONS LTD,E2004438731,50,148.89,FUEL,08/04/2015,,Operations Fire Stations,Vehicle Management
800060095,ALLSTAR BUSINESS SOLUTIONS LTD,E2004438731,51,148.16,FUEL,08/04/2015,,Operations Fire Stations,Vehicle Management
800060095,ALLSTAR BUSINESS SOLUTIONS LTD,E2004438731,52,146.2,FUEL,08/04/2015,,Fire Safety Regulation,Vehicle Management
800060095,ALLSTAR BUSINESS SOLUTIONS LTD,E2004438731,53,143.42,FUEL,08/04/2015,,Operations Fire Stations,Vehicle Management
800060095,ALLSTAR BUSINESS SOLUTIONS LTD,E2004438731,54,143.15,FUEL,08/04/2015,,Command Units,Vehicle Management
800060095,ALLSTAR BUSINESS SOLUTIONS LTD,E2004438731,55,142.4,FUEL,08/04/2015,,Operations Fire Stations,Vehicle Management
800060095,ALLSTAR BUSINESS SOLUTIONS LTD,E2004438731,56,140.9,FUEL,08/04/2015,,Operations Fire Stations,Vehicle Management
800060095,ALLSTAR BUSINESS SOLUTIONS LTD,E2004438731,57,139.88,FUEL,08/04/2015,,Operations Fire Stations,Vehicle Management
800060095,ALLSTAR BUSINESS SOLUTIONS LTD,E2004438731,58,139.68,FUEL,08/04/2015,,Operations Fire Stations,Vehicle Management
800060095,ALLSTAR BUSINESS SOLUTIONS LTD,E2004438731,59,133.15,FUEL,08/04/2015,,Operations Fire Stations,Vehicle Management
800060095,ALLSTAR BUSINESS SOLUTIONS LTD,E2004438731,60,126.91,FUEL,08/04/2015,,Operations Fire Stations,Vehicle Management
800060095,ALLSTAR BUSINESS SOLUTIONS LTD,E2004438731,61,126.39,FUEL,08/04/2015,,Operations Fire Stations,Vehicle Management
800060095,ALLSTAR BUSINESS SOLUTIONS LTD,E2004438731,62,124.54,FUEL,08/04/2015,,Command Units,Vehicle Management
800060095,ALLSTAR BUSINESS SOLUTIONS LTD,E2004438731,63,122.75,FUEL,08/04/2015,,Operations Fire Stations,Vehicle Management
800060095,ALLSTAR BUSINESS SOLUTIONS LTD,E2004438731,64,120.42,FUEL,08/04/2015,,Operations Fire Stations,Vehicle Management
800060095,ALLSTAR BUSINESS SOLUTIONS LTD,E2004438731,65,119.37,FUEL,08/04/2015,,Operations Fire Stations,Vehicle Management
800060095,ALLSTAR BUSINESS SOLUTIONS LTD,E2004438731,66,116.98,FUEL,08/04/2015,,Operations Fire Stations,Vehicle Management
800060095,ALLSTAR BUSINESS SOLUTIONS LTD,E2004438731,67,114.97,FUEL,08/04/2015,,Operations Fire Stations,Vehicle Management
800060095,ALLSTAR BUSINESS SOLUTIONS LTD,E2004438731,68,112.69,FUEL,08/04/2015,,Operations Fire Stations,Vehicle Management
800060095,ALLSTAR BUSINESS SOLUTIONS LTD,E2004438731,69,108.61,FUEL,08/04/2015,,Operations Fire Stations,Vehicle Management
800060095,ALLSTAR BUSINESS SOLUTIONS LTD,E2004438731,70,106,FUEL,08/04/2015,,Operations Fire Stations,Vehicle Management
800060095,ALLSTAR BUSINESS SOLUTIONS LTD,E2004438731,71,105.99,FUEL,08/04/2015,,Operations Fire Stations,Vehicle Management
800060095,ALLSTAR BUSINESS SOLUTIONS LTD,E2004438731,72,105.57,FUEL,08/04/2015,,Operations Fire Stations,Vehicle Management
800060095,ALLSTAR BUSINESS SOLUTIONS LTD,E2004438731,73,104.09,FUEL,08/04/2015,,Operations Fire Stations,Vehicle Management
800060095,ALLSTAR BUSINESS SOLUTIONS LTD,E2004438731,74,95.84,FUEL,08/04/2015,,Operations Fire Stations,Vehicle Management
800060095,ALLSTAR BUSINESS SOLUTIONS LTD,E2004438731,75,95.5,FUEL,08/04/2015,,Information and Communication Technology,Vehicle Management
800060095,ALLSTAR BUSINESS SOLUTIONS LTD,E2004438731,76,92.29,FUEL,08/04/2015,,Operations Fire Stations,Vehicle Management
800060095,ALLSTAR BUSINESS SOLUTIONS LTD,E2004438731,77,89.81,FUEL,08/04/2015,,Operations Fire Stations,Vehicle Management
800060095,ALLSTAR BUSINESS SOLUTIONS LTD,E2004438731,78,88.91,FUEL,08/04/2015,,Business Continuity,Vehicle Management
800060095,ALLSTAR BUSINESS SOLUTIONS LTD,E2004438731,79,87.63,FUEL,08/04/2015,,Command Units,Vehicle Management
800060095,ALLSTAR BUSINESS SOLUTIONS LTD,E2004438731,80,86.29,FUEL,08/04/2015,,Operations Fire Stations,Vehicle Management
800060095,ALLSTAR BUSINESS SOLUTIONS LTD,E2004438731,81,86.12,FUEL,08/04/2015,,Operations Fire Stations,Vehicle Management
800060095,ALLSTAR BUSINESS SOLUTIONS LTD,E2004438731,82,83.91,FUEL,08/04/2015,,Operations Fire Stations,Vehicle Management
800060095,ALLSTAR BUSINESS SOLUTIONS LTD,E2004438731,83,78.85,FUEL,08/04/2015,,Command Units,Vehicle Management
800060095,ALLSTAR BUSINESS SOLUTIONS LTD,E2004438731,84,77.9,FUEL,08/04/2015,,Operations Fire Stations,Vehicle Management
800060095,ALLSTAR BUSINESS SOLUTIONS LTD,E2004438731,85,77.48,FUEL,08/04/2015,,Operations Fire Stations,Vehicle Management
800060095,ALLSTAR BUSINESS SOLUTIONS LTD,E2004438731,86,76.24,FUEL,08/04/2015,,Operations Fire Stations,Vehicle Management
800060095,ALLSTAR BUSINESS SOLUTIONS LTD,E2004438731,87,74.2,FUEL,08/04/2015,,Operations Fire Stations,Vehicle Management
800060095,ALLSTAR BUSINESS SOLUTIONS LTD,E2004438731,88,71.87,FUEL,08/04/2015,,Technical And Service Support,Vehicle Management
800060095,ALLSTAR BUSINESS SOLUTIONS LTD,E2004438731,89,71.63,FUEL,08/04/2015,,Operations Fire Stations,Vehicle Management
800060095,ALLSTAR BUSINESS SOLUTIONS LTD,E2004438731,90,68.55,FUEL,08/04/2015,,Operational Resilience,Vehicle Management
800060095,ALLSTAR BUSINESS SOLUTIONS LTD,E2004438731,91,67.79,FUEL,08/04/2015,,Operations Non Fire Stations,Vehicle Management
800060095,ALLSTAR BUSINESS SOLUTIONS LTD,E2004438731,92,62.24,FUEL,08/04/2015,,Operational Procedures,Vehicle Management
800060095,ALLSTAR BUSINESS SOLUTIONS LTD,E2004438731,93,60.55,FUEL,08/04/2015,,LIFE - LFB Funded,Vehicle Management
800060095,ALLSTAR BUSINESS SOLUTIONS LTD,E2004438731,94,56.03,FUEL,08/04/2015,,Operations Fire Stations,Vehicle Management
800060095,ALLSTAR BUSINESS SOLUTIONS LTD,E2004438731,95,54.23,FUEL,08/04/2015,,CBRN RRT,Vehicle Management
800060095,ALLSTAR BUSINESS SOLUTIONS LTD,E2004438731,96,51.67,FUEL,08/04/2015,,Operational Resilience,Vehicle Management
800060095,ALLSTAR BUSINESS SOLUTIONS LTD,E2004438731,97,44.82,FUEL,08/04/2015,,Operations Fire Stations,Vehicle Management
800060095,ALLSTAR BUSINESS SOLUTIONS LTD,E2004438731,98,39.16,FUEL,08/04/2015,,Operations Fire Stations,Vehicle Management
800060095,ALLSTAR BUSINESS SOLUTIONS LTD,E2004438731,99,35.53,FUEL,08/04/2015,,Operations Fire Stations,Vehicle Management
800060095,ALLSTAR BUSINESS SOLUTIONS LTD,E2004438731,100,27.56,FUEL,08/04/2015,,Technical And Service Support,Vehicle Management
800060243,ALLSTAR BUSINESS SOLUTIONS LTD,E2004474887,1,811.79,FUEL,08/04/2015,"15,245.92",Operations Non Fire Stations,Vehicle Management
800060243,ALLSTAR BUSINESS SOLUTIONS LTD,E2004474887,2,503.44,FUEL,08/04/2015,,Operations Fire Stations,Vehicle Management
800060243,ALLSTAR BUSINESS SOLUTIONS LTD,E2004474887,3,411.31,FUEL,08/04/2015,,Procurement,Vehicle Management
800060243,ALLSTAR BUSINESS SOLUTIONS LTD,E2004474887,4,319.66,FUEL,08/04/2015,,Operations Fire Stations,Vehicle Management
800060243,ALLSTAR BUSINESS SOLUTIONS LTD,E2004474887,5,312.23,FUEL,08/04/2015,,Operations Fire Stations,Vehicle Management
800060243,ALLSTAR BUSINESS SOLUTIONS LTD,E2004474887,6,303.45,FUEL,08/04/2015,,Operations Fire Stations,Vehicle Management
800060243,ALLSTAR BUSINESS SOLUTIONS LTD,E2004474887,7,300.16,FUEL,08/04/2015,,Operations Fire Stations,Vehicle Management
800060243,ALLSTAR BUSINESS SOLUTIONS LTD,E2004474887,8,298.89,FUEL,08/04/2015,,Operations Fire Stations,Vehicle Management
800060243,ALLSTAR BUSINESS SOLUTIONS LTD,E2004474887,9,288.31,FUEL,08/04/2015,,Operations Fire Stations,Vehicle Management
800060243,ALLSTAR BUSINESS SOLUTIONS LTD,E2004474887,10,269.98,FUEL,08/04/2015,,Operations Fire Stations,Vehicle Management
800060243,ALLSTAR BUSINESS SOLUTIONS LTD,E2004474887,11,265.2,FUEL,08/04/2015,,Operations Fire Stations,Vehicle Management
800060243,ALLSTAR BUSINESS SOLUTIONS LTD,E2004474887,12,260.04,FUEL,08/04/2015,,Operations Fire Stations,Vehicle Management
800060243,ALLSTAR BUSINESS SOLUTIONS LTD,E2004474887,13,251.47,FUEL,08/04/2015,,Operations Fire Stations,Vehicle Management
800060243,ALLSTAR BUSINESS SOLUTIONS LTD,E2004474887,14,245.04,FUEL,08/04/2015,,Operations Fire Stations,Vehicle Management
800060243,ALLSTAR BUSINESS SOLUTIONS LTD,E2004474887,15,243.7,FUEL,08/04/2015,,Fire Safety Regulation,Vehicle Management
800060243,ALLSTAR BUSINESS SOLUTIONS LTD,E2004474887,16,239.01,FUEL,08/04/2015,,Operations Fire Stations,Vehicle Management
800060243,ALLSTAR BUSINESS SOLUTIONS LTD,E2004474887,17,237.39,FUEL,08/04/2015,,Operations Fire Stations,Vehicle Management
800060243,ALLSTAR BUSINESS SOLUTIONS LTD,E2004474887,18,234.15,FUEL,08/04/2015,,Operations Fire Stations,Vehicle Management
800060243,ALLSTAR BUSINESS SOLUTIONS LTD,E2004474887,19,230.77,FUEL,08/04/2015,,Operations Fire Stations,Vehicle Management
800060243,ALLSTAR BUSINESS SOLUTIONS LTD,E2004474887,20,229.97,FUEL,08/04/2015,,Operations Fire Stations,Vehicle Management
800060243,ALLSTAR BUSINESS SOLUTIONS LTD,E2004474887,21,225.47,FUEL,08/04/2015,,Operations Fire Stations,Vehicle Management
800060243,ALLSTAR BUSINESS SOLUTIONS LTD,E2004474887,22,225.4,FUEL,08/04/2015,,Operations Fire Stations,Vehicle Management
800060243,ALLSTAR BUSINESS SOLUTIONS LTD,E2004474887,23,218.43,FUEL,08/04/2015,,Operations Fire Stations,Vehicle Management
800060243,ALLSTAR BUSINESS SOLUTIONS LTD,E2004474887,24,217.76,FUEL,08/04/2015,,Operations Fire Stations,Vehicle Management
800060243,ALLSTAR BUSINESS SOLUTIONS LTD,E2004474887,25,216.71,FUEL,08/04/2015,,Operations Fire Stations,Vehicle Management
800060243,ALLSTAR BUSINESS SOLUTIONS LTD,E2004474887,26,215.3,FUEL,08/04/2015,,Operations Fire Stations,Vehicle Management
800060243,ALLSTAR BUSINESS SOLUTIONS LTD,E2004474887,27,209.83,FUEL,08/04/2015,,Operations Fire Stations,Vehicle Management
800060243,ALLSTAR BUSINESS SOLUTIONS LTD,E2004474887,28,195.83,FUEL,08/04/2015,,Operations Fire Stations,Vehicle Management
800060243,ALLSTAR BUSINESS SOLUTIONS LTD,E2004474887,29,194.99,FUEL,08/04/2015,,Operations Fire Stations,Vehicle Management
800060243,ALLSTAR BUSINESS SOLUTIONS LTD,E2004474887,30,192.85,FUEL,08/04/2015,,Operations Fire Stations,Vehicle Management
800060243,ALLSTAR BUSINESS SOLUTIONS LTD,E2004474887,31,186.29,FUEL,08/04/2015,,Operations Fire Stations,Vehicle Management
800060243,ALLSTAR BUSINESS SOLUTIONS LTD,E2004474887,32,173.95,FUEL,08/04/2015,,Operations Fire Stations,Vehicle Management
800060243,ALLSTAR BUSINESS SOLUTIONS LTD,E2004474887,33,171.78,FUEL,08/04/2015,,Operations Fire Stations,Vehicle Management
800060243,ALLSTAR BUSINESS SOLUTIONS LTD,E2004474887,34,171.68,FUEL,08/04/2015,,Operations Fire Stations,Vehicle Management
800060243,ALLSTAR BUSINESS SOLUTIONS LTD,E2004474887,35,168.94,FUEL,08/04/2015,,Operations Fire Stations,Vehicle Management
800060243,ALLSTAR BUSINESS SOLUTIONS LTD,E2004474887,36,165.49,FUEL,08/04/2015,,Operations Fire Stations,Vehicle Management
800060243,ALLSTAR BUSINESS SOLUTIONS LTD,E2004474887,37,163.17,FUEL,08/04/2015,,Operations Fire Stations,Vehicle Management
800060243,ALLSTAR BUSINESS SOLUTIONS LTD,E2004474887,38,162.64,FUEL,08/04/2015,,Operations Fire Stations,Vehicle Management
800060243,ALLSTAR BUSINESS SOLUTIONS LTD,E2004474887,39,158.22,FUEL,08/04/2015,,Operations Fire Stations,Vehicle Management
800060243,ALLSTAR BUSINESS SOLUTIONS LTD,E2004474887,40,153.44,FUEL,08/04/2015,,Operations Fire Stations,Vehicle Management
800060243,ALLSTAR BUSINESS SOLUTIONS LTD,E2004474887,41,153,FUEL,08/04/2015,,Operations Fire Stations,Vehicle Management
800060243,ALLSTAR BUSINESS SOLUTIONS LTD,E2004474887,42,152.59,FUEL,08/04/2015,,Operations Fire Stations,Vehicle Management
800060243,ALLSTAR BUSINESS SOLUTIONS LTD,E2004474887,43,146.34,FUEL,08/04/2015,,Operations Fire Stations,Vehicle Management
800060243,ALLSTAR BUSINESS SOLUTIONS LTD,E2004474887,44,145.13,FUEL,08/04/2015,,Operations Fire Stations,Vehicle Management
800060243,ALLSTAR BUSINESS SOLUTIONS LTD,E2004474887,45,142.23,FUEL,08/04/2015,,Operations Fire Stations,Vehicle Management
800060243,ALLSTAR BUSINESS SOLUTIONS LTD,E2004474887,46,135.09,FUEL,08/04/2015,,Operations Fire Stations,Vehicle Management
800060243,ALLSTAR BUSINESS SOLUTIONS LTD,E2004474887,47,133.46,FUEL,08/04/2015,,Operations Fire Stations,Vehicle Management
800060243,ALLSTAR BUSINESS SOLUTIONS LTD,E2004474887,48,130.22,FUEL,08/04/2015,,Operations Fire Stations,Vehicle Management
800060243,ALLSTAR BUSINESS SOLUTIONS LTD,E2004474887,49,128.07,FUEL,08/04/2015,,Operations Fire Stations,Vehicle Management
800060243,ALLSTAR BUSINESS SOLUTIONS LTD,E2004474887,50,127.41,FUEL,08/04/2015,,Operations Fire Stations,Vehicle Management
800060243,ALLSTAR BUSINESS SOLUTIONS LTD,E2004474887,51,125.93,FUEL,08/04/2015,,Operations Fire Stations,Vehicle Management
800060243,ALLSTAR BUSINESS SOLUTIONS LTD,E2004474887,52,125.56,FUEL,08/04/2015,,Operations Fire Stations,Vehicle Management
800060243,ALLSTAR BUSINESS SOLUTIONS LTD,E2004474887,53,121.19,FUEL,08/04/2015,,Operations Fire Stations,Vehicle Management
800060243,ALLSTAR BUSINESS SOLUTIONS LTD,E2004474887,54,119.3,FUEL,08/04/2015,,Operations Fire Stations,Vehicle Management
800060243,ALLSTAR BUSINESS SOLUTIONS LTD,E2004474887,55,119.13,FUEL,08/04/2015,,Operations Fire Stations,Vehicle Management
800060243,ALLSTAR BUSINESS SOLUTIONS LTD,E2004474887,56,117.92,FUEL,08/04/2015,,Operations Fire Stations,Vehicle Management
800060243,ALLSTAR BUSINESS SOLUTIONS LTD,E2004474887,57,112.08,FUEL,08/04/2015,,Operations Fire Stations,Vehicle Management
800060243,ALLSTAR BUSINESS SOLUTIONS LTD,E2004474887,58,110.39,FUEL,08/04/2015,,Operations Fire Stations,Vehicle Management
800060243,ALLSTAR BUSINESS SOLUTIONS LTD,E2004474887,59,108.88,FUEL,08/04/2015,,Operations Non Fire Stations,Vehicle Management
800060243,ALLSTAR BUSINESS SOLUTIONS LTD,E2004474887,60,108.51,FUEL,08/04/2015,,Operations Fire Stations,Vehicle Management
800060243,ALLSTAR BUSINESS SOLUTIONS LTD,E2004474887,61,107.4,FUEL,08/04/2015,,Operations Fire Stations,Vehicle Management
800060243,ALLSTAR BUSINESS SOLUTIONS LTD,E2004474887,62,102.13,FUEL,08/04/2015,,Operations Fire Stations,Vehicle Management
800060243,ALLSTAR BUSINESS SOLUTIONS LTD,E2004474887,63,101.53,FUEL,08/04/2015,,Command Units,Vehicle Management
800060243,ALLSTAR BUSINESS SOLUTIONS LTD,E2004474887,64,101.34,FUEL,08/04/2015,,Operations Fire Stations,Vehicle Management
800060243,ALLSTAR BUSINESS SOLUTIONS LTD,E2004474887,65,99.43,FUEL,08/04/2015,,Command Units,Vehicle Management
800060243,ALLSTAR BUSINESS SOLUTIONS LTD,E2004474887,66,98.3,FUEL,08/04/2015,,Technical And Service Support,Vehicle Management
800060243,ALLSTAR BUSINESS SOLUTIONS LTD,E2004474887,67,96.31,FUEL,08/04/2015,,Operations Fire Stations,Vehicle Management
800060243,ALLSTAR BUSINESS SOLUTIONS LTD,E2004474887,68,94.43,FUEL,08/04/2015,,Operations Fire Stations,Vehicle Management
800060243,ALLSTAR BUSINESS SOLUTIONS LTD,E2004474887,69,93.98,FUEL,08/04/2015,,Operations Fire Stations,Vehicle Management
800060243,ALLSTAR BUSINESS SOLUTIONS LTD,E2004474887,70,91.99,FUEL,08/04/2015,,Information and Communication Technology,Vehicle Management
800060243,ALLSTAR BUSINESS SOLUTIONS LTD,E2004474887,71,88.3,FUEL,08/04/2015,,Operations Fire Stations,Vehicle Management
800060243,ALLSTAR BUSINESS SOLUTIONS LTD,E2004474887,72,87.56,FUEL,08/04/2015,,Command Units,Vehicle Management
800060243,ALLSTAR BUSINESS SOLUTIONS LTD,E2004474887,73,87.51,FUEL,08/04/2015,,LIFE - LFB Funded,Vehicle Management
800060243,ALLSTAR BUSINESS SOLUTIONS LTD,E2004474887,74,86.46,FUEL,08/04/2015,,Operations Fire Stations,Vehicle Management
800060243,ALLSTAR BUSINESS SOLUTIONS LTD,E2004474887,75,85.43,FUEL,08/04/2015,,Operations Fire Stations,Vehicle Management
800060243,ALLSTAR BUSINESS SOLUTIONS LTD,E2004474887,76,83.3,FUEL,08/04/2015,,Operations Fire Stations,Vehicle Management
800060243,ALLSTAR BUSINESS SOLUTIONS LTD,E2004474887,77,82.51,FUEL,08/04/2015,,Operations Fire Stations,Vehicle Management
800060243,ALLSTAR BUSINESS SOLUTIONS LTD,E2004474887,78,80.51,FUEL,08/04/2015,,Operations Fire Stations,Vehicle Management
800060243,ALLSTAR BUSINESS SOLUTIONS LTD,E2004474887,79,80.26,FUEL,08/04/2015,,Operations Fire Stations,Vehicle Management
800060243,ALLSTAR BUSINESS SOLUTIONS LTD,E2004474887,80,78.3,FUEL,08/04/2015,,Operations Fire Stations,Vehicle Management
800060243,ALLSTAR BUSINESS SOLUTIONS LTD,E2004474887,81,77.58,FUEL,08/04/2015,,Operations Fire Stations,Vehicle Management
800060243,ALLSTAR BUSINESS SOLUTIONS LTD,E2004474887,82,68.34,FUEL,08/04/2015,,Operations Fire Stations,Vehicle Management
800060243,ALLSTAR BUSINESS SOLUTIONS LTD,E2004474887,83,67.38,FUEL,08/04/2015,,Operations Non Fire Stations,Vehicle Management
800060243,ALLSTAR BUSINESS SOLUTIONS LTD,E2004474887,84,67.37,FUEL,08/04/2015,,Operations Fire Stations,Vehicle Management
800060243,ALLSTAR BUSINESS SOLUTIONS LTD,E2004474887,85,66.67,FUEL,08/04/2015,,Operational Resilience,Vehicle Management
800060243,ALLSTAR BUSINESS SOLUTIONS LTD,E2004474887,86,66.66,FUEL,08/04/2015,,Operations Fire Stations,Vehicle Management
800060243,ALLSTAR BUSINESS SOLUTIONS LTD,E2004474887,87,64.72,FUEL,08/04/2015,,Operations Fire Stations,Vehicle Management
800060243,ALLSTAR BUSINESS SOLUTIONS LTD,E2004474887,88,62.5,FUEL,08/04/2015,,Command Units,Vehicle Management
800060243,ALLSTAR BUSINESS SOLUTIONS LTD,E2004474887,89,59.11,FUEL,08/04/2015,,Command Units,Vehicle Management
800060243,ALLSTAR BUSINESS SOLUTIONS LTD,E2004474887,90,51.03,FUEL,08/04/2015,,Command Units,Vehicle Management
800060243,ALLSTAR BUSINESS SOLUTIONS LTD,E2004474887,91,50.42,FUEL,08/04/2015,,Command Units,Vehicle Management
800060243,ALLSTAR BUSINESS SOLUTIONS LTD,E2004474887,92,41.72,FUEL,08/04/2015,,CBRN RRT,Vehicle Management
800060243,ALLSTAR BUSINESS SOLUTIONS LTD,E2004474887,93,31.71,FUEL,08/04/2015,,Technical And Service Support,Vehicle Management
800060243,ALLSTAR BUSINESS SOLUTIONS LTD,E2004474887,94,23.34,FUEL,08/04/2015,,Control and Mobilising,Vehicle Management
800060243,ALLSTAR BUSINESS SOLUTIONS LTD,E2004474887,95,13.83,FUEL,08/04/2015,,Operations Fire Stations,Vehicle Management
070415H,VCG KESTREL LIMITED===========,561,1,365,PRINTING,13/04/2015,365,Strategy & Performance,Facilities & Management S
270315H,HEALTH MANAGEMENT LIMITED=====,128131,1,"9,573.28",DRUG & ALCOHOL TESTS,13/04/2015,"9,573.28",HR Management,Healthcare
141010,THAMES WATER UTILITIES LTD====,04255-21115N,1,"1,375.51",WATER & SEWERAGE RATES,13/04/2015,"1,375.51",Technical And Service Support,Utilities
070415H,BROWNS OF BEXLEY,50315,1,420,REFRESHMENTS,13/04/2015,420,Community Safety Delivery,Catering
300315H,CARILLION COMMUNICATIONS LTD==,1012903,1,450,TACTICAL DAY TO DAY,13/04/2015,450,Technical And Service Support,"Works - Construction, R&M"
070415G,*SPRUE SAFETY PRODUCTS LTD====,1072664,1,"2,472.00",FIRE DETECTORS,13/04/2015,"2,472.00",Operations Non Fire Stations,Health & Safety
020415G,*SPRUE SAFETY PRODUCTS LTD====,1072712,1,"2,719.20",FIRE DETECTORS,13/04/2015,"2,719.20",Operations Non Fire Stations,Health & Safety
300315H,*SPRUE SAFETY PRODUCTS LTD====,1072874,1,865.2,FIRE DETECTORS,13/04/2015,865.2,Operations Non Fire Stations,Health & Safety
300315H,*SPRUE SAFETY PRODUCTS LTD====,1072875,1,"1,977.60",FIRE DETECTORS,13/04/2015,"1,977.60",Operations Non Fire Stations,Health & Safety
020415G,VISTA LANDSCAPE MANAGEMENT LTD,120648,1,784.43,STRATEGIC (NON CYCLICAL),13/04/2015,784.43,Technical and Service Support,"Works - Construction, R&M"
070415H,VISTA LANDSCAPE MANAGEMENT LTD,120731,1,144.25,GROUNDS MAINTENANCE,13/04/2015,"2,915.52",Technical And Service Support,"Works - Construction, R&M"
070415H,VISTA LANDSCAPE MANAGEMENT LTD,120731,2,26.71,GROUNDS MAINTENANCE,13/04/2015,,Technical And Service Support,"Works - Construction, R&M"
070415H,VISTA LANDSCAPE MANAGEMENT LTD,120731,3,29.23,GROUNDS MAINTENANCE,13/04/2015,,Technical And Service Support,"Works - Construction, R&M"
070415H,VISTA LANDSCAPE MANAGEMENT LTD,120731,4,32.26,GROUNDS MAINTENANCE,13/04/2015,,Technical And Service Support,"Works - Construction, R&M"
070415H,VISTA LANDSCAPE MANAGEMENT LTD,120731,5,113.22,GROUNDS MAINTENANCE,13/04/2015,,Technical And Service Support,"Works - Construction, R&M"
070415H,VISTA LANDSCAPE MANAGEMENT LTD,120731,6,25.42,GROUNDS MAINTENANCE,13/04/2015,,Technical And Service Support,"Works - Construction, R&M"
070415H,VISTA LANDSCAPE MANAGEMENT LTD,120731,7,33.14,GROUNDS MAINTENANCE,13/04/2015,,Technical And Service Support,"Works - Construction, R&M"
070415H,VISTA LANDSCAPE MANAGEMENT LTD,120731,8,26.46,GROUNDS MAINTENANCE,13/04/2015,,Technical And Service Support,"Works - Construction, R&M"
070415H,VISTA LANDSCAPE MANAGEMENT LTD,120731,9,23.05,GROUNDS MAINTENANCE,13/04/2015,,Technical And Service Support,"Works - Construction, R&M"
070415H,VISTA LANDSCAPE MANAGEMENT LTD,120731,10,23.14,GROUNDS MAINTENANCE,13/04/2015,,Technical And Service Support,"Works - Construction, R&M"
070415H,VISTA LANDSCAPE MANAGEMENT LTD,120731,11,26.68,GROUNDS MAINTENANCE,13/04/2015,,Technical And Service Support,"Works - Construction, R&M"
070415H,VISTA LANDSCAPE MANAGEMENT LTD,120731,12,124.13,GROUNDS MAINTENANCE,13/04/2015,,Technical And Service Support,"Works - Construction, R&M"
070415H,VISTA LANDSCAPE MANAGEMENT LTD,120731,13,22.46,GROUNDS MAINTENANCE,13/04/2015,,Technical And Service Support,"Works - Construction, R&M"
070415H,VISTA LANDSCAPE MANAGEMENT LTD,120731,14,94,GROUNDS MAINTENANCE,13/04/2015,,Technical And Service Support,"Works - Construction, R&M"
070415H,VISTA LANDSCAPE MANAGEMENT LTD,120731,15,29.15,GROUNDS MAINTENANCE,13/04/2015,,Technical And Service Support,"Works - Construction, R&M"
070415H,VISTA LANDSCAPE MANAGEMENT LTD,120731,16,23.91,GROUNDS MAINTENANCE,13/04/2015,,Technical And Service Support,"Works - Construction, R&M"
070415H,VISTA LANDSCAPE MANAGEMENT LTD,120731,17,141.74,GROUNDS MAINTENANCE,13/04/2015,,Technical And Service Support,"Works - Construction, R&M"
070415H,VISTA LANDSCAPE MANAGEMENT LTD,120731,18,24.27,GROUNDS MAINTENANCE,13/04/2015,,Technical And Service Support,"Works - Construction, R&M"
070415H,VISTA LANDSCAPE MANAGEMENT LTD,120731,19,25.81,GROUNDS MAINTENANCE,13/04/2015,,Technical And Service Support,"Works - Construction, R&M"
070415H,VISTA LANDSCAPE MANAGEMENT LTD,120731,20,24.94,GROUNDS MAINTENANCE,13/04/2015,,Technical And Service Support,"Works - Construction, R&M"
070415H,VISTA LANDSCAPE MANAGEMENT LTD,120731,21,25.79,GROUNDS MAINTENANCE,13/04/2015,,Technical And Service Support,"Works - Construction, R&M"
070415H,VISTA LANDSCAPE MANAGEMENT LTD,120731,22,29.49,GROUNDS MAINTENANCE,13/04/2015,,Technical And Service Support,"Works - Construction, R&M"
070415H,VISTA LANDSCAPE MANAGEMENT LTD,120731,23,23.35,GROUNDS MAINTENANCE,13/04/2015,,Technical And Service Support,"Works - Construction, R&M"
070415H,VISTA LANDSCAPE MANAGEMENT LTD,120731,24,23.22,GROUNDS MAINTENANCE,13/04/2015,,Technical And Service Support,"Works - Construction, R&M"
070415H,VISTA LANDSCAPE MANAGEMENT LTD,120731,25,91.14,GROUNDS MAINTENANCE,13/04/2015,,Technical And Service Support,"Works - Construction, R&M"
070415H,VISTA LANDSCAPE MANAGEMENT LTD,120731,26,96.04,GROUNDS MAINTENANCE,13/04/2015,,Technical And Service Support,"Works - Construction, R&M"
070415H,VISTA LANDSCAPE MANAGEMENT LTD,120731,27,24.52,GROUNDS MAINTENANCE,13/04/2015,,Technical And Service Support,"Works - Construction, R&M"
070415H,VISTA LANDSCAPE MANAGEMENT LTD,120731,28,280.25,GROUNDS MAINTENANCE,13/04/2015,,Technical And Service Support,"Works - Construction, R&M"
070415H,VISTA LANDSCAPE MANAGEMENT LTD,120731,29,24.01,GROUNDS MAINTENANCE,13/04/2015,,Technical And Service Support,"Works - Construction, R&M"
070415H,VISTA LANDSCAPE MANAGEMENT LTD,120731,30,73.23,GROUNDS MAINTENANCE,13/04/2015,,Technical And Service Support,"Works - Construction, R&M"
070415H,VISTA LANDSCAPE MANAGEMENT LTD,120731,31,22.53,GROUNDS MAINTENANCE,13/04/2015,,Technical And Service Support,"Works - Construction, R&M"
070415H,VISTA LANDSCAPE MANAGEMENT LTD,120731,32,24.02,GROUNDS MAINTENANCE,13/04/2015,,Technical And Service Support,"Works - Construction, R&M"
070415H,VISTA LANDSCAPE MANAGEMENT LTD,120731,33,23.34,GROUNDS MAINTENANCE,13/04/2015,,Technical And Service Support,"Works - Construction, R&M"
070415H,VISTA LANDSCAPE MANAGEMENT LTD,120731,34,90.84,GROUNDS MAINTENANCE,13/04/2015,,Technical And Service Support,"Works - Construction, R&M"
070415H,VISTA LANDSCAPE MANAGEMENT LTD,120731,35,132.3,GROUNDS MAINTENANCE,13/04/2015,,Technical And Service Support,"Works - Construction, R&M"
070415H,VISTA LANDSCAPE MANAGEMENT LTD,120731,36,751.76,GROUNDS MAINTENANCE,13/04/2015,,Technical And Service Support,"Works - Construction, R&M"
070415H,VISTA LANDSCAPE MANAGEMENT LTD,120731,37,72.18,GROUNDS MAINTENANCE,13/04/2015,,Technical And Service Support,"Works - Construction, R&M"
070415H,VISTA LANDSCAPE MANAGEMENT LTD,120731,38,64.28,GROUNDS MAINTENANCE,13/04/2015,,Technical And Service Support,"Works - Construction, R&M"
070415H,VISTA LANDSCAPE MANAGEMENT LTD,120731,39,29.26,GROUNDS MAINTENANCE,13/04/2015,,Technical And Service Support,"Works - Construction, R&M"
070415G,P J HARTE(DECORATING CONT) LTD,13879PH,1,"7,300.00",STRATEGIC (NON CYCLICAL),13/04/2015,"8,460.00",Technical and Service Support,Building Constr Materials
070415G,P J HARTE(DECORATING CONT) LTD,13879PH,2,"1,160.00",STRATEGIC (NON CYCLICAL),13/04/2015,,Technical and Service Support,Building Constr Materials
070415H,LONDON FIT OUT LTD,1499,1,535,PROF FEES-MISCELLANEOUS,13/04/2015,535,Technical and Service Support,"Works - Construction, R&M"
070415G,GP CONTRACTS==================,15218,1,295,STRATEGIC (CYCLICAL),13/04/2015,295,Technical and Service Support,Furniture
070415G,GP CONTRACTS==================,15228,1,390,STRATEGIC (CYCLICAL),13/04/2015,"4,450.00",Technical and Service Support,Furniture
070415G,GP CONTRACTS==================,15228,2,90,STRATEGIC (CYCLICAL),13/04/2015,,Technical and Service Support,Furniture
070415G,GP CONTRACTS==================,15228,3,450,STRATEGIC (CYCLICAL),13/04/2015,,Technical and Service Support,Furniture
070415G,GP CONTRACTS==================,15228,4,180,STRATEGIC (CYCLICAL),13/04/2015,,Technical and Service Support,Furniture
070415G,GP CONTRACTS==================,15228,5,510,STRATEGIC (CYCLICAL),13/04/2015,,Technical and Service Support,Furniture
070415G,GP CONTRACTS==================,15228,6,210,STRATEGIC (CYCLICAL),13/04/2015,,Technical and Service Support,Furniture
070415G,GP CONTRACTS==================,15228,7,210,STRATEGIC (CYCLICAL),13/04/2015,,Technical and Service Support,Furniture
070415G,GP CONTRACTS==================,15228,8,180,STRATEGIC (CYCLICAL),13/04/2015,,Technical and Service Support,Furniture
070415G,GP CONTRACTS==================,15228,9,180,STRATEGIC (CYCLICAL),13/04/2015,,Technical and Service Support,Furniture
070415G,GP CONTRACTS==================,15228,10,670,STRATEGIC (CYCLICAL),13/04/2015,,Technical and Service Support,Furniture
070415G,GP CONTRACTS==================,15228,11,180,STRATEGIC (CYCLICAL),13/04/2015,,Technical and Service Support,Furniture
070415G,GP CONTRACTS==================,15228,12,180,STRATEGIC (CYCLICAL),13/04/2015,,Technical and Service Support,Furniture
070415G,GP CONTRACTS==================,15228,13,190,STRATEGIC (CYCLICAL),13/04/2015,,Technical and Service Support,Furniture
070415G,GP CONTRACTS==================,15228,14,180,STRATEGIC (CYCLICAL),13/04/2015,,Technical and Service Support,Furniture
070415G,GP CONTRACTS==================,15228,15,650,STRATEGIC (CYCLICAL),13/04/2015,,Technical and Service Support,Furniture
070415G,GP CONTRACTS==================,15229,1,180,STRATEGIC (CYCLICAL),13/04/2015,"4,070.00",Technical and Service Support,Furniture
070415G,GP CONTRACTS==================,15229,2,350,STRATEGIC (CYCLICAL),13/04/2015,,Technical and Service Support,Furniture
070415G,GP CONTRACTS==================,15229,3,180,STRATEGIC (CYCLICAL),13/04/2015,,Technical and Service Support,Furniture
070415G,GP CONTRACTS==================,15229,4,180,STRATEGIC (CYCLICAL),13/04/2015,,Technical and Service Support,Furniture
070415G,GP CONTRACTS==================,15229,5,240,STRATEGIC (CYCLICAL),13/04/2015,,Technical and Service Support,Furniture
070415G,GP CONTRACTS==================,15229,6,670,STRATEGIC (CYCLICAL),13/04/2015,,Technical and Service Support,Furniture
070415G,GP CONTRACTS==================,15229,7,780,STRATEGIC (CYCLICAL),13/04/2015,,Technical and Service Support,Furniture
070415G,GP CONTRACTS==================,15229,8,180,STRATEGIC (CYCLICAL),13/04/2015,,Technical and Service Support,Furniture
070415G,GP CONTRACTS==================,15229,9,500,STRATEGIC (CYCLICAL),13/04/2015,,Technical and Service Support,Furniture
070415G,GP CONTRACTS==================,15229,10,180,STRATEGIC (CYCLICAL),13/04/2015,,Technical and Service Support,Furniture
070415G,GP CONTRACTS==================,15229,11,240,STRATEGIC (CYCLICAL),13/04/2015,,Technical and Service Support,Furniture
070415G,GP CONTRACTS==================,15229,12,180,STRATEGIC (CYCLICAL),13/04/2015,,Technical and Service Support,Furniture
070415G,GP CONTRACTS==================,15229,13,210,STRATEGIC (CYCLICAL),13/04/2015,,Technical and Service Support,Furniture
141010,THAMES WATER UTILITIES LTD====,16168-06584C,1,498.62,WATER & SEWERAGE RATES,13/04/2015,498.62,Technical And Service Support,Utilities
070415H,DRON & WRIGHT=================,17585,1,"1,080.50",PROFESSIONAL SERVICES,13/04/2015,"32,238.69",Technical And Service Support,Facilities & Management S
070415H,DRON & WRIGHT=================,17585,2,"4,225.66",PROFESSIONAL SERVICES,13/04/2015,,Technical And Service Support,Facilities & Management S
070415H,DRON & WRIGHT=================,17585,3,22.5,PROFESSIONAL SERVICES,13/04/2015,,Technical And Service Support,Facilities & Management S
070415H,DRON & WRIGHT=================,17585,4,330,PROFESSIONAL SERVICES,13/04/2015,,Technical And Service Support,Facilities & Management S
070415H,DRON & WRIGHT=================,17585,5,457.5,PROFESSIONAL SERVICES,13/04/2015,,Technical And Service Support,Facilities & Management S
070415H,DRON & WRIGHT=================,17585,6,"2,206.25",DISPOSAL COSTS-ESTATES AGENTS,13/04/2015,,Technical and Service Support,Facilities & Management S
070415H,DRON & WRIGHT=================,17585,7,876.25,DISPOSAL COSTS-ESTATES AGENTS,13/04/2015,,Technical and Service Support,Facilities & Management S
070415H,DRON & WRIGHT=================,17585,8,"1,480.75",DISPOSAL COSTS-ESTATES AGENTS,13/04/2015,,Technical and Service Support,Facilities & Management S
070415H,DRON & WRIGHT=================,17585,9,"2,383.00",DISPOSAL COSTS-ESTATES AGENTS,13/04/2015,,Technical and Service Support,Facilities & Management S
070415H,DRON & WRIGHT=================,17585,10,"1,998.75",DISPOSAL COSTS-ESTATES AGENTS,13/04/2015,,Technical and Service Support,Facilities & Management S
070415H,DRON & WRIGHT=================,17585,11,"1,425.00",DISPOSAL COSTS-ESTATES AGENTS,13/04/2015,,Technical and Service Support,Facilities & Management S
070415H,DRON & WRIGHT=================,17585,12,"1,117.03",DISPOSAL COSTS-ESTATES AGENTS,13/04/2015,,Technical and Service Support,Facilities & Management S
070415H,DRON & WRIGHT=================,17585,13,917.5,DISPOSAL COSTS-ESTATES AGENTS,13/04/2015,,Technical and Service Support,Facilities & Management S
070415H,DRON & WRIGHT=================,17585,14,"1,541.25",DISPOSAL COSTS-ESTATES AGENTS,13/04/2015,,Technical and Service Support,Facilities & Management S
070415H,DRON & WRIGHT=================,17585,15,"1,068.50",DISPOSAL COSTS-ESTATES AGENTS,13/04/2015,,Technical and Service Support,Facilities & Management S
070415H,DRON & WRIGHT=================,17585,16,"6,012.58",PROFESSIONAL SERVICES,13/04/2015,,Technical And Service Support,Facilities & Management S
070415H,DRON & WRIGHT=================,17585,17,"1,405.00",PROFESSIONAL SERVICES,13/04/2015,,Technical And Service Support,Facilities & Management S
070415H,DRON & WRIGHT=================,17585,18,416.67,PROFESSIONAL SERVICES,13/04/2015,,Technical And Service Support,Facilities & Management S
070415H,DRON & WRIGHT=================,17585,19,"2,506.50",DISPOSAL COSTS-ESTATES AGENTS,13/04/2015,,Technical and Service Support,Facilities & Management S
070415H,DRON & WRIGHT=================,17585,20,35,PROF FEES-MISCELLANEOUS,13/04/2015,,Technical and Service Support,Facilities & Management S
070415H,DRON & WRIGHT=================,17585,21,70,PROF FEES-MISCELLANEOUS,13/04/2015,,Technical and Service Support,Facilities & Management S
070415H,DRON & WRIGHT=================,17585,22,662.5,PROF FEES-MISCELLANEOUS,13/04/2015,,Technical and Service Support,Facilities & Management S
141010,THAMES WATER UTILITIES LTD====,18966-01041P,1,"1,034.11",WATER & SEWERAGE RATES,13/04/2015,"1,034.11",Technical And Service Support,Utilities
070415H,BIGHAND LTD===================,20035039,1,21.56,MAINTENANCE & SUPPORT,13/04/2015,931.29,Information and Communication Technology,ICT
070415H,BIGHAND LTD===================,20035039,2,389.7,MAINTENANCE & SUPPORT,13/04/2015,,Information and Communication Technology,ICT
070415H,BIGHAND LTD===================,20035039,3,288.6,MAINTENANCE & SUPPORT,13/04/2015,,Information and Communication Technology,ICT
070415H,BIGHAND LTD===================,20035039,4,231.43,MAINTENANCE & SUPPORT,13/04/2015,,Information and Communication Technology,ICT
070415G,CHAIN GANG,20744,1,871.41,POSTAL SERVICES,13/04/2015,871.41,Strategy & Performance,Mail Services
141010,THAMES WATER UTILITIES LTD====,2167937404+,1,253.63,WATER & SEWERAGE RATES,13/04/2015,253.63,Technical And Service Support,Utilities
070415H,GRADIENT CONSULTANTS LLP======,2266,1,160,PROF FEES-MISCELLANEOUS,13/04/2015,"1,165.00",Technical and Service Support,"Works - Construction, R&M"
070415H,GRADIENT CONSULTANTS LLP======,2266,2,290,PROF FEES-MISCELLANEOUS,13/04/2015,,Technical and Service Support,"Works - Construction, R&M"
070415H,GRADIENT CONSULTANTS LLP======,2266,3,160,PROF FEES-MISCELLANEOUS,13/04/2015,,Technical and Service Support,"Works - Construction, R&M"
070415H,GRADIENT CONSULTANTS LLP======,2266,4,160,PROF FEES-MISCELLANEOUS,13/04/2015,,Technical and Service Support,"Works - Construction, R&M"
070415H,GRADIENT CONSULTANTS LLP======,2266,5,160,PROF FEES-MISCELLANEOUS,13/04/2015,,Technical and Service Support,"Works - Construction, R&M"
070415H,GRADIENT CONSULTANTS LLP======,2266,6,160,PROF FEES-MISCELLANEOUS,13/04/2015,,Technical and Service Support,"Works - Construction, R&M"
070415H,GRADIENT CONSULTANTS LLP======,2266,7,75,PROF FEES-MISCELLANEOUS,13/04/2015,,Technical and Service Support,"Works - Construction, R&M"
070415G,THE STATIONERY OFFICE LTD=====,22787232,1,"1,352.35",BOOKS & JOURNALS,13/04/2015,"1,352.35",Strategy & Performance,Stationery
070415G,THE STATIONERY OFFICE LTD=====,22789545,1,508.73,BOOKS & JOURNALS,13/04/2015,508.73,Strategy & Performance,Stationery
070415H,TROWERS & HAMLINS LLP,2357592,1,"2,250.00",CONSULTANTS,13/04/2015,"2,250.00",Central Finance,Legal Services
070415H,*LOCKHART CATERING EQUIPMENT,2398225,1,52.06,CATERING EQUIPMENT,13/04/2015,252.54,Operations Fire Stations,Catering
070415H,*LOCKHART CATERING EQUIPMENT,2398225,2,7.32,CATERING EQUIPMENT,13/04/2015,,Operations Fire Stations,Catering
070415H,*LOCKHART CATERING EQUIPMENT,2398225,3,14.34,CATERING EQUIPMENT,13/04/2015,,Operations Fire Stations,Catering
070415H,*LOCKHART CATERING EQUIPMENT,2398225,4,27.82,CATERING EQUIPMENT,13/04/2015,,Operations Fire Stations,Catering
070415H,*LOCKHART CATERING EQUIPMENT,2398225,5,7.67,CATERING EQUIPMENT,13/04/2015,,Operations Fire Stations,Catering
070415H,*LOCKHART CATERING EQUIPMENT,2398225,6,17.85,CATERING EQUIPMENT,13/04/2015,,Operations Fire Stations,Catering
070415H,*LOCKHART CATERING EQUIPMENT,2398225,7,25.56,CATERING EQUIPMENT,13/04/2015,,Operations Fire Stations,Catering
070415H,*LOCKHART CATERING EQUIPMENT,2398225,8,28.96,CATERING EQUIPMENT,13/04/2015,,Operations Fire Stations,Catering
070415H,*LOCKHART CATERING EQUIPMENT,2398225,9,13.08,CATERING EQUIPMENT,13/04/2015,,Operations Fire Stations,Catering
070415H,*LOCKHART CATERING EQUIPMENT,2398225,10,4.96,CATERING EQUIPMENT,13/04/2015,,Operations Fire Stations,Catering
070415H,*LOCKHART CATERING EQUIPMENT,2398225,11,25.08,CATERING EQUIPMENT,13/04/2015,,Operations Fire Stations,Catering
070415H,*LOCKHART CATERING EQUIPMENT,2398225,12,10.68,CATERING EQUIPMENT,13/04/2015,,Operations Fire Stations,Catering
070415H,*LOCKHART CATERING EQUIPMENT,2398225,13,3.22,CATERING EQUIPMENT,13/04/2015,,Operations Fire Stations,Catering
070415H,*LOCKHART CATERING EQUIPMENT,2398225,14,13.94,CATERING EQUIPMENT,13/04/2015,,Operations Fire Stations,Catering
300315H,FUTURE SAFETY LTD=============,2411,1,908.56,OPERATIONAL EQUIP-PURCHASE,13/04/2015,908.56,Operational Procedures,Clothing
070415H,B NOKES CONTRACTS LTD,2680,1,"3,895.00",REMOVALS,13/04/2015,"3,895.00",Technical And Service Support,"Works - Construction, R&M"
070415H,B NOKES CONTRACTS LTD,2681,1,420,TACTICAL DAY TO DAY,13/04/2015,420,Technical And Service Support,"Works - Construction, R&M"
070415H,B NOKES CONTRACTS LTD,2682,1,"2,965.00",STRATEGIC (NON CYCLICAL),13/04/2015,"2,965.00",Technical and Service Support,"Works - Construction, R&M"
070415H,B NOKES CONTRACTS LTD,2683,1,"2,965.00",STRATEGIC (NON CYCLICAL),13/04/2015,"2,965.00",Technical and Service Support,"Works - Construction, R&M"
070415H,B NOKES CONTRACTS LTD,2684,1,"7,954.50",STRATEGIC (NON CYCLICAL),13/04/2015,"7,954.50",Technical and Service Support,"Works - Construction, R&M"
070415G,B NOKES CONTRACTS LTD,2687,1,"24,276.40",DEVELOPMENT  EXPENSES-CONTRACT,13/04/2015,"25,148.40",Technical and Service Support,"Works - Construction, R&M"
070415G,B NOKES CONTRACTS LTD,2687,2,872,DEVELOPMENT  EXPENSES-CONTRACT,13/04/2015,,Technical and Service Support,"Works - Construction, R&M"
141010,THAMES WATER UTILITIES LTD====,27970-86298C,1,"1,984.22",WATER & SEWERAGE RATES,13/04/2015,"1,984.22",Technical And Service Support,Utilities
070415G,DRAEGER SAFETY UK LIMITED=====,2910011175,1,252.35,PROTECTIVE EQUIPT - PARTS,13/04/2015,252.35,Technical and Service Support,Fire & Rescue
070415G,DRAEGER SAFETY UK LIMITED=====,2910011327,1,648.9,PROTECTIVE EQUIPT - PARTS,13/04/2015,648.9,Technical and Service Support,Fire & Rescue
070415G,DRAEGER SAFETY UK LIMITED=====,2910012602,1,14.91,PROTECTIVE EQUIPT - PARTS,13/04/2015,"1,529.41",Technical and Service Support,Fire & Rescue
070415G,DRAEGER SAFETY UK LIMITED=====,2910012602,2,243,PROTECTIVE EQUIPT - PARTS,13/04/2015,,Technical and Service Support,Fire & Rescue
070415G,DRAEGER SAFETY UK LIMITED=====,2910012602,3,226,PROTECTIVE EQUIPT - PARTS,13/04/2015,,Technical and Service Support,Fire & Rescue
070415G,DRAEGER SAFETY UK LIMITED=====,2910012602,4,79.7,PROTECTIVE EQUIPT - PARTS,13/04/2015,,Technical and Service Support,Fire & Rescue
070415G,DRAEGER SAFETY UK LIMITED=====,2910012602,5,72.1,PROTECTIVE EQUIPT - PARTS,13/04/2015,,Technical and Service Support,Fire & Rescue
070415G,DRAEGER SAFETY UK LIMITED=====,2910012602,6,893.7,PROTECTIVE EQUIPT - PARTS,13/04/2015,,Technical and Service Support,Fire & Rescue
070415G,DRAEGER SAFETY UK LIMITED=====,2910012630,1,"11,976.00",PROTECTIVE EQUIPT - PARTS,13/04/2015,"11,976.00",Technical and Service Support,Fire & Rescue
070415G,DRAEGER SAFETY UK LIMITED=====,2910012638,1,484.8,PROTECTIVE EQUIPT - PARTS,13/04/2015,484.8,Technical and Service Support,Fire & Rescue
070415G,DRAEGER SAFETY UK LIMITED=====,2910012716,1,380.2,PROTECTIVE EQUIPT - PARTS,13/04/2015,380.2,Technical and Service Support,Fire & Rescue
020415G,DRAEGER SAFETY UK LIMITED=====,2910012717,1,"7,784.40",PROTECTIVE EQUIPT - PARTS,13/04/2015,"7,784.40",Technical and Service Support,Fire & Rescue
141010,THAMES WATER UTILITIES LTD====,"2963180521,",1,359.84,WATER & SEWERAGE RATES,13/04/2015,359.84,Technical And Service Support,Utilities
070415H,S W BRUCE & CO LTD,32130,1,"17,988.55",DEVELOPMENT  EXPENSES-CONTRACT,13/04/2015,"18,864.30",Technical and Service Support,"Works - Construction, R&M"
070415H,S W BRUCE & CO LTD,32130,2,875.75,DEVELOPMENT  EXPENSES-CONTRACT,13/04/2015,,Technical and Service Support,"Works - Construction, R&M"
070415H,DEALERSHIP SERVICES LTD,3239,1,53.7,CLOTHING,13/04/2015,446.25,Cadets,Clothing
070415H,DEALERSHIP SERVICES LTD,3239,2,53.7,CLOTHING,13/04/2015,,Cadets,Clothing
070415H,DEALERSHIP SERVICES LTD,3239,3,26.85,CLOTHING,13/04/2015,,Cadets,Clothing
070415H,DEALERSHIP SERVICES LTD,3239,4,53.7,CLOTHING,13/04/2015,,Cadets,Clothing
070415H,DEALERSHIP SERVICES LTD,3239,5,18.95,CLOTHING,13/04/2015,,Cadets,Clothing
070415H,DEALERSHIP SERVICES LTD,3239,6,37.9,CLOTHING,13/04/2015,,Cadets,Clothing
070415H,DEALERSHIP SERVICES LTD,3239,7,18.95,CLOTHING,13/04/2015,,Cadets,Clothing
070415H,DEALERSHIP SERVICES LTD,3239,8,37.9,CLOTHING,13/04/2015,,Cadets,Clothing
070415H,DEALERSHIP SERVICES LTD,3239,9,18.95,CLOTHING,13/04/2015,,Cadets,Clothing
070415H,DEALERSHIP SERVICES LTD,3239,10,29,CLOTHING,13/04/2015,,Cadets,Clothing
070415H,DEALERSHIP SERVICES LTD,3239,11,29,CLOTHING,13/04/2015,,Cadets,Clothing
070415H,DEALERSHIP SERVICES LTD,3239,12,14.5,CLOTHING,13/04/2015,,Cadets,Clothing
070415H,DEALERSHIP SERVICES LTD,3239,13,14.5,CLOTHING,13/04/2015,,Cadets,Clothing
070415H,DEALERSHIP SERVICES LTD,3239,14,14.5,CLOTHING,13/04/2015,,Cadets,Clothing
070415H,DEALERSHIP SERVICES LTD,3239,15,3.45,CLOTHING,13/04/2015,,Cadets,Clothing
070415H,DEALERSHIP SERVICES LTD,3239,16,6.9,CLOTHING,13/04/2015,,Cadets,Clothing
070415H,DEALERSHIP SERVICES LTD,3239,17,3.45,CLOTHING,13/04/2015,,Cadets,Clothing
070415H,DEALERSHIP SERVICES LTD,3239,18,6.9,CLOTHING,13/04/2015,,Cadets,Clothing
070415H,DEALERSHIP SERVICES LTD,3239,19,3.45,CLOTHING,13/04/2015,,Cadets,Clothing
070415G,DEALERSHIP SERVICES LTD,3262,1,53.7,CLOTHING,13/04/2015,949.25,Cadets,Clothing
070415G,DEALERSHIP SERVICES LTD,3262,2,26.85,CLOTHING,13/04/2015,,Cadets,Clothing
070415G,DEALERSHIP SERVICES LTD,3262,3,53.7,CLOTHING,13/04/2015,,Cadets,Clothing
070415G,DEALERSHIP SERVICES LTD,3262,4,53.7,CLOTHING,13/04/2015,,Cadets,Clothing
070415G,DEALERSHIP SERVICES LTD,3262,5,53.7,CLOTHING,13/04/2015,,Cadets,Clothing
070415G,DEALERSHIP SERVICES LTD,3262,6,26.85,CLOTHING,13/04/2015,,Cadets,Clothing
070415G,DEALERSHIP SERVICES LTD,3262,7,21.85,CLOTHING,13/04/2015,,Cadets,Clothing
070415G,DEALERSHIP SERVICES LTD,3262,8,53.7,CLOTHING,13/04/2015,,Cadets,Clothing
070415G,DEALERSHIP SERVICES LTD,3262,9,53.7,CLOTHING,13/04/2015,,Cadets,Clothing
070415G,DEALERSHIP SERVICES LTD,3262,10,16.95,CLOTHING,13/04/2015,,Cadets,Clothing
070415G,DEALERSHIP SERVICES LTD,3262,11,37.9,CLOTHING,13/04/2015,,Cadets,Clothing
070415G,DEALERSHIP SERVICES LTD,3262,12,37.9,CLOTHING,13/04/2015,,Cadets,Clothing
070415G,DEALERSHIP SERVICES LTD,3262,13,37.9,CLOTHING,13/04/2015,,Cadets,Clothing
070415G,DEALERSHIP SERVICES LTD,3262,14,37.9,CLOTHING,13/04/2015,,Cadets,Clothing
070415G,DEALERSHIP SERVICES LTD,3262,15,37.9,CLOTHING,13/04/2015,,Cadets,Clothing
070415G,DEALERSHIP SERVICES LTD,3262,16,18.95,CLOTHING,13/04/2015,,Cadets,Clothing
070415G,DEALERSHIP SERVICES LTD,3262,17,18.95,CLOTHING,13/04/2015,,Cadets,Clothing
070415G,DEALERSHIP SERVICES LTD,3262,18,37.9,CLOTHING,13/04/2015,,Cadets,Clothing
070415G,DEALERSHIP SERVICES LTD,3262,19,3.45,CLOTHING,13/04/2015,,Cadets,Clothing
070415G,DEALERSHIP SERVICES LTD,3262,20,6.9,CLOTHING,13/04/2015,,Cadets,Clothing
070415G,DEALERSHIP SERVICES LTD,3262,21,6.9,CLOTHING,13/04/2015,,Cadets,Clothing
070415G,DEALERSHIP SERVICES LTD,3262,22,6.9,CLOTHING,13/04/2015,,Cadets,Clothing
070415G,DEALERSHIP SERVICES LTD,3262,23,6.9,CLOTHING,13/04/2015,,Cadets,Clothing
070415G,DEALERSHIP SERVICES LTD,3262,24,6.9,CLOTHING,13/04/2015,,Cadets,Clothing
070415G,DEALERSHIP SERVICES LTD,3262,25,3.45,CLOTHING,13/04/2015,,Cadets,Clothing
070415G,DEALERSHIP SERVICES LTD,3262,26,3.45,CLOTHING,13/04/2015,,Cadets,Clothing
070415G,DEALERSHIP SERVICES LTD,3262,27,6.9,CLOTHING,13/04/2015,,Cadets,Clothing
070415G,DEALERSHIP SERVICES LTD,3262,28,14.5,CLOTHING,13/04/2015,,Cadets,Clothing
070415G,DEALERSHIP SERVICES LTD,3262,29,14.5,CLOTHING,13/04/2015,,Cadets,Clothing
070415G,DEALERSHIP SERVICES LTD,3262,30,29,CLOTHING,13/04/2015,,Cadets,Clothing
070415G,DEALERSHIP SERVICES LTD,3262,31,29,CLOTHING,13/04/2015,,Cadets,Clothing
070415G,DEALERSHIP SERVICES LTD,3262,32,29,CLOTHING,13/04/2015,,Cadets,Clothing
070415G,DEALERSHIP SERVICES LTD,3262,33,29,CLOTHING,13/04/2015,,Cadets,Clothing
070415G,DEALERSHIP SERVICES LTD,3262,34,29,CLOTHING,13/04/2015,,Cadets,Clothing
070415G,DEALERSHIP SERVICES LTD,3262,35,29,CLOTHING,13/04/2015,,Cadets,Clothing
070415G,DEALERSHIP SERVICES LTD,3262,36,14.5,CLOTHING,13/04/2015,,Cadets,Clothing
141010,THAMES WATER UTILITIES LTD====,3367365430Z,1,338.85,WATER & SEWERAGE RATES,13/04/2015,338.85,Technical And Service Support,Utilities
070415H,HANDS FREE COMPUTING LTD======,34661,1,415,ACQUISITIONS,13/04/2015,474.95,HR Management,Human Resources
070415H,HANDS FREE COMPUTING LTD======,34661,2,59.95,ACQUISITIONS,13/04/2015,,HR Management,Human Resources
020415G,CARPETS & FLOOR COVERS DIRECT=,3644,1,407.8,TACTICAL DAY TO DAY,13/04/2015,407.8,Technical And Service Support,Building Constr Materials
070415G,CARPETS & FLOOR COVERS DIRECT=,3654,1,442,TACTICAL DAY TO DAY,13/04/2015,442,Technical And Service Support,Building Constr Materials
070415H,OPERATIONAL RESEARCH IN HEALTH,36A/LFBD4/6,1,"3,200.00",CONSULTANTS,13/04/2015,"3,200.00",Operations Non Fire Stations,Consultancy
020415G,UNDERSTANDING RECRUITMENT,3780,1,"7,700.00",FRS STAFF AGENCY,13/04/2015,"7,700.00",Information and Communication Technology,Human Resources
070415H,FOCUS & VISION TECHNOLOGY LTD,44550,1,338.78,MEDICAL EXPENSES CONTRACT,13/04/2015,338.78,HR Management,Healthcare
070415H,FOCUS & VISION TECHNOLOGY LTD,44591,1,748.06,MEDICAL EXPENSES CONTRACT,13/04/2015,748.06,HR Management,Healthcare
070415H,FOCUS & VISION TECHNOLOGY LTD,45025,1,704.38,MEDICAL EXPENSES CONTRACT,13/04/2015,704.38,HR Management,Healthcare
070415H,FOCUS & VISION TECHNOLOGY LTD,45048,1,365.6,MEDICAL EXPENSES CONTRACT,13/04/2015,365.6,HR Management,Healthcare
020415G,FOCUS & VISION TECHNOLOGY LTD,45284,1,311.96,MEDICAL EXPENSES CONTRACT,13/04/2015,311.96,HR Management,Healthcare
020415G,FOCUS & VISION TECHNOLOGY LTD,45309,1,898.16,MEDICAL EXPENSES CONTRACT,13/04/2015,898.16,HR Management,Healthcare
020415G,FOCUS & VISION TECHNOLOGY LTD,45328,1,350.67,MEDICAL EXPENSES CONTRACT,13/04/2015,350.67,HR Management,Healthcare
020415G,FOCUS & VISION TECHNOLOGY LTD,45397,1,"1,545.88",MEDICAL EXPENSES CONTRACT,13/04/2015,"1,545.88",HR Management,Healthcare
141010,THAMES WATER UTILITIES LTD====,45803-10009C,1,494.65,WATER & SEWERAGE RATES,13/04/2015,494.65,Technical And Service Support,Utilities
070415H,SPORTSAFE UK LTD==============,469943,1,637.88,GYM EQUIPMENT,13/04/2015,637.88,Technical And Service Support,Sports & Playground Equip
070415H,SPORTSAFE UK LTD==============,470046,1,295,GYM EQUIPMENT,13/04/2015,590,Technical And Service Support,Sports & Playground Equip
070415H,SPORTSAFE UK LTD==============,470046,2,295,GYM EQUIPMENT,13/04/2015,,Technical And Service Support,Sports & Playground Equip
070415G,SPORTSAFE UK LTD==============,470132,1,295,GYM EQUIPMENT,13/04/2015,849.75,Technical And Service Support,Sports & Playground Equip
070415G,SPORTSAFE UK LTD==============,470132,2,115.84,GYM EQUIPMENT,13/04/2015,,Technical And Service Support,Sports & Playground Equip
070415G,SPORTSAFE UK LTD==============,470132,3,73.94,GYM EQUIPMENT,13/04/2015,,Technical And Service Support,Sports & Playground Equip
070415G,SPORTSAFE UK LTD==============,470132,4,92,GYM EQUIPMENT,13/04/2015,,Technical And Service Support,Sports & Playground Equip
070415G,SPORTSAFE UK LTD==============,470132,5,77.16,GYM EQUIPMENT,13/04/2015,,Technical And Service Support,Sports & Playground Equip
070415G,SPORTSAFE UK LTD==============,470132,6,69,GYM EQUIPMENT,13/04/2015,,Technical And Service Support,Sports & Playground Equip
070415G,SPORTSAFE UK LTD==============,470132,7,92,GYM EQUIPMENT,13/04/2015,,Technical And Service Support,Sports & Playground Equip
070415G,SPORTSAFE UK LTD==============,470132,8,34.81,GYM EQUIPMENT,13/04/2015,,Technical And Service Support,Sports & Playground Equip
800059545,*OCS GROUP UK LTD,5000083686-1,1,"3,232.97",CATERING,13/04/2015,"3,232.97",Technical And Service Support,Catering
141010,SUTTON & EAST SURREY WATER PLC,5142858C,1,"2,006.38",WATER & SEWERAGE RATES,13/04/2015,"2,006.38",Technical And Service Support,Utilities
141010,ESSEX & SUFFOLK WATER PLC=====,602518200017Q,1,926.73,WATER & SEWERAGE RATES,13/04/2015,926.73,Technical And Service Support,Utilities
070415H,CORE SURVEYSLTD===============,6057,1,400,ASBESTOS,13/04/2015,400,Technical and Service Support,"Works - Construction, R&M"
070415G,GEORGE JONES & SON LTD========,606,1,"10,271.87",STRATEGIC (NON CYCLICAL),13/04/2015,"10,271.87",Technical and Service Support,"Works - Construction, R&M"
300315H,CAPITA SECURE INFO SOLUTIONS,6060001799,1,361,MAINTENANCE & SUPPORT,13/04/2015,"1,863.00",National Co-ordination Centre,ICT
300315H,CAPITA SECURE INFO SOLUTIONS,6060001799,2,361,MAINTENANCE & SUPPORT,13/04/2015,,National Co-ordination Centre,ICT
300315H,CAPITA SECURE INFO SOLUTIONS,6060001799,3,180.5,MAINTENANCE & SUPPORT,13/04/2015,,National Co-ordination Centre,ICT
300315H,CAPITA SECURE INFO SOLUTIONS,6060001799,4,236.5,MAINTENANCE & SUPPORT,13/04/2015,,National Co-ordination Centre,ICT
300315H,CAPITA SECURE INFO SOLUTIONS,6060001799,5,724,MAINTENANCE & SUPPORT,13/04/2015,,National Co-ordination Centre,ICT
141010,THAMES WATER UTILITIES LTD====,61085-96798^,1,361.65,WATER & SEWERAGE RATES,13/04/2015,361.65,Technical And Service Support,Utilities
070415H,AECOM INFRASTRUCTURE &,6154726,1,423.75,PROF FEES-MISCELLANEOUS,13/04/2015,"1,662.47",Technical and Service Support,Consultancy
070415H,AECOM INFRASTRUCTURE &,6154726,2,"1,238.72",PROF FEES-MISCELLANEOUS,13/04/2015,,Technical and Service Support,Consultancy
070415G,AECOM INFRASTRUCTURE &,6211521,1,"4,525.25",PROF FEES-MISCELLANEOUS,13/04/2015,"4,525.25",Technical and Service Support,Consultancy
070415H,AECOM INFRASTRUCTURE &,6223704,1,"5,508.13",STRATEGIC (NON CYCLICAL),13/04/2015,"5,508.13",Technical and Service Support,Consultancy
141010,THAMES WATER UTILITIES LTD====,63959-55189C,1,378.72,WATER & SEWERAGE RATES,13/04/2015,378.72,Technical And Service Support,Utilities
020415G,MOORE STEPHENS CONSULTING LTD=,673800,1,500,ACQUISITIONS,13/04/2015,500,Community Safety Delivery,ICT
020415G,MOORE STEPHENS CONSULTING LTD=,673802,1,"2,000.00",CONSULTANTS,13/04/2015,"2,000.00",Finance Services,ICT
020415G,MOORE STEPHENS CONSULTING LTD=,673806,1,"8,000.00",CAMS PURCHASES,13/04/2015,"15,750.00",Information and Communication Technology,ICT
020415G,MOORE STEPHENS CONSULTING LTD=,673806,2,"7,750.00",CAMS PURCHASES,13/04/2015,,Information and Communication Technology,ICT
020415G,MOORE STEPHENS CONSULTING LTD=,673807,1,"3,000.00",CONSULTANTS,13/04/2015,"3,000.00",Finance Services,ICT
020415G,MOORE STEPHENS CONSULTING LTD=,673812,1,"3,000.00",CONSULTANTS,13/04/2015,"3,000.00",HR Management,ICT
070415G,SWEETT  UK LTD,7047655,1,"1,518.11",STRATEGIC (NON CYCLICAL),13/04/2015,"1,518.11",Technical and Service Support,"Works - Construction, R&M"
070415H,DISCLOSURE SCOTLAND===========,713111,1,825,CRB CHECKS,13/04/2015,825,HR Management,Human Resources
070415G,CANON (UK) LTD===============,770507166,1,390.86,OFFICE EQUIPMENT,13/04/2015,390.86,HR Management,ICT
020415G,TWO SERVICES LTD==============,81449,1,283.75,TACTICAL DAY TO DAY,13/04/2015,283.75,Technical And Service Support,Catering
070415H,FURNESS GREEN PARTNERSHIP LTD,827,1,"2,227.50",PROF FEES-MISCELLANEOUS,13/04/2015,"2,227.50",Technical and Service Support,Consultancy
141010,THAMES WATER UTILITIES LTD====,86411-42518C,1,"1,340.35",WATER & SEWERAGE RATES,13/04/2015,"1,340.35",Technical And Service Support,Utilities
141010,SUTTON & EAST SURREY WATER PLC,8731904C,1,599.72,WATER & SEWERAGE RATES,13/04/2015,599.72,Technical And Service Support,Utilities
141010,THAMES WATER UTILITIES LTD====,89525-13074C,1,264.29,WATER & SEWERAGE RATES,13/04/2015,264.29,Technical And Service Support,Utilities
070415H,A.R.C.S. ENVIRONMENTAL LTD====,9065,1,200,ASBESTOS,13/04/2015,950,Technical and Service Support,Environmental Services
070415H,A.R.C.S. ENVIRONMENTAL LTD====,9065,2,200,ASBESTOS,13/04/2015,,Technical and Service Support,Environmental Services
070415H,A.R.C.S. ENVIRONMENTAL LTD====,9065,3,400,ASBESTOS,13/04/2015,,Technical and Service Support,Environmental Services
070415H,A.R.C.S. ENVIRONMENTAL LTD====,9065,4,150,ASBESTOS,13/04/2015,,Technical and Service Support,Environmental Services
141014,H M REVENUE AND CUSTOMS=======,951PV001544981313,1,748.4,PROVISION FOR EMPLOYEE COSTS,13/04/2015,748.4,Central Finance,Statutory Bodies
070415G,BANCROFT HINCHLEY LTD=========,9628,1,485,REPAIR & MAINTENANCE,13/04/2015,485,Technical And Service Support,Fire & Rescue
070415H,*OFFICE DEPOT UK LTD,964615800,1,357,STATIONERY CONSUMABLES,13/04/2015,357,Communications,Stationery
070415H,THAMES WATER UTILITIES LTD====,CBA1503126,1,"1,185.00",CURRENT HYDRANT COSTS,13/04/2015,"1,185.00",Operational Resilience,Utilities
070415H,THAMES WATER UTILITIES LTD====,CBA1503129,1,477,CURRENT HYDRANT COSTS,13/04/2015,477,Operational Resilience,Utilities
070415H,THAMES WATER UTILITIES LTD====,CBA1503133,1,"1,185.00",CURRENT HYDRANT COSTS,13/04/2015,"1,185.00",Operational Resilience,Utilities
070415H,THAMES WATER UTILITIES LTD====,CBA1503134,1,"1,185.00",CURRENT HYDRANT COSTS,13/04/2015,"1,185.00",Operational Resilience,Utilities
070415H,THAMES WATER UTILITIES LTD====,CBA1503135,1,"1,185.00",CURRENT HYDRANT COSTS,13/04/2015,"1,185.00",Operational Resilience,Utilities
070415H,THAMES WATER UTILITIES LTD====,CBA1503137,1,"1,185.00",CURRENT HYDRANT COSTS,13/04/2015,"1,185.00",Operational Resilience,Utilities
070415H,THAMES WATER UTILITIES LTD====,CBA1503139,1,"1,185.00",CURRENT HYDRANT COSTS,13/04/2015,"1,185.00",Operational Resilience,Utilities
070415H,CHARGEMASTER PLC,CM150269,1,"9,663.30",ELECTRIC VEHICLE CHARGE POINT,13/04/2015,"9,663.30",Technical and Service Support,Environmental Services
